Workbook

Sheet CycleTime
L1: ↓ W～AQ 「表示しない」列 ↓ ↓ W～AQ 「表示しない」列 ↓ ↓ W～AQ 「表示しない」列 ↓ ↓ W～AQ 「表示しない」列 ↓ ↓ W～AQ 「表示しない」列 ↓ ↓ W～AQ 「表示しない」列 ↓ ↓ W～AQ 「表示しない」列 ↓ ↓ W～AQ 「表示しない」列 ↓ ↓ W～AQ 「表示しない」列 ↓W～AQ 「表示しない」列 | AT1: 残す列 | AV1: 残す列
L2: 参考表示
L3: Vmax[㎜/s] | N3: =SQRT(D14*(2*N4*N5)/(N4+N5)) -> 221.4345276 | AB3: feedforward | AE3: 物理計算用変換係数
A4: <a> | B4: シリーズ | C4: RCA- | L4: =IF(AE33=0,"加速度[㎜/s^2]","加速度[deg/s^2]") -> 加速度[㎜/s^2] | N4: =D20*AH5*1000 -> 980.665 | AB4: =AF45/100 -> 0 | AE4: ﾓｰﾀ軸角速度及び角加速度 | AH4: Ｇ
L5: =IF(AE33=0,"減速度[㎜/s^2]","減速度[deg/s^2]") -> 減速度[㎜/s^2] | N5: =D22*AH5*1000 -> 980.665 | AB5: Kf | AC5: =IF( AB4=1,1,1-EXP(-((N11/(1-AB4))-N11)*N8) ) -> 0 | AE5: =IF(AE33=0,1000,360/(2*PI())) -> 1000 | AH5: =LeadData!$A$1 -> 9.80665
A6: <b> | B6: 型式 | C6: RCA-SA4C-20 | L6: 最高速度[㎜/s] | N6: =IF(D18<N3,D18,N3) -> 165 | AO6: (Tkp+2Kf) | AP6: =($N$8*$N$11+2*$AB$4) -> 0.008280583201
L7: 分割数 | N7: =ROUND(3200/(AP18+AP20*10)*AP18,0) -> 1992 | AO7: (Tkp-2Kf) | AP7: =($N$8*$N$11-2*$AB$4) -> 0.008280583201
A8: <c> | B8: =IF(AE33=0,"リード","減速比") -> リード | C8: 2.5 | D8: =IF(AE33=0,"㎜","：1") -> ㎜ | L8: ⊿ｔ[s] | N8: =AT32-AT31 -> 0.0002365880915 | AO8: (2+TKp) | AP8: =(2+$N$8*$N$11) -> 2.008280583
L9: 最終時刻[s] | N9: =AT3231 -> 0.7570818926 | AO9: (2-TKp) | AP9: =(2-$N$8*$N$11) -> 1.991719417
A10: <d> | B10: ストローク | C10: 50 | D10: ㎜ | L10: 最終位置[㎜] | N10: =AV3231 -> 49.99996387 | AO10: 減速時間 | AP10: =N6/N5 -> 0.1682531751 | AQ10: s
L11: 位置ｹﾞｲﾝ | N11: =AE45 -> 35 | AO11: 減速距離 | AP11: =N5*AP10*AP10/2 -> 13.88088695 | AQ11: ㎜
A12: <e> | B12: 設置姿勢 | C12: 水平 | L12: 速度制御帯域 | N12: =AG45 -> 140 | AO12: 加速時間 | AP12: =N6/N4 -> 0.1682531751 | AQ12: s
AO13: 加速距離 | AP13: =N4*AP12*AP12/2 -> 13.88088695 | AQ13: ㎜
A14: <1> | B14: 移動距離[㎜] | D14: 50 | L14: 移動可能距離[㎜] | N14: =X45+Y45 -> 50 | AO14: 等速時間 | AP14: =IF(D18<N3,(D14-AP13-AP11)/D18,0) -> 0.1347771279 | AQ14: s
AO15: 等速距離 | AP15: =AP14*N6 -> 22.2382261 | AQ15: ㎜
A16: <2> | B16: =IF(AE33=0,"搬送質量[kg]","搬送ｲﾅｰｼｬ[kgm^2]") -> 搬送質量[kg] | D16: 11 | AO16: 減速時刻 | AP16: =AP12+AP14 -> 0.303030303 | AQ16: s
AO17: 減速位置 | AP17: =AP13+AP15 -> 36.11911305 | AQ17: ㎜
A18: <3> | B18: 速度[㎜/s] | D18: 165 | G18: ●計算結果 | AO18: TotalTime | AP18: =AP14+AP12+AP10 -> 0.4712834782 | AQ18: s
AE19: 運転姿勢 | AF19: →初期値 | AO19: Spdτ | AP19: =1/N12 -> 0.007142857143 | AQ19: s
A20: <4> | B20: 加速度[G] | D20: 0.1 | G20: 位置決め時間 [s] | I20: =LOOKUP((D14-D24),AV31:AV3231,AT31:AT3231) -> 0.530430501 | AE20: 水平 | AF20: 水平 | AO20: Posτ | AP20: =1/N11 -> 0.02857142857 | AQ20: s
AE21: 垂直 | AO21: 収束時間 | AP21: =I20-AP18 -> 0.05914702286 | AQ21: s
A22: <5> | B22: 減速度[G] | D22: 0.1
A24: <6> | B24: 位置決め幅 [㎜] | D24: 0.1 | F24: =IF(N9<=I20,"位置決め時間を正しく計算できていません","※位置決め幅に到達するまでの時間を表します。") -> ※位置決め幅に到達するまでの時間を表します。
F25: =IF(N10<=I21,"","※計算結果は参考値です。 負荷状況により実際の位置決め時間とは異なる場合があります。 ※ゲイン調整により計算結果より早く位置決めできる場合があります。 詳しくは使用するコントローラーの取扱説明書をご確認ください。") -> ※計算結果は参考値です。 負荷状況により実際の位置決め時間とは異なる場合があります。 ※ゲイン調整により計算結果より早く位置決めできる場合があります。 詳しくは使用するコントローラーの取扱説明書をご確認ください。
A28: 1 | B28: =A28+1 -> 2 | C28: 3 | D28: 4 | E28: 5 | F28: 6 | G28: 7 | H28: 8 | I28: 9 | J28: 10 | K28: =J28+1 -> 11 | L28: 12 | M28: 13 | N28: 14 | O28: 15 | P28: =O28+1 -> 16 | Q28: =P28+1 -> 17 | R28: =Q28+1 -> 18 | S28: =R28+1 -> 19 | T28: 20 | U28: 21 | V28: 22 | W28: 23 | X28: 24 | Y28: 25 | Z28: 26 | AA28: 27 | AB28: 28 | AC28: 29 | AD28: 30 | AE28: 31 | AF28: 32 | AG28: 33 | AH28: 34 | AI28: 35 | AJ28: 36 | AK28: =AJ28+1 -> 37 | AL28: 38 | AM28: 39 | AN28: 40 | AO28: 41 | AP28: 42 | AQ28: 43 | AR28: 44 | AS28: 45 | AT28: 46 | AU28: 47 | AV28: 48
O29: ↓↓↓↓↓↓↓↓ フォント色を白にする列 O29～U193 ↓↓↓↓↓↓↓↓ | AS29: ↓↓↓↓↓↓↓↓↓↓↓↓↓↓↓ フォント色を白に、数式は非表示に、する列 A29～J3231 ↓↓↓↓↓↓↓↓↓↓↓↓↓↓↓
B30: 可搬質量 | C30: 加減速度 | D30: 最高速度 | E30: 実加速度 | F30: 到達速度 | G30: 運転時間 | H30: 三角速度 | O30: № | P30: メカ型式リスト | Q30: 絞込み | R30: ﾀｲﾌﾟﾘｽﾄ | S30: ﾘｰﾄﾞﾘｽﾄ | T30: ｽﾄﾛｰｸﾘｽﾄ | U30: 型式総数 | W30: =DataSerch!B1 -> メカ機種データレコード | AS30: № | AT30: 時刻 | AU30: 位置計画 | AV30: 位置
A31: =A30+1 -> 1 | B31: 1 | C31: 0.5 | D31: 165 | E31: 4903.325 | F31: 165 | G31: 0.3366809381 | H31: 495.1426562 | O31: 1 | P31: RCA-SA4C-20 | Q31: RCA-SA4C-20 | R31: RCA- | S31: 2.5 | T31: 50 | U31: 15 | W31: ﾚｺｰﾄﾞ№ | X31: =DataSerch!$C$2 -> ｱｸﾁｭｴｰﾀ型式 | Z31: =DataSerch!$E$2 -> 0 | AA31: =DataSerch!$F$2 -> 0 | AB31: =DataSerch!$G$2 -> 0 | AC31: =DataSerch!$H$2 -> 最小ｽﾄﾛｰｸ | AD31: =DataSerch!$I$2 -> 最大ｽﾄﾛｰｸ | AE31: =DataSerch!$J$2 -> 動作種別 | AF31: =DataSerch!$K$2 -> 0 | AS31: 0 | AT31: =$AP$18/$N$7*AS31 -> 0 | AU31: 0 | AV31: 0
A32: 2 | B32: 2.5 | C32: 0.4 | D32: 165 | E32: 3922.66 | F32: 165 | G32: 0.3450935968 | H32: 442.8690551 | O32: =O31+1 -> 2 | P32: RCA-SA5C-20 | Q32: RCA-SA5C-20 | R32: RCA-SA | S32: 5 | T32: 100 | U32: 絞込み数 | W32: =DataSerch!$B$3 -> 1 | X32: =DataSerch!$C$3 -> RCA-SA4C-20 | Z32: =DataSerch!$E$4 -> [kg] | AA32: =DataSerch!$F$4 -> [mm] | AB32: =DataSerch!$G$4 -> [mm] | AC32: =DataSerch!$H$4 -> [mm] | AD32: =DataSerch!$I$4 -> [mm] | AE32: =DataSerch!$J$4 -> 0/1 | AF32: =DataSerch!$K$4 -> [K] | AS32: =AS31+1 -> 1 | AT32: 0.0002365880915 | AU32: =IF(($N$4*AT32^2/2)<=$AP$13,($N$4*AT32^2/2), IF(($AP$13+$N$6*(AT32-$AP$12))<=$AP$17, ($AP$13+$N$6*(AT32-$AP$12)), IF(AU31<$D$14, ($AP$17+($N$6-$N$5*(AT32-$AP$16)/2)*(AT32-$AP$16)), $D$14))) -> 2.744583459e-05 | AV32: =( $AP$6*AU32 + $AP$7*AU31 + $AP$9*AV31 )/$AP$8 -> 1.131652214e-07
A33: 3 | B33: 5 | C33: 0.3 | D33: 165 | E33: 2941.995 | F33: 165 | G33: 0.3591146947 | H33: 383.5358523 | O33: =O32+1 -> 3 | P33: RCA-SA6C-30 | Q33: RCA-SA6C-30 | R33: RCA-SS | S33: 10 | T33: 150 | U33: 15 | AC33: =DataSerch!$H$5 -> 50 | AD33: =DataSerch!$I$5 -> 400 | AE33: =DataSerch!$J$5 -> 0 | AS33: =AS32+1 -> 2 | AT33: 0.0004731761829 | AU33: 0.0001097833384 | AV33: =( $AP$6*AU33 + $AP$7*AU32 + $AP$9*AV32 )/$AP$8 -> 6.780581181e-07
A34: 4 | B34: 8 | C34: 0.2 | D34: 165 | E34: 1961.33 | F34: 165 | G34: 0.3871568906 | H34: 313.1557121 | O34: 4 | P34: RCA-SA4D-20 | Q34: RCA-SA4D-20 | R34: RCA-R | S34: - - - | T34: 200 | AS34: 3 | AT34: 0.0007097642744 | AU34: 0.0002470125113 | AV34: 2.14361443e-06
A35: 5 | B35: 11 | C35: 0.1 | D35: 165 | E35: 980.665 | F35: 165 | G35: 0.4712834782 | H35: 221.4345276 | O35: 5 | P35: RCA-SA5D-20 | Q35: RCA-SA5D-20 | S35: - - - | T35: 250 | U35: ﾘｰﾄﾞ総数 | W35: リードデータレコード | AS35: 4 | AT35: 0.0009463523658 | AU35: 0.0004391333534 | AV35: 4.955067776e-06
A36: 6 | B36: -1 | C36: -1 | D36: -1 | E36: -1 | F36: -1 | G36: -1 | H36: -1 | O36: 6 | P36: RCA-SA6D-30 | Q36: RCA-SA6D-30 | S36: - - - | T36: 300 | U36: 3 | W36: リスト№ | X36: =DataSerch!$F$24 -> ﾘｰﾄﾞ長 | Y36: =DataSerch!$G$24 -> 0 | Z36: =DataSerch!$H$24 -> 水平定格加速度 | AA36: =DataSerch!$I$24 -> 垂直定格加速度 | AB36: =DataSerch!$J$24 -> 水平最大加速度 | AC36: =DataSerch!$K$24 -> 垂直最大加速度 | AD36: =DataSerch!$L$24 -> 0 | AE36: =DataSerch!$M$24 -> 0 | AF36: =DataSerch!$N$24 -> 0 | AG36: =DataSerch!$O$24 -> ｷﾞｱ比分子 | AH36: =DataSerch!$P$24 -> ｷﾞｱ比分母 | AI36: =DataSerch!$Q$24 -> 0 | AJ36: =DataSerch!$R$24 -> ｽﾄﾛｰｸ刻み | AS36: 5 | AT36: 0.001182940457 | AU36: 0.0006861458647 | AV36: 9.553980182e-06
A37: 7 | B37: -1 | C37: -1 | D37: -1 | E37: -1 | F37: -1 | G37: -1 | H37: -1 | O37: 7 | P37: RCA-SS4D-20 | Q37: RCA-SS4D-20 | S37: - - - | T37: 350 | AS37: 6 | AT37: 0.001419528549 | AU37: 0.0009880500452 | AV37: 1.637827236e-05
A38: 8 | B38: -1 | C38: -1 | D38: -1 | E38: -1 | F38: -1 | G38: -1 | H38: -1 | O38: 8 | P38: RCA-SS5D-20 | Q38: RCA-SS5D-20 | S38: - - - | T38: 400 | U38: ｽﾄﾛｰｸ総数 | W38: =DataSerch!$D$35 -> 1 | X38: =DataSerch!$F$25 -> [mm] | Y38: =DataSerch!$G$25 -> [kgm^2] | Z38: =DataSerch!$H$25 -> [m/s^2] | AA38: =DataSerch!$I$25 -> [m/s^2] | AB38: =DataSerch!$J$25 -> [m/s^2] | AC38: =DataSerch!$K$25 -> [m/s^2] | AD38: =DataSerch!$L$25 -> [Nm] | AE38: =DataSerch!$M$25 -> [Nms] | AF38: =DataSerch!$N$25 -> [Nm] | AG38: =DataSerch!$O$25 -> 0 | AH38: =DataSerch!$P$25 -> 0 | AI38: =DataSerch!$Q$25 -> 0 | AJ38: =DataSerch!$R$25 -> [mm] | AS38: 7 | AT38: 0.00165611664 | AU38: 0.001344845895 | AV38: 2.586225373e-05
A39: 9 | B39: -1 | C39: -1 | D39: -1 | E39: -1 | F39: -1 | G39: -1 | H39: -1 | O39: 9 | P39: RCA-SS6D-30 | Q39: RCA-SS6D-30 | T39: - - - | U39: 8 | X39: =LOOKUP(W38,DataSerch!$B$26:$B$33,DataSerch!$F$26:$F$33) -> 2.5 | Z39: =LOOKUP(W38,DataSerch!$B$26:$B$33,DataSerch!$H$26:$H$33) -> 1.96133 | AA39: =LOOKUP(W38,DataSerch!$B$26:$B$33,DataSerch!$I$26:$I$33) -> 1.96133 | AB39: =LOOKUP(W38,DataSerch!$B$26:$B$33,DataSerch!$J$26:$J$33) -> 4.903325 | AC39: =LOOKUP(W38,DataSerch!$B$26:$B$33,DataSerch!$K$26:$K$33) -> 2.941995 | AG39: =LOOKUP(W38,DataSerch!$B$26:$B$33,DataSerch!$O$26:$O$33) -> 1 | AH39: =LOOKUP(W38,DataSerch!$B$26:$B$33,DataSerch!$P$26:$P$33) -> 1 | AJ39: =LOOKUP(W38,DataSerch!$B$26:$B$33,DataSerch!$R$26:$R$33) -> 50 | AS39: 8 | AT39: 0.001892704732 | AU39: 0.001756533414 | AV39: 3.843665221e-05
A40: 10 | B40: -1 | C40: -1 | D40: -1 | E40: -1 | F40: -1 | G40: -1 | H40: -1 | O40: 10 | P40: RCA-SA4R-20 | Q40: RCA-SA4R-20 | T40: - - - | AS40: 9 | AT40: 0.002129292823 | AU40: 0.002223112602 | AV40: 5.452864374e-05
A41: 11 | B41: -1 | C41: -1 | D41: -1 | E41: -1 | F41: -1 | G41: -1 | H41: -1 | O41: 11 | P41: RCA-SA5R-20 | Q41: RCA-SA5R-20 | T41: - - - | W41: ストロークデータレコード | AS41: 10 | AT41: 0.002365880915 | AU41: 0.002744583459 | AV41: 7.45618816e-05
A42: 12 | B42: -1 | C42: -1 | D42: -1 | E42: -1 | F42: -1 | G42: -1 | H42: -1 | O42: 12 | P42: RCA-SA6R-30 | Q42: RCA-SA6R-30 | T42: - - - | W42: リスト№ | X42: =DataSerch!$E$58 -> ｽﾄﾛｰｸ長 | Y42: =DataSerch!$G$58 -> 有効ｽﾄﾛｰｸ補正 | Z42: =DataSerch!$H$58 -> 0 | AA42: =DataSerch!$I$58 -> 基準ｹﾞｲﾝ用搬送質量 | AB42: =DataSerch!$J$58 -> 水平可搬質量 | AC42: =DataSerch!$K$58 -> 垂直可搬質量 | AD42: =DataSerch!$L$58 -> 最大速度 | AE42: =DataSerch!$M$58 -> 位置ｹﾞｲﾝ | AF42: =DataSerch!$N$58 -> FFｹﾞｲﾝ | AG42: =DataSerch!$O$58 -> 速度制御帯域 | AH42: =DataSerch!$P$58 -> 0 | AI42: =DataSerch!$Q$58 -> 0 | AJ42: =DataSerch!$R$58 -> 0 | AK42: =DataSerch!$S$58 -> 0 | AL42: =DataSerch!$T$58 -> 0 | AS42: 11 | AT42: 0.002602469006 | AU42: 0.003320945985 | AV42: 9.89565254e-05
A43: 13 | B43: -1 | C43: -1 | D43: -1 | E43: -1 | F43: -1 | G43: -1 | H43: -1 | O43: 13 | P43: RCA-RA3C-20 | Q43: RCA-RA3C-20 | T43: - - - | AS43: 12 | AT43: 0.002839057097 | AU43: 0.003952200181 | AV43: 0.00012812927
A44: 14 | B44: -1 | C44: -1 | D44: -1 | E44: -1 | F44: -1 | G44: -1 | H44: -1 | O44: 14 | P44: RCA-RA4C-20 | Q44: RCA-RA4C-20 | T44: - - - | W44: =MATCH(C10,DataSerch!$E$60:$E$109,0) -> 1 | X44: =DataSerch!$E$59 -> [mm] | Y44: =DataSerch!$G$59 -> [mm] | Z44: =DataSerch!$H$59 -> [kg/mm] | AA44: =DataSerch!$I$59 -> [kg] | AB44: =DataSerch!$J$59 -> [kg] | AC44: =DataSerch!$K$59 -> [kg] | AD44: =DataSerch!$L$59 -> [mm/s] | AE44: =DataSerch!$M$59 -> [1/s] | AF44: =DataSerch!$N$59 -> [%] | AG44: =DataSerch!$O$59 -> [rad/s] | AH44: =DataSerch!$P$59 -> 0 | AI44: =DataSerch!$Q$59 -> [s] | AJ44: =DataSerch!$R$59 -> 0 | AK44: =DataSerch!$S$59 -> 0 | AL44: =DataSerch!$T$59 -> [Nm/rad] | AS44: 13 | AT44: 0.003075645189 | AU44: 0.004638346045 | AV44: 0.0001624933739
A45: 15 | B45: -1 | C45: -1 | D45: -1 | E45: -1 | F45: -1 | G45: -1 | H45: -1 | O45: 15 | P45: RCA-RA4C-30 | Q45: RCA-RA4C-30 | T45: - - - | X45: =LOOKUP(W44,DataSerch!$D$60:$D$109,DataSerch!$E$60:$E$109) -> 50 | Y45: =LOOKUP(W44,DataSerch!$D$60:$D$109,DataSerch!$G$60:$G$109) -> 0 | AA45: =LOOKUP(W44,DataSerch!$D$60:$D$109,DataSerch!$I$60:$I$109) -> 8 | AB45: =LOOKUP(W44,DataSerch!$D$60:$D$109,DataSerch!$J$60:$J$109) -> 11 | AC45: =LOOKUP(W44,DataSerch!$D$60:$D$109,DataSerch!$K$60:$K$109) -> 4.5 | AD45: =LOOKUP(W44,DataSerch!$D$60:$D$109,DataSerch!$L$60:$L$109) -> 165 | AE45: =LOOKUP(W44,DataSerch!$D$60:$D$109,DataSerch!$M$60:$M$109) -> 35 | AF45: =LOOKUP(W44,DataSerch!$D$60:$D$109,DataSerch!$N$60:$N$109) -> 0 | AG45: =LOOKUP(W44,DataSerch!$D$60:$D$109,DataSerch!$O$60:$O$109) -> 140 | AS45: 14 | AT45: 0.00331223328 | AU45: 0.005379383579 | AV45: 0.0002024586877
A46: 16 | B46: -1 | C46: -1 | D46: -1 | E46: -1 | F46: -1 | G46: -1 | H46: -1 | O46: 16 | Q46: - - - | T46: - - - | AS46: 15 | AT46: 0.003548821372 | AU46: 0.006175312782 | AV46: 0.0002484316824
A47: 17 | B47: -1 | C47: -1 | D47: -1 | E47: -1 | F47: -1 | G47: -1 | H47: -1 | O47: 17 | Q47: - - - | T47: - - - | AS47: 16 | AT47: 0.003785409463 | AU47: 0.007026133655 | AV47: 0.0003008154768
A48: 18 | B48: -1 | C48: -1 | D48: -1 | E48: -1 | F48: -1 | G48: -1 | H48: -1 | O48: 18 | Q48: - - - | T48: - - - | AS48: 17 | AT48: 0.004021997555 | AU48: 0.007931846196 | AV48: 0.0003600098655
A49: 19 | B49: -1 | C49: -1 | D49: -1 | E49: -1 | F49: -1 | G49: -1 | H49: -1 | O49: 19 | Q49: - - - | T49: - - - | AS49: 18 | AT49: 0.004258585646 | AU49: 0.008892450407 | AV49: 0.0004264113463
A50: 20 | B50: -1 | C50: -1 | D50: -1 | E50: -1 | F50: -1 | G50: -1 | H50: -1 | O50: 20 | Q50: - - - | T50: - - - | U50: リンクリスト総数 | AS50: 19 | AT50: 0.004495173738 | AU50: 0.009907946286 | AV50: 0.0005004131471
A51: 21 | B51: -1 | C51: -1 | D51: -1 | E51: -1 | F51: -1 | G51: -1 | H51: -1 | O51: 21 | Q51: - - - | T51: - - - | U51: 5 | AS51: 20 | AT51: 0.004731761829 | AU51: 0.01097833384 | AV51: 0.0005824052534
A52: 22 | B52: -1 | C52: -1 | D52: -1 | E52: -1 | F52: -1 | G52: -1 | H52: -1 | O52: 22 | Q52: - - - | T52: - - - | AS52: 21 | AT52: 0.00496834992 | AU52: 0.01210361305 | AV52: 0.0006727744343
A53: 23 | B53: -1 | C53: -1 | D53: -1 | E53: -1 | F53: -1 | G53: -1 | H53: -1 | O53: 23 | Q53: - - - | T53: - - - | AS53: 22 | AT53: 0.005204938012 | AU53: 0.01328378394 | AV53: 0.0007719042697
A54: 24 | B54: -1 | C54: -1 | D54: -1 | E54: -1 | F54: -1 | G54: -1 | H54: -1 | O54: 24 | Q54: - - - | T54: - - - | AS54: 23 | AT54: 0.005441526103 | AU54: 0.0145188465 | AV54: 0.0008801751763
A55: 25 | B55: -1 | C55: -1 | D55: -1 | E55: -1 | F55: -1 | G55: -1 | H55: -1 | O55: 25 | Q55: - - - | T55: - - - | AS55: 24 | AT55: 0.005678114195 | AU55: 0.01580880072 | AV55: 0.0009979644337
A56: 26 | B56: -1 | C56: -1 | D56: -1 | E56: -1 | F56: -1 | G56: -1 | H56: -1 | O56: 26 | Q56: - - - | T56: - - - | AS56: 25 | AT56: 0.005914702286 | AU56: 0.01715364662 | AV56: 0.00112564621
A57: 27 | B57: -1 | C57: -1 | D57: -1 | E57: -1 | F57: -1 | G57: -1 | H57: -1 | O57: 27 | Q57: - - - | T57: - - - | AS57: 26 | AT57: 0.006151290378 | AU57: 0.01855338418 | AV57: 0.001263591589
A58: 28 | B58: -1 | C58: -1 | D58: -1 | E58: -1 | F58: -1 | G58: -1 | H58: -1 | O58: 28 | Q58: - - - | T58: - - - | AS58: 27 | AT58: 0.006387878469 | AU58: 0.02000801341 | AV58: 0.001412168592
A59: 29 | B59: -1 | C59: -1 | D59: -1 | E59: -1 | F59: -1 | G59: -1 | H59: -1 | O59: 29 | Q59: - - - | T59: - - - | AS59: 28 | AT59: 0.006624466561 | AU59: 0.02151753432 | AV59: 0.001571742208
A60: 30 | B60: -1 | C60: -1 | D60: -1 | E60: -1 | F60: -1 | G60: -1 | H60: -1 | O60: 30 | Q60: - - - | T60: - - - | AS60: 29 | AT60: 0.006861054652 | AU60: 0.02308194689 | AV60: 0.001742674414
A61: 31 | B61: -1 | C61: -1 | D61: -1 | E61: -1 | F61: -1 | G61: -1 | H61: -1 | O61: 31 | Q61: - - - | T61: - - - | AS61: 30 | AT61: 0.007097642744 | AU61: 0.02470125113 | AV61: 0.001925324203
A62: 32 | B62: -1 | C62: -1 | D62: -1 | E62: -1 | F62: -1 | G62: -1 | H62: -1 | O62: 32 | Q62: - - - | T62: - - - | AS62: 31 | AT62: 0.007334230835 | AU62: 0.02637544704 | AV62: 0.002120047609
A63: 33 | B63: -1 | C63: -1 | D63: -1 | E63: -1 | F63: -1 | G63: -1 | H63: -1 | O63: 33 | Q63: - - - | T63: - - - | AS63: 32 | AT63: 0.007570818926 | AU63: 0.02810453462 | AV63: 0.002327197727
A64: 34 | B64: -1 | C64: -1 | D64: -1 | E64: -1 | F64: -1 | G64: -1 | H64: -1 | O64: 34 | Q64: - - - | T64: - - - | AS64: 33 | AT64: 0.007807407018 | AU64: 0.02988851387 | AV64: 0.002547124742
A65: 35 | B65: -1 | C65: -1 | D65: -1 | E65: -1 | F65: -1 | G65: -1 | H65: -1 | O65: 35 | Q65: - - - | T65: - - - | AS65: 34 | AT65: 0.008043995109 | AU65: 0.03172738478 | AV65: 0.002780175951
A66: 36 | B66: -1 | C66: -1 | D66: -1 | E66: -1 | F66: -1 | G66: -1 | H66: -1 | O66: 36 | Q66: - - - | T66: - - - | AS66: 35 | AT66: 0.008280583201 | AU66: 0.03362114737 | AV66: 0.003026695788
A67: 37 | B67: -1 | C67: -1 | D67: -1 | E67: -1 | F67: -1 | G67: -1 | H67: -1 | O67: 37 | Q67: - - - | T67: - - - | AS67: 36 | AT67: 0.008517171292 | AU67: 0.03556980163 | AV67: 0.003287025844
A68: 38 | B68: -1 | C68: -1 | D68: -1 | E68: -1 | F68: -1 | G68: -1 | H68: -1 | O68: 38 | Q68: - - - | T68: - - - | AS68: 37 | AT68: 0.008753759384 | AU68: 0.03757334755 | AV68: 0.003561504896
A69: 39 | B69: -1 | C69: -1 | D69: -1 | E69: -1 | F69: -1 | G69: -1 | H69: -1 | O69: 39 | Q69: - - - | T69: - - - | AS69: 38 | AT69: 0.008990347475 | AU69: 0.03963178515 | AV69: 0.003850468925
A70: 40 | B70: -1 | C70: -1 | D70: -1 | E70: -1 | F70: -1 | G70: -1 | H70: -1 | O70: 40 | Q70: - - - | T70: - - - | AS70: 39 | AT70: 0.009226935567 | AU70: 0.04174511441 | AV70: 0.004154251144
A71: 41 | B71: -1 | C71: -1 | D71: -1 | E71: -1 | F71: -1 | G71: -1 | H71: -1 | O71: 41 | Q71: - - - | T71: - - - | AS71: 40 | AT71: 0.009463523658 | AU71: 0.04391333534 | AV71: 0.004473182015
A72: 42 | B72: -1 | C72: -1 | D72: -1 | E72: -1 | F72: -1 | G72: -1 | H72: -1 | O72: 42 | Q72: - - - | T72: - - - | AS72: 41 | AT72: 0.00970011175 | AU72: 0.04613644794 | AV72: 0.004807589277
A73: 43 | B73: -1 | C73: -1 | D73: -1 | E73: -1 | F73: -1 | G73: -1 | H73: -1 | O73: 43 | Q73: - - - | T73: - - - | AS73: 42 | AT73: 0.009936699841 | AU73: 0.04841445221 | AV73: 0.005157797965
A74: 44 | B74: -1 | C74: -1 | D74: -1 | E74: -1 | F74: -1 | G74: -1 | H74: -1 | O74: 44 | Q74: - - - | T74: - - - | AS74: 43 | AT74: 0.01017328793 | AU74: 0.05074734815 | AV74: 0.005524130436
A75: 45 | B75: -1 | C75: -1 | D75: -1 | E75: -1 | F75: -1 | G75: -1 | H75: -1 | O75: 45 | Q75: - - - | T75: - - - | AS75: 44 | AT75: 0.01040987602 | AU75: 0.05313513576 | AV75: 0.005906906386
A76: 46 | B76: -1 | C76: -1 | D76: -1 | E76: -1 | F76: -1 | G76: -1 | H76: -1 | O76: 46 | Q76: - - - | T76: - - - | AS76: 45 | AT76: 0.01064646412 | AU76: 0.05557781504 | AV76: 0.006306442875
A77: 47 | B77: -1 | C77: -1 | D77: -1 | E77: -1 | F77: -1 | G77: -1 | H77: -1 | O77: 47 | Q77: - - - | T77: - - - | AS77: 46 | AT77: 0.01088305221 | AU77: 0.05807538599 | AV77: 0.006723054351
A78: 48 | B78: -1 | C78: -1 | D78: -1 | E78: -1 | F78: -1 | G78: -1 | H78: -1 | O78: 48 | Q78: - - - | T78: - - - | AS78: 47 | AT78: 0.0111196403 | AU78: 0.06062784861 | AV78: 0.007157052666
A79: 49 | B79: -1 | C79: -1 | D79: -1 | E79: -1 | F79: -1 | G79: -1 | H79: -1 | O79: 49 | Q79: - - - | T79: - - - | AS79: 48 | AT79: 0.01135622839 | AU79: 0.06323520289 | AV79: 0.007608747101
A80: 50 | B80: -1 | C80: -1 | D80: -1 | E80: -1 | F80: -1 | G80: -1 | H80: -1 | O80: 50 | Q80: - - - | T80: - - - | AS80: 49 | AT80: 0.01159281648 | AU80: 0.06589744885 | AV80: 0.008078444387
A81: 51 | B81: -1 | C81: -1 | D81: -1 | E81: -1 | F81: -1 | G81: -1 | H81: -1 | O81: 51 | Q81: - - - | AS81: 50 | AT81: 0.01182940457 | AU81: 0.06861458647 | AV81: 0.008566448726
A82: 52 | B82: -1 | C82: -1 | D82: -1 | E82: -1 | F82: -1 | G82: -1 | H82: -1 | O82: 52 | Q82: - - - | AS82: 51 | AT82: 0.01206599266 | AU82: 0.07138661576 | AV82: 0.00907306181
A83: 53 | B83: -1 | C83: -1 | D83: -1 | E83: -1 | F83: -1 | G83: -1 | H83: -1 | O83: 53 | Q83: - - - | AS83: 52 | AT83: 0.01230258076 | AU83: 0.07421353673 | AV83: 0.009598582845
A84: 54 | B84: -1 | C84: -1 | D84: -1 | E84: -1 | F84: -1 | G84: -1 | H84: -1 | O84: 54 | Q84: - - - | AS84: 53 | AT84: 0.01253916885 | AU84: 0.07709534936 | AV84: 0.01014330857
A85: 55 | B85: -1 | C85: -1 | D85: -1 | E85: -1 | F85: -1 | G85: -1 | H85: -1 | O85: 55 | Q85: - - - | AS85: 54 | AT85: 0.01277575694 | AU85: 0.08003205366 | AV85: 0.01070753327
A86: 56 | B86: -1 | C86: -1 | D86: -1 | E86: -1 | F86: -1 | G86: -1 | H86: -1 | O86: 56 | Q86: - - - | AS86: 55 | AT86: 0.01301234503 | AU86: 0.08302364963 | AV86: 0.01129154881
A87: 57 | B87: -1 | C87: -1 | D87: -1 | E87: -1 | F87: -1 | G87: -1 | H87: -1 | O87: 57 | Q87: - - - | AS87: 56 | AT87: 0.01324893312 | AU87: 0.08607013727 | AV87: 0.01189564466
A88: 58 | B88: -1 | C88: -1 | D88: -1 | E88: -1 | F88: -1 | G88: -1 | H88: -1 | O88: 58 | Q88: - - - | AS88: 57 | AT88: 0.01348552121 | AU88: 0.08917151658 | AV88: 0.01252010787
A89: 59 | B89: -1 | C89: -1 | D89: -1 | E89: -1 | F89: -1 | G89: -1 | H89: -1 | O89: 59 | Q89: - - - | AS89: 58 | AT89: 0.0137221093 | AU89: 0.09232778755 | AV89: 0.01316522315
A90: 60 | B90: -1 | C90: -1 | D90: -1 | E90: -1 | F90: -1 | G90: -1 | H90: -1 | O90: 60 | Q90: - - - | AS90: 59 | AT90: 0.0139586974 | AU90: 0.0955389502 | AV90: 0.01383127286
A91: 61 | B91: -1 | C91: -1 | D91: -1 | E91: -1 | F91: -1 | G91: -1 | H91: -1 | O91: 61 | Q91: - - - | AS91: 60 | AT91: 0.01419528549 | AU91: 0.09880500452 | AV91: 0.01451853703
A92: 62 | B92: -1 | C92: -1 | D92: -1 | E92: -1 | F92: -1 | G92: -1 | H92: -1 | O92: 62 | Q92: - - - | AS92: 61 | AT92: 0.01443187358 | AU92: 0.1021259505 | AV92: 0.01522729336
A93: 63 | B93: -1 | C93: -1 | D93: -1 | E93: -1 | F93: -1 | G93: -1 | H93: -1 | O93: 63 | Q93: - - - | AS93: 62 | AT93: 0.01466846167 | AU93: 0.1055017882 | AV93: 0.01595781729
A94: 64 | B94: -1 | C94: -1 | D94: -1 | E94: -1 | F94: -1 | G94: -1 | H94: -1 | O94: 64 | Q94: - - - | AS94: 63 | AT94: 0.01490504976 | AU94: 0.1089325175 | AV94: 0.01671038198
A95: =A94+1 -> 65 | B95: -1 | C95: -1 | D95: -1 | E95: -1 | F95: -1 | G95: -1 | H95: -1 | O95: 65 | Q95: - - - | AS95: 64 | AT95: =$AP$18/$N$7*AS95 -> 0.01514163785 | AU95: 0.1124181385 | AV95: 0.01748525831
A96: 66 | B96: -1 | C96: -1 | D96: -1 | E96: -1 | F96: -1 | G96: -1 | H96: -1 | O96: 66 | Q96: - - - | AS96: 65 | AT96: 0.01537822594 | AU96: =IF(($N$4*AT96^2/2)<=$AP$13,($N$4*AT96^2/2), IF(($AP$13+$N$6*(AT96-$AP$12))<=$AP$17, ($AP$13+$N$6*(AT96-$AP$12)), IF(AU95<$D$14, ($AP$17+($N$6-$N$5*(AT96-$AP$16)/2)*(AT96-$AP$16)), $D$14))) -> 0.1159586511 | AV96: 0.01828271498
A97: 67 | B97: -1 | C97: -1 | D97: -1 | E97: -1 | F97: -1 | G97: -1 | H97: -1 | O97: =O96+1 -> 67 | Q97: - - - | AS97: =AS96+1 -> 66 | AT97: 0.01561481404 | AU97: 0.1195540555 | AV97: =( $AP$6*AU97 + $AP$7*AU96 + $AP$9*AV96 )/$AP$8 -> 0.01910301842
A98: 68 | B98: -1 | C98: -1 | D98: -1 | E98: -1 | F98: -1 | G98: -1 | H98: -1 | O98: 68 | Q98: - - - | AS98: 67 | AT98: 0.01585140213 | AU98: 0.1232043515 | AV98: 0.0199464329
A99: 69 | B99: -1 | C99: -1 | D99: -1 | E99: -1 | F99: -1 | G99: -1 | H99: -1 | O99: 69 | Q99: - - - | AS99: 68 | AT99: 0.01608799022 | AU99: 0.1269095391 | AV99: 0.02081322049
A100: 70 | B100: -1 | C100: -1 | D100: -1 | E100: -1 | F100: -1 | G100: -1 | H100: -1 | O100: 70 | Q100: - - - | AS100: 69 | AT100: 0.01632457831 | AU100: 0.1306696185 | AV100: 0.02170364111
A101: 71 | B101: -1 | C101: -1 | D101: -1 | E101: -1 | F101: -1 | G101: -1 | H101: -1 | O101: 71 | Q101: - - - | AS101: 70 | AT101: 0.0165611664 | AU101: 0.1344845895 | AV101: 0.02261795253
A102: 72 | B102: -1 | C102: -1 | D102: -1 | E102: -1 | F102: -1 | G102: -1 | H102: -1 | O102: 72 | Q102: - - - | AS102: 71 | AT102: 0.01679775449 | AU102: 0.1383544522 | AV102: 0.02355641039
A103: 73 | B103: -1 | C103: -1 | D103: -1 | E103: -1 | F103: -1 | G103: -1 | H103: -1 | O103: 73 | Q103: - - - | AS103: 72 | AT103: 0.01703434258 | AU103: 0.1422792065 | AV103: 0.02451926824
A104: 74 | B104: -1 | C104: -1 | D104: -1 | E104: -1 | F104: -1 | G104: -1 | H104: -1 | O104: 74 | Q104: - - - | AS104: 73 | AT104: 0.01727093068 | AU104: 0.1462588525 | AV104: 0.02550677753
A105: 75 | B105: -1 | C105: -1 | D105: -1 | E105: -1 | F105: -1 | G105: -1 | H105: -1 | O105: 75 | Q105: - - - | AS105: 74 | AT105: 0.01750751877 | AU105: 0.1502933902 | AV105: 0.02651918762
A106: 76 | B106: -1 | C106: -1 | D106: -1 | E106: -1 | F106: -1 | G106: -1 | H106: -1 | O106: 76 | Q106: - - - | AS106: 75 | AT106: 0.01774410686 | AU106: 0.1543828196 | AV106: 0.02755674584
A107: 77 | B107: -1 | C107: -1 | D107: -1 | E107: -1 | F107: -1 | G107: -1 | H107: -1 | O107: 77 | Q107: - - - | AS107: 76 | AT107: 0.01798069495 | AU107: 0.1585271406 | AV107: 0.02861969746
A108: 78 | B108: -1 | C108: -1 | D108: -1 | E108: -1 | F108: -1 | G108: -1 | H108: -1 | O108: 78 | Q108: - - - | AS108: 77 | AT108: 0.01821728304 | AU108: 0.1627263533 | AV108: 0.02970828575
A109: 79 | B109: -1 | C109: -1 | D109: -1 | E109: -1 | F109: -1 | G109: -1 | H109: -1 | O109: 79 | Q109: - - - | AS109: 78 | AT109: 0.01845387113 | AU109: 0.1669804576 | AV109: 0.03082275194
A110: 80 | B110: -1 | C110: -1 | D110: -1 | E110: -1 | F110: -1 | G110: -1 | H110: -1 | O110: 80 | Q110: - - - | AS110: 79 | AT110: 0.01869045922 | AU110: 0.1712894537 | AV110: 0.0319633353
A111: 81 | B111: -1 | C111: -1 | D111: -1 | E111: -1 | F111: -1 | G111: -1 | H111: -1 | O111: 81 | Q111: - - - | AS111: 80 | AT111: 0.01892704732 | AU111: 0.1756533414 | AV111: 0.03313027312
A112: 82 | B112: -1 | C112: -1 | D112: -1 | E112: -1 | F112: -1 | G112: -1 | H112: -1 | O112: 82 | Q112: - - - | AS112: 81 | AT112: 0.01916363541 | AU112: 0.1800721207 | AV112: 0.03432380073
A113: 83 | B113: -1 | C113: -1 | D113: -1 | E113: -1 | F113: -1 | G113: -1 | H113: -1 | O113: 83 | Q113: - - - | AS113: 82 | AT113: 0.0194002235 | AU113: 0.1845457918 | AV113: 0.03554415151
A114: 84 | B114: -1 | C114: -1 | D114: -1 | E114: -1 | F114: -1 | G114: -1 | H114: -1 | O114: 84 | Q114: - - - | AS114: 83 | AT114: 0.01963681159 | AU114: 0.1890743545 | AV114: 0.03679155694
A115: 85 | B115: -1 | C115: -1 | D115: -1 | E115: -1 | F115: -1 | G115: -1 | H115: -1 | O115: 85 | Q115: - - - | AS115: 84 | AT115: 0.01987339968 | AU115: 0.1936578089 | AV115: 0.03806624657
A116: 86 | B116: -1 | C116: -1 | D116: -1 | E116: -1 | F116: -1 | G116: -1 | H116: -1 | O116: 86 | Q116: - - - | AS116: 85 | AT116: 0.02010998777 | AU116: 0.1982961549 | AV116: 0.03936844805
A117: 87 | B117: -1 | C117: -1 | D117: -1 | E117: -1 | F117: -1 | G117: -1 | H117: -1 | O117: 87 | Q117: - - - | AS117: 86 | AT117: 0.02034657586 | AU117: 0.2029893926 | AV117: 0.04069838719
A118: 88 | B118: -1 | C118: -1 | D118: -1 | E118: -1 | F118: -1 | G118: -1 | H118: -1 | O118: 88 | Q118: - - - | AS118: 87 | AT118: 0.02058316396 | AU118: 0.207737522 | AV118: 0.0420562879
A119: 89 | B119: -1 | C119: -1 | D119: -1 | E119: -1 | F119: -1 | G119: -1 | H119: -1 | O119: 89 | Q119: - - - | AS119: 88 | AT119: 0.02081975205 | AU119: 0.2125405431 | AV119: 0.04344237226
A120: 90 | B120: -1 | C120: -1 | D120: -1 | E120: -1 | F120: -1 | G120: -1 | H120: -1 | O120: 90 | Q120: - - - | AS120: 89 | AT120: 0.02105634014 | AU120: 0.2173984558 | AV120: 0.04485686051
A121: 91 | B121: -1 | C121: -1 | D121: -1 | E121: -1 | F121: -1 | G121: -1 | H121: -1 | O121: 91 | Q121: - - - | AS121: 90 | AT121: 0.02129292823 | AU121: 0.2223112602 | AV121: 0.04629997109
A122: 92 | B122: -1 | C122: -1 | D122: -1 | E122: -1 | F122: -1 | G122: -1 | H122: -1 | O122: 92 | Q122: - - - | AS122: 91 | AT122: 0.02152951632 | AU122: 0.2272789562 | AV122: 0.04777192062
A123: 93 | B123: -1 | C123: -1 | D123: -1 | E123: -1 | F123: -1 | G123: -1 | H123: -1 | O123: 93 | Q123: - - - | AS123: 92 | AT123: 0.02176610441 | AU123: 0.232301544 | AV123: 0.04927292395
A124: 94 | B124: -1 | C124: -1 | D124: -1 | E124: -1 | F124: -1 | G124: -1 | H124: -1 | O124: 94 | Q124: - - - | AS124: 93 | AT124: 0.02200269251 | AU124: 0.2373790234 | AV124: 0.05080319415
A125: 95 | B125: -1 | C125: -1 | D125: -1 | E125: -1 | F125: -1 | G125: -1 | H125: -1 | O125: 95 | Q125: - - - | AS125: 94 | AT125: 0.0222392806 | AU125: 0.2425113944 | AV125: 0.05236294253
A126: 96 | B126: -1 | C126: -1 | D126: -1 | E126: -1 | F126: -1 | G126: -1 | H126: -1 | O126: 96 | Q126: - - - | AS126: 95 | AT126: 0.02247586869 | AU126: 0.2476986572 | AV126: 0.05395237865
A127: 97 | B127: -1 | C127: -1 | D127: -1 | E127: -1 | F127: -1 | G127: -1 | H127: -1 | O127: 97 | Q127: - - - | AS127: 96 | AT127: 0.02271245678 | AU127: 0.2529408116 | AV127: 0.05557171038
A128: 98 | B128: -1 | C128: -1 | D128: -1 | E128: -1 | F128: -1 | G128: -1 | H128: -1 | O128: 98 | Q128: - - - | AS128: 97 | AT128: 0.02294904487 | AU128: 0.2582378576 | AV128: 0.05722114382
A129: 99 | B129: -1 | C129: -1 | D129: -1 | E129: -1 | F129: -1 | G129: -1 | H129: -1 | O129: 99 | Q129: - - - | AS129: 98 | AT129: 0.02318563296 | AU129: 0.2635897954 | AV129: 0.05890088341
A130: 100 | B130: -1 | C130: -1 | D130: -1 | E130: -1 | F130: -1 | G130: -1 | H130: -1 | O130: 100 | Q130: - - - | AS130: 99 | AT130: 0.02342222105 | AU130: 0.2689966248 | AV130: 0.0606111319
A131: 101 | B131: -1 | C131: -1 | D131: -1 | E131: -1 | F131: -1 | G131: -1 | H131: -1 | O131: 101 | Q131: - - - | AS131: 100 | AT131: 0.02365880915 | AU131: 0.2744583459 | AV131: 0.06235209036
A132: 102 | B132: -1 | C132: -1 | D132: -1 | E132: -1 | F132: -1 | G132: -1 | H132: -1 | O132: 102 | Q132: - - - | AS132: =AS131+1 -> 101 | AT132: 0.02389539724 | AU132: 0.2799749586 | AV132: 0.06412395819
A133: 103 | B133: -1 | C133: -1 | D133: -1 | E133: -1 | F133: -1 | G133: -1 | H133: -1 | O133: 103 | Q133: - - - | AS133: 102 | AT133: 0.02413198533 | AU133: 0.2855464631 | AV133: 0.06592693317
A134: 104 | B134: -1 | C134: -1 | D134: -1 | E134: -1 | F134: -1 | G134: -1 | H134: -1 | O134: 104 | Q134: - - - | AS134: 103 | AT134: 0.02436857342 | AU134: 0.2911728591 | AV134: 0.06776121143
A135: 105 | B135: -1 | C135: -1 | D135: -1 | E135: -1 | F135: -1 | G135: -1 | H135: -1 | O135: 105 | Q135: - - - | AS135: 104 | AT135: 0.02460516151 | AU135: 0.2968541469 | AV135: 0.0696269875
A136: 106 | B136: -1 | C136: -1 | D136: -1 | E136: -1 | F136: -1 | G136: -1 | H136: -1 | O136: 106 | Q136: - - - | AS136: 105 | AT136: 0.0248417496 | AU136: 0.3025903263 | AV136: 0.07152445429
A137: 107 | B137: -1 | C137: -1 | D137: -1 | E137: -1 | F137: -1 | G137: -1 | H137: -1 | AS137: 106 | AT137: 0.02507833769 | AU137: 0.3083813974 | AV137: 0.07345380312
A138: 108 | B138: -1 | C138: -1 | D138: -1 | E138: -1 | F138: -1 | G138: -1 | H138: -1 | AS138: 107 | AT138: 0.02531492579 | AU138: 0.3142273602 | AV138: 0.07541522375
A139: 109 | B139: -1 | C139: -1 | D139: -1 | E139: -1 | F139: -1 | G139: -1 | H139: -1 | AS139: 108 | AT139: 0.02555151388 | AU139: 0.3201282146 | AV139: 0.07740890436
A140: 110 | B140: -1 | C140: -1 | D140: -1 | E140: -1 | F140: -1 | G140: -1 | H140: -1 | AS140: 109 | AT140: 0.02578810197 | AU140: 0.3260839607 | AV140: 0.07943503157
A141: 111 | B141: -1 | C141: -1 | D141: -1 | E141: -1 | F141: -1 | G141: -1 | H141: -1 | AS141: 110 | AT141: 0.02602469006 | AU141: 0.3320945985 | AV141: 0.08149379048
A142: 112 | B142: -1 | C142: -1 | D142: -1 | E142: -1 | F142: -1 | G142: -1 | H142: -1 | AS142: 111 | AT142: 0.02626127815 | AU142: 0.338160128 | AV142: 0.08358536465
A143: 113 | B143: -1 | C143: -1 | D143: -1 | E143: -1 | F143: -1 | G143: -1 | H143: -1 | AS143: 112 | AT143: 0.02649786624 | AU143: 0.3442805491 | AV143: 0.08570993614
A144: 114 | B144: -1 | C144: -1 | D144: -1 | E144: -1 | F144: -1 | G144: -1 | H144: -1 | AS144: 113 | AT144: 0.02673445433 | AU144: 0.3504558619 | AV144: 0.0878676855
A145: 115 | B145: -1 | C145: -1 | D145: -1 | E145: -1 | F145: -1 | G145: -1 | H145: -1 | AS145: 114 | AT145: 0.02697104243 | AU145: 0.3566860663 | AV145: 0.09005879179
A146: 116 | B146: -1 | C146: -1 | D146: -1 | E146: -1 | F146: -1 | G146: -1 | H146: -1 | AS146: 115 | AT146: 0.02720763052 | AU146: 0.3629711624 | AV146: 0.09228343259
A147: 117 | B147: -1 | C147: -1 | D147: -1 | E147: -1 | F147: -1 | G147: -1 | H147: -1 | AS147: 116 | AT147: 0.02744421861 | AU147: 0.3693111502 | AV147: 0.09454178402
A148: 118 | B148: -1 | C148: -1 | D148: -1 | E148: -1 | F148: -1 | G148: -1 | H148: -1 | AS148: 117 | AT148: 0.0276808067 | AU148: 0.3757060297 | AV148: 0.09683402075
A149: 119 | B149: -1 | C149: -1 | D149: -1 | E149: -1 | F149: -1 | G149: -1 | H149: -1 | AS149: 118 | AT149: 0.02791739479 | AU149: 0.3821558008 | AV149: 0.09916031602
A150: 120 | B150: -1 | C150: -1 | D150: -1 | E150: -1 | F150: -1 | G150: -1 | H150: -1 | AS150: 119 | AT150: 0.02815398288 | AU150: 0.3886604636 | AV150: 0.1015208416
A151: 121 | B151: -1 | C151: -1 | D151: -1 | E151: -1 | F151: -1 | G151: -1 | H151: -1 | AS151: 120 | AT151: 0.02839057097 | AU151: 0.3952200181 | AV151: 0.1039157679
A152: 122 | B152: -1 | C152: -1 | D152: -1 | E152: -1 | F152: -1 | G152: -1 | H152: -1 | AS152: 121 | AT152: 0.02862715907 | AU152: 0.4018344642 | AV152: 0.1063452639
A153: 123 | B153: -1 | C153: -1 | D153: -1 | E153: -1 | F153: -1 | G153: -1 | H153: -1 | AS153: 122 | AT153: 0.02886374716 | AU153: 0.408503802 | AV153: 0.1088094972
A154: 124 | B154: -1 | C154: -1 | D154: -1 | E154: -1 | F154: -1 | G154: -1 | H154: -1 | AS154: 123 | AT154: 0.02910033525 | AU154: 0.4152280315 | AV154: 0.1113086339
A155: 125 | B155: -1 | C155: -1 | D155: -1 | E155: -1 | F155: -1 | G155: -1 | H155: -1 | AS155: 124 | AT155: 0.02933692334 | AU155: 0.4220071526 | AV155: 0.113842839
A156: 126 | B156: -1 | C156: -1 | D156: -1 | E156: -1 | F156: -1 | G156: -1 | H156: -1 | AS156: 125 | AT156: 0.02957351143 | AU156: 0.4288411654 | AV156: 0.1164122758
A157: 127 | B157: -1 | C157: -1 | D157: -1 | E157: -1 | F157: -1 | G157: -1 | H157: -1 | AS157: 126 | AT157: 0.02981009952 | AU157: 0.4357300699 | AV157: 0.1190171065
A158: 128 | B158: -1 | C158: -1 | D158: -1 | E158: -1 | F158: -1 | G158: -1 | H158: -1 | AS158: 127 | AT158: 0.03004668761 | AU158: 0.4426738661 | AV158: 0.1216574919
A159: =A158+1 -> 129 | B159: -1 | C159: -1 | D159: -1 | E159: -1 | F159: -1 | G159: -1 | H159: -1 | AS159: 128 | AT159: =$AP$18/$N$7*AS159 -> 0.03028327571 | AU159: 0.4496725539 | AV159: 0.1243335915
A160: 130 | B160: -1 | C160: -1 | D160: -1 | E160: -1 | F160: -1 | G160: -1 | H160: -1 | AS160: 129 | AT160: 0.0305198638 | AU160: =IF(($N$4*AT160^2/2)<=$AP$13,($N$4*AT160^2/2), IF(($AP$13+$N$6*(AT160-$AP$12))<=$AP$17, ($AP$13+$N$6*(AT160-$AP$12)), IF(AU159<$D$14, ($AP$17+($N$6-$N$5*(AT160-$AP$16)/2)*(AT160-$AP$16)), $D$14))) -> 0.4567261334 | AV160: 0.1270455634
A161: 131 | B161: -1 | C161: -1 | D161: -1 | E161: -1 | F161: -1 | G161: -1 | H161: -1 | AS161: 130 | AT161: 0.03075645189 | AU161: 0.4638346045 | AV161: =( $AP$6*AU161 + $AP$7*AU160 + $AP$9*AV160 )/$AP$8 -> 0.1297935644
A162: 132 | B162: -1 | C162: -1 | D162: -1 | E162: -1 | F162: -1 | G162: -1 | H162: -1 | AS162: 131 | AT162: 0.03099303998 | AU162: 0.4709979674 | AV162: 0.1325777501
A163: 133 | B163: -1 | C163: -1 | D163: -1 | E163: -1 | F163: -1 | G163: -1 | H163: -1 | AS163: 132 | AT163: 0.03122962807 | AU163: 0.4782162219 | AV163: 0.1353982747
A164: 134 | B164: -1 | C164: -1 | D164: -1 | E164: -1 | F164: -1 | G164: -1 | H164: -1 | AS164: 133 | AT164: 0.03146621616 | AU164: 0.485489368 | AV164: 0.1382552913
A165: 135 | B165: -1 | C165: -1 | D165: -1 | E165: -1 | F165: -1 | G165: -1 | H165: -1 | AS165: 134 | AT165: 0.03170280425 | AU165: 0.4928174059 | AV165: 0.1411489516
A166: 136 | B166: -1 | C166: -1 | D166: -1 | E166: -1 | F166: -1 | G166: -1 | H166: -1 | AS166: 135 | AT166: 0.03193939235 | AU166: 0.5002003354 | AV166: 0.1440794061
A167: 137 | B167: -1 | C167: -1 | D167: -1 | E167: -1 | F167: -1 | G167: -1 | H167: -1 | AS167: 136 | AT167: 0.03217598044 | AU167: 0.5076381565 | AV167: 0.1470468039
A168: 138 | B168: -1 | C168: -1 | D168: -1 | E168: -1 | F168: -1 | G168: -1 | H168: -1 | AS168: 137 | AT168: 0.03241256853 | AU168: 0.5151308694 | AV168: 0.1500512931
A169: 139 | B169: -1 | C169: -1 | D169: -1 | E169: -1 | F169: -1 | G169: -1 | H169: -1 | AS169: 138 | AT169: 0.03264915662 | AU169: 0.5226784739 | AV169: 0.1530930206
A170: 140 | B170: -1 | C170: -1 | D170: -1 | E170: -1 | F170: -1 | G170: -1 | H170: -1 | AS170: 139 | AT170: 0.03288574471 | AU170: 0.5302809701 | AV170: 0.1561721318
A171: 141 | B171: -1 | C171: -1 | D171: -1 | E171: -1 | F171: -1 | G171: -1 | H171: -1 | AS171: 140 | AT171: 0.0331223328 | AU171: 0.5379383579 | AV171: 0.1592887712
A172: 142 | B172: -1 | C172: -1 | D172: -1 | E172: -1 | F172: -1 | G172: -1 | H172: -1 | AS172: 141 | AT172: 0.03335892089 | AU172: 0.5456506374 | AV172: 0.1624430819
A173: 143 | B173: -1 | C173: -1 | D173: -1 | E173: -1 | F173: -1 | G173: -1 | H173: -1 | AS173: 142 | AT173: 0.03359550899 | AU173: 0.5534178086 | AV173: 0.165635206
A174: 144 | B174: -1 | C174: -1 | D174: -1 | E174: -1 | F174: -1 | G174: -1 | H174: -1 | AS174: 143 | AT174: 0.03383209708 | AU174: 0.5612398715 | AV174: 0.1688652843
A175: 145 | B175: -1 | C175: -1 | D175: -1 | E175: -1 | F175: -1 | G175: -1 | H175: -1 | AS175: 144 | AT175: 0.03406868517 | AU175: 0.569116826 | AV175: 0.1721334564
A176: 146 | B176: -1 | C176: -1 | D176: -1 | E176: -1 | F176: -1 | G176: -1 | H176: -1 | AS176: 145 | AT176: 0.03430527326 | AU176: 0.5770486722 | AV176: 0.1754398609
A177: 147 | B177: -1 | C177: -1 | D177: -1 | E177: -1 | F177: -1 | G177: -1 | H177: -1 | AS177: 146 | AT177: 0.03454186135 | AU177: 0.5850354101 | AV177: 0.1787846351
A178: 148 | B178: -1 | C178: -1 | D178: -1 | E178: -1 | F178: -1 | G178: -1 | H178: -1 | AS178: 147 | AT178: 0.03477844944 | AU178: 0.5930770396 | AV178: 0.1821679154
A179: 149 | B179: -1 | C179: -1 | D179: -1 | E179: -1 | F179: -1 | G179: -1 | H179: -1 | AS179: 148 | AT179: 0.03501503753 | AU179: 0.6011735608 | AV179: 0.1855898368
A180: 150 | B180: -1 | C180: -1 | D180: -1 | E180: -1 | F180: -1 | G180: -1 | H180: -1 | AS180: 149 | AT180: 0.03525162563 | AU180: 0.6093249737 | AV180: 0.1890505333
A181: 151 | B181: -1 | C181: -1 | D181: -1 | E181: -1 | F181: -1 | G181: -1 | H181: -1 | AS181: 150 | AT181: 0.03548821372 | AU181: 0.6175312782 | AV181: 0.1925501379
A182: 152 | B182: -1 | C182: -1 | D182: -1 | E182: -1 | F182: -1 | G182: -1 | H182: -1 | AS182: 151 | AT182: 0.03572480181 | AU182: 0.6257924744 | AV182: 0.1960887824
A183: 153 | B183: -1 | C183: -1 | D183: -1 | E183: -1 | F183: -1 | G183: -1 | H183: -1 | AS183: =AS182+1 -> 152 | AT183: 0.0359613899 | AU183: 0.6341085623 | AV183: 0.1996665974
A184: 154 | B184: -1 | C184: -1 | D184: -1 | E184: -1 | F184: -1 | G184: -1 | H184: -1 | AS184: 153 | AT184: 0.03619797799 | AU184: 0.6424795419 | AV184: 0.2032837126
A185: 155 | B185: -1 | C185: -1 | D185: -1 | E185: -1 | F185: -1 | G185: -1 | H185: -1 | AS185: 154 | AT185: 0.03643456608 | AU185: 0.6509054131 | AV185: 0.2069402566
A186: 156 | B186: -1 | C186: -1 | D186: -1 | E186: -1 | F186: -1 | G186: -1 | H186: -1 | AS186: 155 | AT186: 0.03667115418 | AU186: 0.659386176 | AV186: 0.2106363569
A187: 157 | B187: -1 | C187: -1 | D187: -1 | E187: -1 | F187: -1 | G187: -1 | H187: -1 | AS187: 156 | AT187: 0.03690774227 | AU187: 0.6679218305 | AV187: 0.21437214
A188: 158 | B188: -1 | C188: -1 | D188: -1 | E188: -1 | F188: -1 | G188: -1 | H188: -1 | AS188: 157 | AT188: 0.03714433036 | AU188: 0.6765123768 | AV188: 0.2181477313
A189: 159 | B189: -1 | C189: -1 | D189: -1 | E189: -1 | F189: -1 | G189: -1 | H189: -1 | AS189: 158 | AT189: 0.03738091845 | AU189: 0.6851578147 | AV189: 0.2219632551
A190: 160 | B190: -1 | C190: -1 | D190: -1 | E190: -1 | F190: -1 | G190: -1 | H190: -1 | AS190: 159 | AT190: 0.03761750654 | AU190: 0.6938581442 | AV190: 0.2258188349
A191: 161 | B191: -1 | C191: -1 | D191: -1 | E191: -1 | F191: -1 | G191: -1 | H191: -1 | AS191: 160 | AT191: 0.03785409463 | AU191: 0.7026133655 | AV191: 0.2297145929
A192: 162 | B192: -1 | C192: -1 | D192: -1 | E192: -1 | F192: -1 | G192: -1 | H192: -1 | AS192: 161 | AT192: 0.03809068272 | AU192: 0.7114234784 | AV192: 0.2336506505
A193: 163 | B193: -1 | C193: -1 | D193: -1 | E193: -1 | F193: -1 | G193: -1 | H193: -1 | AS193: 162 | AT193: 0.03832727082 | AU193: 0.7202884829 | AV193: 0.2376271281
A194: 164 | B194: -1 | C194: -1 | D194: -1 | E194: -1 | F194: -1 | G194: -1 | H194: -1 | AS194: 163 | AT194: 0.03856385891 | AU194: 0.7292083792 | AV194: 0.241644145
A195: 165 | B195: -1 | C195: -1 | D195: -1 | E195: -1 | F195: -1 | G195: -1 | H195: -1 | AS195: 164 | AT195: 0.038800447 | AU195: 0.7381831671 | AV195: 0.2457018195
A196: 166 | B196: -1 | C196: -1 | D196: -1 | E196: -1 | F196: -1 | G196: -1 | H196: -1 | AS196: 165 | AT196: 0.03903703509 | AU196: 0.7472128467 | AV196: 0.249800269
A197: 167 | B197: -1 | C197: -1 | D197: -1 | E197: -1 | F197: -1 | G197: -1 | H197: -1 | AS197: 166 | AT197: 0.03927362318 | AU197: 0.7562974179 | AV197: 0.2539396099
A198: 168 | B198: -1 | C198: -1 | D198: -1 | E198: -1 | F198: -1 | G198: -1 | H198: -1 | AS198: 167 | AT198: 0.03951021127 | AU198: 0.7654368808 | AV198: 0.2581199577
A199: 169 | B199: -1 | C199: -1 | D199: -1 | E199: -1 | F199: -1 | G199: -1 | H199: -1 | AS199: 168 | AT199: 0.03974679936 | AU199: 0.7746312354 | AV199: 0.2623414269
A200: 170 | B200: -1 | C200: -1 | D200: -1 | E200: -1 | F200: -1 | G200: -1 | H200: -1 | AS200: 169 | AT200: 0.03998338746 | AU200: 0.7838804817 | AV200: 0.266604131
A201: 171 | B201: -1 | C201: -1 | D201: -1 | E201: -1 | F201: -1 | G201: -1 | H201: -1 | AS201: 170 | AT201: 0.04021997555 | AU201: 0.7931846196 | AV201: 0.2709081827
A202: 172 | B202: -1 | C202: -1 | D202: -1 | E202: -1 | F202: -1 | G202: -1 | H202: -1 | AS202: 171 | AT202: 0.04045656364 | AU202: 0.8025436492 | AV202: 0.2752536936
A203: 173 | B203: -1 | C203: -1 | D203: -1 | E203: -1 | F203: -1 | G203: -1 | H203: -1 | AS203: 172 | AT203: 0.04069315173 | AU203: 0.8119575705 | AV203: 0.2796407745
... 922 more rows

Sheet DataSerch (hidden)
A1: 選択型式 | B1: メカ機種データレコード | M1: :$18 | N1: ：「メカ機種データ」範囲検索
A2: =CycleTime!C6 -> RCA-SA4C-20 | B2: № | C2: =ModelData!$B$2 -> ｱｸﾁｭｴｰﾀ型式 | H2: =ModelData!$C$2 -> 最小ｽﾄﾛｰｸ | I2: =ModelData!$D$2 -> 最大ｽﾄﾛｰｸ | J2: =ModelData!$E$2 -> 動作種別 | N2: ：「モータ機種データ」範囲検索
B3: =MATCH(A2,ModelData!$B$4:$B$18,0) -> 1 | C3: =LOOKUP(B3,ModelData!$A$4:$A$18,ModelData!$B$4:$B$18) -> RCA-SA4C-20 | H3: =LOOKUP(B3,ModelData!$A$4:$A$18,ModelData!$C$4:$C$18) -> 50 | I3: =LOOKUP(B3,ModelData!$A$4:$A$18,ModelData!$D$4:$D$18) -> 400 | J3: =LOOKUP(B3,ModelData!$A$4:$A$18,ModelData!$E$4:$E$18) -> 0 | M3: :$50 | N3: ：「リードデータ」範囲検索
A4: リード | E4: [kg] | F4: [mm] | G4: [mm] | H4: [mm] | I4: [mm] | J4: 0/1 | K4: [K] | M4: :$100 | N4: ：「ストロークデータ」範囲検索
A5: =CycleTime!C8 -> 2.5 | H5: =H3 -> 50 | I5: =I3 -> 400 | J5: =J3 -> 0 | M5: :$446 | N5: ：「搬送負荷データ」範囲検索
M6: :$446 | N6: ：「加減速・速度データ」範囲検索
A7: ストローク | B7: モータ機種レコード
A8: =CycleTime!C10 -> 50
A10: 設置姿勢 | D10: [Nm/A] | E10: [A] | F10: [kgm^2] | G10: [Nm] | H10: [Nm] | I10: [rad/s] | J10: [rad/s] | K10: [rad/s] | L10: [Nm/(rad/s)] | M10: [K] | N10: [K] | O10: [s]
A11: =IF(CycleTime!C12=CycleTime!AE20,0,1) -> 0
A13: 搬送負荷質量 | B13: リレーション | F13: リードデータレコード | I13: =LOOKUP(C15,LeadData!$A$4:$A$50,LeadData!$J$4:$J$50) -> RCA-SA4C-20
A14: =CycleTime!B31 -> 1 | C14: ﾘｰﾄﾞ№ | D14: ｽﾄﾛｰｸ№ | E14: 負荷№ | F14: =LeadData!$B$2 -> ﾘｰﾄﾞ長 | H14: =LeadData!$C$2 -> 水平定格加速度 | I14: =LeadData!$D$2 -> 垂直定格加速度 | J14: =LeadData!$E$2 -> 水平最大加速度 | K14: =LeadData!$F$2 -> 垂直最大加速度 | O14: =LeadData!$G$2 -> ｷﾞｱ比分子 | P14: =LeadData!$H$2 -> ｷﾞｱ比分母 | R14: =LeadData!$I$2 -> ｽﾄﾛｰｸ刻み
B15: =ModelData!$F$2 -> リンク[0] | C15: =LOOKUP(B3,ModelData!$A$4:$A$18,ModelData!$F$4:$F$18) -> 1 | D15: =LOOKUP(B3,ModelData!$A$4:$A$18,ModelData!$G$4:$G$18) -> 1 | E15: =LOOKUP(B3,ModelData!$A$4:$A$18,ModelData!$H$4:$H$18) -> 1 | F15: =LOOKUP(C15,LeadData!$A$4:$A$50,LeadData!$B$4:$B$50) -> 2500 | H15: =LOOKUP(C15,LeadData!$A$4:$A$50,LeadData!$C$4:$C$50) -> 1961330 | I15: =LOOKUP(C15,LeadData!$A$4:$A$50,LeadData!$D$4:$D$50) -> 1961330 | J15: =LOOKUP(C15,LeadData!$A$4:$A$50,LeadData!$E$4:$E$50) -> 4903325 | K15: =LOOKUP(C15,LeadData!$A$4:$A$50,LeadData!$F$4:$F$50) -> 2941995 | O15: =LOOKUP(C15,LeadData!$A$4:$A$50,LeadData!$G$4:$G$50) -> 1 | P15: =LOOKUP(C15,LeadData!$A$4:$A$50,LeadData!$H$4:$H$50) -> 1 | R15: =LOOKUP(C15,LeadData!$A$4:$A$50,LeadData!$I$4:$I$50) -> 50
B16: =ModelData!$I$2 -> リンク[1] | C16: =LOOKUP(B3,ModelData!$A$4:$A$18,ModelData!$I$4:$I$18) -> 2 | D16: =LOOKUP(B3,ModelData!$A$4:$A$18,ModelData!$J$4:$J$18) -> 2 | E16: =LOOKUP(B3,ModelData!$A$4:$A$18,ModelData!$K$4:$K$18) -> 8 | F16: =LOOKUP(C16,LeadData!$A$4:$A$50,LeadData!$B$4:$B$50) -> 5000 | H16: =LOOKUP(C16,LeadData!$A$4:$A$50,LeadData!$C$4:$C$50) -> 2941995 | I16: =LOOKUP(C16,LeadData!$A$4:$A$50,LeadData!$D$4:$D$50) -> 2941995 | J16: =LOOKUP(C16,LeadData!$A$4:$A$50,LeadData!$E$4:$E$50) -> 11767980 | K16: =LOOKUP(C16,LeadData!$A$4:$A$50,LeadData!$F$4:$F$50) -> 9806650 | O16: =LOOKUP(C16,LeadData!$A$4:$A$50,LeadData!$G$4:$G$50) -> 1 | P16: =LOOKUP(C16,LeadData!$A$4:$A$50,LeadData!$H$4:$H$50) -> 1 | R16: =LOOKUP(C16,LeadData!$A$4:$A$50,LeadData!$I$4:$I$50) -> 50
B17: =ModelData!$L$2 -> リンク[2] | C17: =LOOKUP(B3,ModelData!$A$4:$A$18,ModelData!$L$4:$L$18) -> 3 | D17: =LOOKUP(B3,ModelData!$A$4:$A$18,ModelData!$M$4:$M$18) -> 3 | E17: =LOOKUP(B3,ModelData!$A$4:$A$18,ModelData!$N$4:$N$18) -> 28 | F17: =LOOKUP(C17,LeadData!$A$4:$A$50,LeadData!$B$4:$B$50) -> 10000 | H17: =LOOKUP(C17,LeadData!$A$4:$A$50,LeadData!$C$4:$C$50) -> 2941995 | I17: =LOOKUP(C17,LeadData!$A$4:$A$50,LeadData!$D$4:$D$50) -> 2941995 | J17: =LOOKUP(C17,LeadData!$A$4:$A$50,LeadData!$E$4:$E$50) -> 14709975 | K17: =LOOKUP(C17,LeadData!$A$4:$A$50,LeadData!$F$4:$F$50) -> 14709975 | O17: =LOOKUP(C17,LeadData!$A$4:$A$50,LeadData!$G$4:$G$50) -> 1 | P17: =LOOKUP(C17,LeadData!$A$4:$A$50,LeadData!$H$4:$H$50) -> 1 | R17: =LOOKUP(C17,LeadData!$A$4:$A$50,LeadData!$I$4:$I$50) -> 50
B18: =ModelData!$O$2 -> リンク[3] | C18: =LOOKUP(B3,ModelData!$A$4:$A$18,ModelData!$O$4:$O$18) -> -1 | D18: =LOOKUP(B3,ModelData!$A$4:$A$18,ModelData!$P$4:$P$18) -> -1 | E18: =LOOKUP(B3,ModelData!$A$4:$A$18,ModelData!$Q$4:$Q$18) -> -1 | F18: =LOOKUP(C18,LeadData!$A$4:$A$50,LeadData!$B$4:$B$50) ->  | H18: =LOOKUP(C18,LeadData!$A$4:$A$50,LeadData!$C$4:$C$50) ->  | I18: =LOOKUP(C18,LeadData!$A$4:$A$50,LeadData!$D$4:$D$50) ->  | J18: =LOOKUP(C18,LeadData!$A$4:$A$50,LeadData!$E$4:$E$50) ->  | K18: =LOOKUP(C18,LeadData!$A$4:$A$50,LeadData!$F$4:$F$50) ->  | O18: =LOOKUP(C18,LeadData!$A$4:$A$50,LeadData!$G$4:$G$50) ->  | P18: =LOOKUP(C18,LeadData!$A$4:$A$50,LeadData!$H$4:$H$50) ->  | R18: =LOOKUP(C18,LeadData!$A$4:$A$50,LeadData!$I$4:$I$50) -> 
B19: =ModelData!$R$2 -> リンク[4] | C19: =LOOKUP(B3,ModelData!$A$4:$A$18,ModelData!$R$4:$R$18) -> -1 | D19: =LOOKUP(B3,ModelData!$A$4:$A$18,ModelData!$S$4:$S$18) -> -1 | E19: =LOOKUP(B3,ModelData!$A$4:$A$18,ModelData!$T$4:$T$18) -> -1 | F19: =LOOKUP(C19,LeadData!$A$4:$A$50,LeadData!$B$4:$B$50) ->  | H19: =LOOKUP(C19,LeadData!$A$4:$A$50,LeadData!$C$4:$C$50) ->  | I19: =LOOKUP(C19,LeadData!$A$4:$A$50,LeadData!$D$4:$D$50) ->  | J19: =LOOKUP(C19,LeadData!$A$4:$A$50,LeadData!$E$4:$E$50) ->  | K19: =LOOKUP(C19,LeadData!$A$4:$A$50,LeadData!$F$4:$F$50) ->  | O19: =LOOKUP(C19,LeadData!$A$4:$A$50,LeadData!$G$4:$G$50) ->  | P19: =LOOKUP(C19,LeadData!$A$4:$A$50,LeadData!$H$4:$H$50) ->  | R19: =LOOKUP(C19,LeadData!$A$4:$A$50,LeadData!$I$4:$I$50) -> 
B20: =ModelData!$U$2 -> リンク[5] | C20: =LOOKUP(B3,ModelData!$A$4:$A$18,ModelData!$U$4:$U$18) -> -1 | D20: =LOOKUP(B3,ModelData!$A$4:$A$18,ModelData!$V$4:$V$18) -> -1 | E20: =LOOKUP(B3,ModelData!$A$4:$A$18,ModelData!$W$4:$W$18) -> -1 | F20: =LOOKUP(C20,LeadData!$A$4:$A$50,LeadData!$B$4:$B$50) ->  | H20: =LOOKUP(C20,LeadData!$A$4:$A$50,LeadData!$C$4:$C$50) ->  | I20: =LOOKUP(C20,LeadData!$A$4:$A$50,LeadData!$D$4:$D$50) ->  | J20: =LOOKUP(C20,LeadData!$A$4:$A$50,LeadData!$E$4:$E$50) ->  | K20: =LOOKUP(C20,LeadData!$A$4:$A$50,LeadData!$F$4:$F$50) ->  | O20: =LOOKUP(C20,LeadData!$A$4:$A$50,LeadData!$G$4:$G$50) ->  | P20: =LOOKUP(C20,LeadData!$A$4:$A$50,LeadData!$H$4:$H$50) ->  | R20: =LOOKUP(C20,LeadData!$A$4:$A$50,LeadData!$I$4:$I$50) -> 
B21: =ModelData!$X$2 -> リンク[6] | C21: =LOOKUP(B3,ModelData!$A$4:$A$18,ModelData!$X$4:$X$18) -> -1 | D21: =LOOKUP(B3,ModelData!$A$4:$A$18,ModelData!$Y$4:$Y$18) -> -1 | E21: =LOOKUP(B3,ModelData!$A$4:$A$18,ModelData!$Z$4:$Z$18) -> -1 | F21: =LOOKUP(C21,LeadData!$A$4:$A$50,LeadData!$B$4:$B$50) ->  | H21: =LOOKUP(C21,LeadData!$A$4:$A$50,LeadData!$C$4:$C$50) ->  | I21: =LOOKUP(C21,LeadData!$A$4:$A$50,LeadData!$D$4:$D$50) ->  | J21: =LOOKUP(C21,LeadData!$A$4:$A$50,LeadData!$E$4:$E$50) ->  | K21: =LOOKUP(C21,LeadData!$A$4:$A$50,LeadData!$F$4:$F$50) ->  | O21: =LOOKUP(C21,LeadData!$A$4:$A$50,LeadData!$G$4:$G$50) ->  | P21: =LOOKUP(C21,LeadData!$A$4:$A$50,LeadData!$H$4:$H$50) ->  | R21: =LOOKUP(C21,LeadData!$A$4:$A$50,LeadData!$I$4:$I$50) -> 
B22: =ModelData!$AA$2 -> リンク[7] | C22: =LOOKUP(B3,ModelData!$A$4:$A$18,ModelData!$AA$4:$AA$18) -> -1 | D22: =LOOKUP(B3,ModelData!$A$4:$A$18,ModelData!$AB$4:$AB$18) -> -1 | E22: =LOOKUP(B3,ModelData!$A$4:$A$18,ModelData!$AC$4:$AC$18) -> -1 | F22: =LOOKUP(C22,LeadData!$A$4:$A$50,LeadData!$B$4:$B$50) ->  | H22: =LOOKUP(C22,LeadData!$A$4:$A$50,LeadData!$C$4:$C$50) ->  | I22: =LOOKUP(C22,LeadData!$A$4:$A$50,LeadData!$D$4:$D$50) ->  | J22: =LOOKUP(C22,LeadData!$A$4:$A$50,LeadData!$E$4:$E$50) ->  | K22: =LOOKUP(C22,LeadData!$A$4:$A$50,LeadData!$F$4:$F$50) ->  | O22: =LOOKUP(C22,LeadData!$A$4:$A$50,LeadData!$G$4:$G$50) ->  | P22: =LOOKUP(C22,LeadData!$A$4:$A$50,LeadData!$H$4:$H$50) ->  | R22: =LOOKUP(C22,LeadData!$A$4:$A$50,LeadData!$I$4:$I$50) -> 
B23: リードリストとリレーション | F23: リードデータレコードの物理量変換
B24: ﾘｰﾄﾞﾘｽﾄ | D24: リンク | F24: =LeadData!$B$2 -> ﾘｰﾄﾞ長 | H24: =LeadData!$C$2 -> 水平定格加速度 | I24: =LeadData!$D$2 -> 垂直定格加速度 | J24: =LeadData!$E$2 -> 水平最大加速度 | K24: =LeadData!$F$2 -> 垂直最大加速度 | O24: =LeadData!$G$2 -> ｷﾞｱ比分子 | P24: =LeadData!$H$2 -> ｷﾞｱ比分母 | R24: =LeadData!$I$2 -> ｽﾄﾛｰｸ刻み
B25: № | C25: ﾃﾞｰﾀ | D25: =D14 -> ｽﾄﾛｰｸ№ | E25: =E14 -> 負荷№ | F25: [mm] | G25: [kgm^2] | H25: [m/s^2] | I25: [m/s^2] | J25: [m/s^2] | K25: [m/s^2] | L25: [Nm] | M25: [Nms] | N25: [Nm] | R25: [mm]
B26: 1 | C26: =IF(C15=-1,"- - -",IF(F26<=0,P26/O26,F26)) -> 2.5 | D26: =D15 -> 1 | E26: 1 | F26: =F15/1000 -> 2.5 | H26: =H15*0.000001 -> 1.96133 | I26: 1.96133 | J26: 4.903325 | K26: 2.941995 | O26: =O15 -> 1 | P26: =P15 -> 1 | R26: =R15 -> 50
B27: =B26+1 -> 2 | C27: 5 | D27: 2 | E27: 8 | F27: 5 | H27: 2.941995 | I27: 2.941995 | J27: 11.76798 | K27: 9.80665 | O27: =O16 -> 1 | P27: 1 | R27: =R16 -> 50
B28: =B27+1 -> 3 | C28: 10 | D28: 3 | E28: 28 | F28: 10 | H28: 2.941995 | I28: 2.941995 | J28: 14.709975 | K28: 14.709975 | O28: 1 | P28: 1 | R28: 50
B29: 4 | C29: - - - | D29: -1 | E29: -1
B30: 5 | C30: - - - | D30: -1 | E30: -1
B31: 6 | C31: - - - | D31: -1 | E31: -1
B32: 7 | C32: - - - | D32: -1 | E32: -1
B33: 8 | C33: - - - | D33: -1 | E33: -1
B35: リードリスト選択№ | D35: =MATCH(A5,C26:C33,0) -> 1 | E35: ストロークデータレコード | H35: =LOOKUP(C37,StrokeData!$A$4:$A$100,StrokeData!$M$4:$M$100) -> RCA-SA4C-20-2.5
B36: № | C36: stﾚｺｰﾄﾞ№ | D36: =StrokeData!$B$2 -> ｽﾄﾛｰｸ長 | E36: =StrokeData!$C$2 -> 有効ｽﾄﾛｰｸ補正 | G36: =StrokeData!$D$2 -> 基準ｹﾞｲﾝ用搬送質量 | H36: =StrokeData!$E$2 -> 水平可搬質量 | I36: =StrokeData!$F$2 -> 垂直可搬質量 | J36: =StrokeData!$G$2 -> 最大速度 | K36: =StrokeData!$H$2 -> 位置ｹﾞｲﾝ | L36: =StrokeData!$I$2 -> FFｹﾞｲﾝ | M36: =StrokeData!$J$2 -> 速度制御帯域 | S36: =StrokeData!$K$2 -> 前ﾃﾞｰﾀ№ | T36: =StrokeData!$L$2 -> 次ﾃﾞｰﾀ№
B37: 1 | C37: =LOOKUP(D35,B26:B33,D26:D33) -> 1 | D37: =LOOKUP(C37,StrokeData!$A$4:$A$100,StrokeData!$B$4:$B$100) -> 400 | E37: =LOOKUP(C37,StrokeData!$A$4:$A$100,StrokeData!$C$4:$C$100) -> 0 | G37: =LOOKUP(C37,StrokeData!$A$4:$A$100,StrokeData!$D$4:$D$100) -> 8000 | H37: =LOOKUP(C37,StrokeData!$A$4:$A$100,StrokeData!$E$4:$E$100) -> 11000 | I37: =LOOKUP(C37,StrokeData!$A$4:$A$100,StrokeData!$F$4:$F$100) -> 4500 | J37: =LOOKUP(C37,StrokeData!$A$4:$A$100,StrokeData!$G$4:$G$100) -> 165 | K37: =LOOKUP(C37,StrokeData!$A$4:$A$100,StrokeData!$H$4:$H$100) -> 35 | L37: =LOOKUP(C37,StrokeData!$A$4:$A$100,StrokeData!$I$4:$I$100) -> 0 | M37: =LOOKUP(C37,StrokeData!$A$4:$A$100,StrokeData!$J$4:$J$100) -> 140 | S37: =LOOKUP(C37,StrokeData!$A$4:$A$100,StrokeData!$K$4:$K$100) -> -1 | T37: =LOOKUP(C37,StrokeData!$A$4:$A$100,StrokeData!$L$4:$L$100) -> -1
B38: =B37+1 -> 2 | C38: =IF(C37=-1,-1,LOOKUP(C37,StrokeData!$A$4:$A$100,StrokeData!$L$4:$L$100)) -> -1 | D38: =LOOKUP(C38,StrokeData!$A$4:$A$100,StrokeData!$B$4:$B$100) ->  | E38: =LOOKUP(C38,StrokeData!$A$4:$A$100,StrokeData!$C$4:$C$100) ->  | G38: =LOOKUP(C38,StrokeData!$A$4:$A$100,StrokeData!$D$4:$D$100) ->  | H38: =LOOKUP(C38,StrokeData!$A$4:$A$100,StrokeData!$E$4:$E$100) ->  | I38: =LOOKUP(C38,StrokeData!$A$4:$A$100,StrokeData!$F$4:$F$100) ->  | J38: =LOOKUP(C38,StrokeData!$A$4:$A$100,StrokeData!$G$4:$G$100) ->  | K38: =LOOKUP(C38,StrokeData!$A$4:$A$100,StrokeData!$H$4:$H$100) ->  | L38: =LOOKUP(C38,StrokeData!$A$4:$A$100,StrokeData!$I$4:$I$100) ->  | M38: =LOOKUP(C38,StrokeData!$A$4:$A$100,StrokeData!$J$4:$J$100) ->  | S38: =LOOKUP(C38,StrokeData!$A$4:$A$100,StrokeData!$K$4:$K$100) ->  | T38: =LOOKUP(C38,StrokeData!$A$4:$A$100,StrokeData!$L$4:$L$100) -> 
B39: =B38+1 -> 3 | C39: =IF(C38=-1,-1,LOOKUP(C38,StrokeData!$A$4:$A$100,StrokeData!$L$4:$L$100)) -> -1 | D39: =LOOKUP(C39,StrokeData!$A$4:$A$100,StrokeData!$B$4:$B$100) ->  | E39: =LOOKUP(C39,StrokeData!$A$4:$A$100,StrokeData!$C$4:$C$100) ->  | G39: =LOOKUP(C39,StrokeData!$A$4:$A$100,StrokeData!$D$4:$D$100) ->  | H39: =LOOKUP(C39,StrokeData!$A$4:$A$100,StrokeData!$E$4:$E$100) ->  | I39: =LOOKUP(C39,StrokeData!$A$4:$A$100,StrokeData!$F$4:$F$100) ->  | J39: =LOOKUP(C39,StrokeData!$A$4:$A$100,StrokeData!$G$4:$G$100) ->  | K39: =LOOKUP(C39,StrokeData!$A$4:$A$100,StrokeData!$H$4:$H$100) ->  | L39: =LOOKUP(C39,StrokeData!$A$4:$A$100,StrokeData!$I$4:$I$100) ->  | M39: =LOOKUP(C39,StrokeData!$A$4:$A$100,StrokeData!$J$4:$J$100) ->  | S39: =LOOKUP(C39,StrokeData!$A$4:$A$100,StrokeData!$K$4:$K$100) ->  | T39: =LOOKUP(C39,StrokeData!$A$4:$A$100,StrokeData!$L$4:$L$100) -> 
B40: 4 | C40: =IF(C39=-1,-1,LOOKUP(C39,StrokeData!$A$4:$A$100,StrokeData!$L$4:$L$100)) -> -1 | D40: =LOOKUP(C40,StrokeData!$A$4:$A$100,StrokeData!$B$4:$B$100) ->  | E40: =LOOKUP(C40,StrokeData!$A$4:$A$100,StrokeData!$C$4:$C$100) ->  | G40: =LOOKUP(C40,StrokeData!$A$4:$A$100,StrokeData!$D$4:$D$100) ->  | H40: =LOOKUP(C40,StrokeData!$A$4:$A$100,StrokeData!$E$4:$E$100) ->  | I40: =LOOKUP(C40,StrokeData!$A$4:$A$100,StrokeData!$F$4:$F$100) ->  | J40: =LOOKUP(C40,StrokeData!$A$4:$A$100,StrokeData!$G$4:$G$100) ->  | K40: =LOOKUP(C40,StrokeData!$A$4:$A$100,StrokeData!$H$4:$H$100) ->  | L40: =LOOKUP(C40,StrokeData!$A$4:$A$100,StrokeData!$I$4:$I$100) ->  | M40: =LOOKUP(C40,StrokeData!$A$4:$A$100,StrokeData!$J$4:$J$100) ->  | S40: =LOOKUP(C40,StrokeData!$A$4:$A$100,StrokeData!$K$4:$K$100) ->  | T40: =LOOKUP(C40,StrokeData!$A$4:$A$100,StrokeData!$L$4:$L$100) -> 
B41: 5 | C41: =IF(C40=-1,-1,LOOKUP(C40,StrokeData!$A$4:$A$100,StrokeData!$L$4:$L$100)) -> -1 | D41: =LOOKUP(C41,StrokeData!$A$4:$A$100,StrokeData!$B$4:$B$100) ->  | E41: =LOOKUP(C41,StrokeData!$A$4:$A$100,StrokeData!$C$4:$C$100) ->  | G41: =LOOKUP(C41,StrokeData!$A$4:$A$100,StrokeData!$D$4:$D$100) ->  | H41: =LOOKUP(C41,StrokeData!$A$4:$A$100,StrokeData!$E$4:$E$100) ->  | I41: =LOOKUP(C41,StrokeData!$A$4:$A$100,StrokeData!$F$4:$F$100) ->  | J41: =LOOKUP(C41,StrokeData!$A$4:$A$100,StrokeData!$G$4:$G$100) ->  | K41: =LOOKUP(C41,StrokeData!$A$4:$A$100,StrokeData!$H$4:$H$100) ->  | L41: =LOOKUP(C41,StrokeData!$A$4:$A$100,StrokeData!$I$4:$I$100) ->  | M41: =LOOKUP(C41,StrokeData!$A$4:$A$100,StrokeData!$J$4:$J$100) ->  | S41: =LOOKUP(C41,StrokeData!$A$4:$A$100,StrokeData!$K$4:$K$100) ->  | T41: =LOOKUP(C41,StrokeData!$A$4:$A$100,StrokeData!$L$4:$L$100) -> 
B42: 6 | C42: =IF(C41=-1,-1,LOOKUP(C41,StrokeData!$A$4:$A$100,StrokeData!$L$4:$L$100)) -> -1 | D42: =LOOKUP(C42,StrokeData!$A$4:$A$100,StrokeData!$B$4:$B$100) ->  | E42: =LOOKUP(C42,StrokeData!$A$4:$A$100,StrokeData!$C$4:$C$100) ->  | G42: =LOOKUP(C42,StrokeData!$A$4:$A$100,StrokeData!$D$4:$D$100) ->  | H42: =LOOKUP(C42,StrokeData!$A$4:$A$100,StrokeData!$E$4:$E$100) ->  | I42: =LOOKUP(C42,StrokeData!$A$4:$A$100,StrokeData!$F$4:$F$100) ->  | J42: =LOOKUP(C42,StrokeData!$A$4:$A$100,StrokeData!$G$4:$G$100) ->  | K42: =LOOKUP(C42,StrokeData!$A$4:$A$100,StrokeData!$H$4:$H$100) ->  | L42: =LOOKUP(C42,StrokeData!$A$4:$A$100,StrokeData!$I$4:$I$100) ->  | M42: =LOOKUP(C42,StrokeData!$A$4:$A$100,StrokeData!$J$4:$J$100) ->  | S42: =LOOKUP(C42,StrokeData!$A$4:$A$100,StrokeData!$K$4:$K$100) ->  | T42: =LOOKUP(C42,StrokeData!$A$4:$A$100,StrokeData!$L$4:$L$100) -> 
B43: 7 | C43: =IF(C42=-1,-1,LOOKUP(C42,StrokeData!$A$4:$A$100,StrokeData!$L$4:$L$100)) -> -1 | D43: =LOOKUP(C43,StrokeData!$A$4:$A$100,StrokeData!$B$4:$B$100) ->  | E43: =LOOKUP(C43,StrokeData!$A$4:$A$100,StrokeData!$C$4:$C$100) ->  | G43: =LOOKUP(C43,StrokeData!$A$4:$A$100,StrokeData!$D$4:$D$100) ->  | H43: =LOOKUP(C43,StrokeData!$A$4:$A$100,StrokeData!$E$4:$E$100) ->  | I43: =LOOKUP(C43,StrokeData!$A$4:$A$100,StrokeData!$F$4:$F$100) ->  | J43: =LOOKUP(C43,StrokeData!$A$4:$A$100,StrokeData!$G$4:$G$100) ->  | K43: =LOOKUP(C43,StrokeData!$A$4:$A$100,StrokeData!$H$4:$H$100) ->  | L43: =LOOKUP(C43,StrokeData!$A$4:$A$100,StrokeData!$I$4:$I$100) ->  | M43: =LOOKUP(C43,StrokeData!$A$4:$A$100,StrokeData!$J$4:$J$100) ->  | S43: =LOOKUP(C43,StrokeData!$A$4:$A$100,StrokeData!$K$4:$K$100) ->  | T43: =LOOKUP(C43,StrokeData!$A$4:$A$100,StrokeData!$L$4:$L$100) -> 
B44: 8 | C44: =IF(C43=-1,-1,LOOKUP(C43,StrokeData!$A$4:$A$100,StrokeData!$L$4:$L$100)) -> -1 | D44: =LOOKUP(C44,StrokeData!$A$4:$A$100,StrokeData!$B$4:$B$100) ->  | E44: =LOOKUP(C44,StrokeData!$A$4:$A$100,StrokeData!$C$4:$C$100) ->  | G44: =LOOKUP(C44,StrokeData!$A$4:$A$100,StrokeData!$D$4:$D$100) ->  | H44: =LOOKUP(C44,StrokeData!$A$4:$A$100,StrokeData!$E$4:$E$100) ->  | I44: =LOOKUP(C44,StrokeData!$A$4:$A$100,StrokeData!$F$4:$F$100) ->  | J44: =LOOKUP(C44,StrokeData!$A$4:$A$100,StrokeData!$G$4:$G$100) ->  | K44: =LOOKUP(C44,StrokeData!$A$4:$A$100,StrokeData!$H$4:$H$100) ->  | L44: =LOOKUP(C44,StrokeData!$A$4:$A$100,StrokeData!$I$4:$I$100) ->  | M44: =LOOKUP(C44,StrokeData!$A$4:$A$100,StrokeData!$J$4:$J$100) ->  | S44: =LOOKUP(C44,StrokeData!$A$4:$A$100,StrokeData!$K$4:$K$100) ->  | T44: =LOOKUP(C44,StrokeData!$A$4:$A$100,StrokeData!$L$4:$L$100) -> 
B45: 9 | C45: =IF(C44=-1,-1,LOOKUP(C44,StrokeData!$A$4:$A$100,StrokeData!$L$4:$L$100)) -> -1 | D45: =LOOKUP(C45,StrokeData!$A$4:$A$100,StrokeData!$B$4:$B$100) ->  | E45: =LOOKUP(C45,StrokeData!$A$4:$A$100,StrokeData!$C$4:$C$100) ->  | G45: =LOOKUP(C45,StrokeData!$A$4:$A$100,StrokeData!$D$4:$D$100) ->  | H45: =LOOKUP(C45,StrokeData!$A$4:$A$100,StrokeData!$E$4:$E$100) ->  | I45: =LOOKUP(C45,StrokeData!$A$4:$A$100,StrokeData!$F$4:$F$100) ->  | J45: =LOOKUP(C45,StrokeData!$A$4:$A$100,StrokeData!$G$4:$G$100) ->  | K45: =LOOKUP(C45,StrokeData!$A$4:$A$100,StrokeData!$H$4:$H$100) ->  | L45: =LOOKUP(C45,StrokeData!$A$4:$A$100,StrokeData!$I$4:$I$100) ->  | M45: =LOOKUP(C45,StrokeData!$A$4:$A$100,StrokeData!$J$4:$J$100) ->  | S45: =LOOKUP(C45,StrokeData!$A$4:$A$100,StrokeData!$K$4:$K$100) ->  | T45: =LOOKUP(C45,StrokeData!$A$4:$A$100,StrokeData!$L$4:$L$100) -> 
B46: 10 | C46: =IF(C45=-1,-1,LOOKUP(C45,StrokeData!$A$4:$A$100,StrokeData!$L$4:$L$100)) -> -1 | D46: =LOOKUP(C46,StrokeData!$A$4:$A$100,StrokeData!$B$4:$B$100) ->  | E46: =LOOKUP(C46,StrokeData!$A$4:$A$100,StrokeData!$C$4:$C$100) ->  | G46: =LOOKUP(C46,StrokeData!$A$4:$A$100,StrokeData!$D$4:$D$100) ->  | H46: =LOOKUP(C46,StrokeData!$A$4:$A$100,StrokeData!$E$4:$E$100) ->  | I46: =LOOKUP(C46,StrokeData!$A$4:$A$100,StrokeData!$F$4:$F$100) ->  | J46: =LOOKUP(C46,StrokeData!$A$4:$A$100,StrokeData!$G$4:$G$100) ->  | K46: =LOOKUP(C46,StrokeData!$A$4:$A$100,StrokeData!$H$4:$H$100) ->  | L46: =LOOKUP(C46,StrokeData!$A$4:$A$100,StrokeData!$I$4:$I$100) ->  | M46: =LOOKUP(C46,StrokeData!$A$4:$A$100,StrokeData!$J$4:$J$100) ->  | S46: =LOOKUP(C46,StrokeData!$A$4:$A$100,StrokeData!$K$4:$K$100) ->  | T46: =LOOKUP(C46,StrokeData!$A$4:$A$100,StrokeData!$L$4:$L$100) -> 
B47: 11 | C47: =IF(C46=-1,-1,LOOKUP(C46,StrokeData!$A$4:$A$100,StrokeData!$L$4:$L$100)) -> -1 | D47: =LOOKUP(C47,StrokeData!$A$4:$A$100,StrokeData!$B$4:$B$100) ->  | E47: =LOOKUP(C47,StrokeData!$A$4:$A$100,StrokeData!$C$4:$C$100) ->  | G47: =LOOKUP(C47,StrokeData!$A$4:$A$100,StrokeData!$D$4:$D$100) ->  | H47: =LOOKUP(C47,StrokeData!$A$4:$A$100,StrokeData!$E$4:$E$100) ->  | I47: =LOOKUP(C47,StrokeData!$A$4:$A$100,StrokeData!$F$4:$F$100) ->  | J47: =LOOKUP(C47,StrokeData!$A$4:$A$100,StrokeData!$G$4:$G$100) ->  | K47: =LOOKUP(C47,StrokeData!$A$4:$A$100,StrokeData!$H$4:$H$100) ->  | L47: =LOOKUP(C47,StrokeData!$A$4:$A$100,StrokeData!$I$4:$I$100) ->  | M47: =LOOKUP(C47,StrokeData!$A$4:$A$100,StrokeData!$J$4:$J$100) ->  | S47: =LOOKUP(C47,StrokeData!$A$4:$A$100,StrokeData!$K$4:$K$100) ->  | T47: =LOOKUP(C47,StrokeData!$A$4:$A$100,StrokeData!$L$4:$L$100) -> 
B48: 12 | C48: =IF(C47=-1,-1,LOOKUP(C47,StrokeData!$A$4:$A$100,StrokeData!$L$4:$L$100)) -> -1 | D48: =LOOKUP(C48,StrokeData!$A$4:$A$100,StrokeData!$B$4:$B$100) ->  | E48: =LOOKUP(C48,StrokeData!$A$4:$A$100,StrokeData!$C$4:$C$100) ->  | G48: =LOOKUP(C48,StrokeData!$A$4:$A$100,StrokeData!$D$4:$D$100) ->  | H48: =LOOKUP(C48,StrokeData!$A$4:$A$100,StrokeData!$E$4:$E$100) ->  | I48: =LOOKUP(C48,StrokeData!$A$4:$A$100,StrokeData!$F$4:$F$100) ->  | J48: =LOOKUP(C48,StrokeData!$A$4:$A$100,StrokeData!$G$4:$G$100) ->  | K48: =LOOKUP(C48,StrokeData!$A$4:$A$100,StrokeData!$H$4:$H$100) ->  | L48: =LOOKUP(C48,StrokeData!$A$4:$A$100,StrokeData!$I$4:$I$100) ->  | M48: =LOOKUP(C48,StrokeData!$A$4:$A$100,StrokeData!$J$4:$J$100) ->  | S48: =LOOKUP(C48,StrokeData!$A$4:$A$100,StrokeData!$K$4:$K$100) ->  | T48: =LOOKUP(C48,StrokeData!$A$4:$A$100,StrokeData!$L$4:$L$100) -> 
B49: 13 | C49: =IF(C48=-1,-1,LOOKUP(C48,StrokeData!$A$4:$A$100,StrokeData!$L$4:$L$100)) -> -1 | D49: =LOOKUP(C49,StrokeData!$A$4:$A$100,StrokeData!$B$4:$B$100) ->  | E49: =LOOKUP(C49,StrokeData!$A$4:$A$100,StrokeData!$C$4:$C$100) ->  | G49: =LOOKUP(C49,StrokeData!$A$4:$A$100,StrokeData!$D$4:$D$100) ->  | H49: =LOOKUP(C49,StrokeData!$A$4:$A$100,StrokeData!$E$4:$E$100) ->  | I49: =LOOKUP(C49,StrokeData!$A$4:$A$100,StrokeData!$F$4:$F$100) ->  | J49: =LOOKUP(C49,StrokeData!$A$4:$A$100,StrokeData!$G$4:$G$100) ->  | K49: =LOOKUP(C49,StrokeData!$A$4:$A$100,StrokeData!$H$4:$H$100) ->  | L49: =LOOKUP(C49,StrokeData!$A$4:$A$100,StrokeData!$I$4:$I$100) ->  | M49: =LOOKUP(C49,StrokeData!$A$4:$A$100,StrokeData!$J$4:$J$100) ->  | S49: =LOOKUP(C49,StrokeData!$A$4:$A$100,StrokeData!$K$4:$K$100) ->  | T49: =LOOKUP(C49,StrokeData!$A$4:$A$100,StrokeData!$L$4:$L$100) -> 
B50: 14 | C50: =IF(C49=-1,-1,LOOKUP(C49,StrokeData!$A$4:$A$100,StrokeData!$L$4:$L$100)) -> -1 | D50: =LOOKUP(C50,StrokeData!$A$4:$A$100,StrokeData!$B$4:$B$100) ->  | E50: =LOOKUP(C50,StrokeData!$A$4:$A$100,StrokeData!$C$4:$C$100) ->  | G50: =LOOKUP(C50,StrokeData!$A$4:$A$100,StrokeData!$D$4:$D$100) ->  | H50: =LOOKUP(C50,StrokeData!$A$4:$A$100,StrokeData!$E$4:$E$100) ->  | I50: =LOOKUP(C50,StrokeData!$A$4:$A$100,StrokeData!$F$4:$F$100) ->  | J50: =LOOKUP(C50,StrokeData!$A$4:$A$100,StrokeData!$G$4:$G$100) ->  | K50: =LOOKUP(C50,StrokeData!$A$4:$A$100,StrokeData!$H$4:$H$100) ->  | L50: =LOOKUP(C50,StrokeData!$A$4:$A$100,StrokeData!$I$4:$I$100) ->  | M50: =LOOKUP(C50,StrokeData!$A$4:$A$100,StrokeData!$J$4:$J$100) ->  | S50: =LOOKUP(C50,StrokeData!$A$4:$A$100,StrokeData!$K$4:$K$100) ->  | T50: =LOOKUP(C50,StrokeData!$A$4:$A$100,StrokeData!$L$4:$L$100) -> 
B51: 15 | C51: =IF(C50=-1,-1,LOOKUP(C50,StrokeData!$A$4:$A$100,StrokeData!$L$4:$L$100)) -> -1 | D51: =LOOKUP(C51,StrokeData!$A$4:$A$100,StrokeData!$B$4:$B$100) ->  | E51: =LOOKUP(C51,StrokeData!$A$4:$A$100,StrokeData!$C$4:$C$100) ->  | G51: =LOOKUP(C51,StrokeData!$A$4:$A$100,StrokeData!$D$4:$D$100) ->  | H51: =LOOKUP(C51,StrokeData!$A$4:$A$100,StrokeData!$E$4:$E$100) ->  | I51: =LOOKUP(C51,StrokeData!$A$4:$A$100,StrokeData!$F$4:$F$100) ->  | J51: =LOOKUP(C51,StrokeData!$A$4:$A$100,StrokeData!$G$4:$G$100) ->  | K51: =LOOKUP(C51,StrokeData!$A$4:$A$100,StrokeData!$H$4:$H$100) ->  | L51: =LOOKUP(C51,StrokeData!$A$4:$A$100,StrokeData!$I$4:$I$100) ->  | M51: =LOOKUP(C51,StrokeData!$A$4:$A$100,StrokeData!$J$4:$J$100) ->  | S51: =LOOKUP(C51,StrokeData!$A$4:$A$100,StrokeData!$K$4:$K$100) ->  | T51: =LOOKUP(C51,StrokeData!$A$4:$A$100,StrokeData!$L$4:$L$100) -> 
B52: 16 | C52: =IF(C51=-1,-1,LOOKUP(C51,StrokeData!$A$4:$A$100,StrokeData!$L$4:$L$100)) -> -1 | D52: =LOOKUP(C52,StrokeData!$A$4:$A$100,StrokeData!$B$4:$B$100) ->  | E52: =LOOKUP(C52,StrokeData!$A$4:$A$100,StrokeData!$C$4:$C$100) ->  | G52: =LOOKUP(C52,StrokeData!$A$4:$A$100,StrokeData!$D$4:$D$100) ->  | H52: =LOOKUP(C52,StrokeData!$A$4:$A$100,StrokeData!$E$4:$E$100) ->  | I52: =LOOKUP(C52,StrokeData!$A$4:$A$100,StrokeData!$F$4:$F$100) ->  | J52: =LOOKUP(C52,StrokeData!$A$4:$A$100,StrokeData!$G$4:$G$100) ->  | K52: =LOOKUP(C52,StrokeData!$A$4:$A$100,StrokeData!$H$4:$H$100) ->  | L52: =LOOKUP(C52,StrokeData!$A$4:$A$100,StrokeData!$I$4:$I$100) ->  | M52: =LOOKUP(C52,StrokeData!$A$4:$A$100,StrokeData!$J$4:$J$100) ->  | S52: =LOOKUP(C52,StrokeData!$A$4:$A$100,StrokeData!$K$4:$K$100) ->  | T52: =LOOKUP(C52,StrokeData!$A$4:$A$100,StrokeData!$L$4:$L$100) -> 
B53: 17 | C53: =IF(C52=-1,-1,LOOKUP(C52,StrokeData!$A$4:$A$100,StrokeData!$L$4:$L$100)) -> -1 | D53: =LOOKUP(C53,StrokeData!$A$4:$A$100,StrokeData!$B$4:$B$100) ->  | E53: =LOOKUP(C53,StrokeData!$A$4:$A$100,StrokeData!$C$4:$C$100) ->  | G53: =LOOKUP(C53,StrokeData!$A$4:$A$100,StrokeData!$D$4:$D$100) ->  | H53: =LOOKUP(C53,StrokeData!$A$4:$A$100,StrokeData!$E$4:$E$100) ->  | I53: =LOOKUP(C53,StrokeData!$A$4:$A$100,StrokeData!$F$4:$F$100) ->  | J53: =LOOKUP(C53,StrokeData!$A$4:$A$100,StrokeData!$G$4:$G$100) ->  | K53: =LOOKUP(C53,StrokeData!$A$4:$A$100,StrokeData!$H$4:$H$100) ->  | L53: =LOOKUP(C53,StrokeData!$A$4:$A$100,StrokeData!$I$4:$I$100) ->  | M53: =LOOKUP(C53,StrokeData!$A$4:$A$100,StrokeData!$J$4:$J$100) ->  | S53: =LOOKUP(C53,StrokeData!$A$4:$A$100,StrokeData!$K$4:$K$100) ->  | T53: =LOOKUP(C53,StrokeData!$A$4:$A$100,StrokeData!$L$4:$L$100) -> 
B54: 18 | C54: =IF(C53=-1,-1,LOOKUP(C53,StrokeData!$A$4:$A$100,StrokeData!$L$4:$L$100)) -> -1 | D54: =LOOKUP(C54,StrokeData!$A$4:$A$100,StrokeData!$B$4:$B$100) ->  | E54: =LOOKUP(C54,StrokeData!$A$4:$A$100,StrokeData!$C$4:$C$100) ->  | G54: =LOOKUP(C54,StrokeData!$A$4:$A$100,StrokeData!$D$4:$D$100) ->  | H54: =LOOKUP(C54,StrokeData!$A$4:$A$100,StrokeData!$E$4:$E$100) ->  | I54: =LOOKUP(C54,StrokeData!$A$4:$A$100,StrokeData!$F$4:$F$100) ->  | J54: =LOOKUP(C54,StrokeData!$A$4:$A$100,StrokeData!$G$4:$G$100) ->  | K54: =LOOKUP(C54,StrokeData!$A$4:$A$100,StrokeData!$H$4:$H$100) ->  | L54: =LOOKUP(C54,StrokeData!$A$4:$A$100,StrokeData!$I$4:$I$100) ->  | M54: =LOOKUP(C54,StrokeData!$A$4:$A$100,StrokeData!$J$4:$J$100) ->  | S54: =LOOKUP(C54,StrokeData!$A$4:$A$100,StrokeData!$K$4:$K$100) ->  | T54: =LOOKUP(C54,StrokeData!$A$4:$A$100,StrokeData!$L$4:$L$100) -> 
B55: 19 | C55: =IF(C54=-1,-1,LOOKUP(C54,StrokeData!$A$4:$A$100,StrokeData!$L$4:$L$100)) -> -1 | D55: =LOOKUP(C55,StrokeData!$A$4:$A$100,StrokeData!$B$4:$B$100) ->  | E55: =LOOKUP(C55,StrokeData!$A$4:$A$100,StrokeData!$C$4:$C$100) ->  | G55: =LOOKUP(C55,StrokeData!$A$4:$A$100,StrokeData!$D$4:$D$100) ->  | H55: =LOOKUP(C55,StrokeData!$A$4:$A$100,StrokeData!$E$4:$E$100) ->  | I55: =LOOKUP(C55,StrokeData!$A$4:$A$100,StrokeData!$F$4:$F$100) ->  | J55: =LOOKUP(C55,StrokeData!$A$4:$A$100,StrokeData!$G$4:$G$100) ->  | K55: =LOOKUP(C55,StrokeData!$A$4:$A$100,StrokeData!$H$4:$H$100) ->  | L55: =LOOKUP(C55,StrokeData!$A$4:$A$100,StrokeData!$I$4:$I$100) ->  | M55: =LOOKUP(C55,StrokeData!$A$4:$A$100,StrokeData!$J$4:$J$100) ->  | S55: =LOOKUP(C55,StrokeData!$A$4:$A$100,StrokeData!$K$4:$K$100) ->  | T55: =LOOKUP(C55,StrokeData!$A$4:$A$100,StrokeData!$L$4:$L$100) -> 
B56: 20 | C56: =IF(C55=-1,-1,LOOKUP(C55,StrokeData!$A$4:$A$100,StrokeData!$L$4:$L$100)) -> -1 | D56: =LOOKUP(C56,StrokeData!$A$4:$A$100,StrokeData!$B$4:$B$100) ->  | E56: =LOOKUP(C56,StrokeData!$A$4:$A$100,StrokeData!$C$4:$C$100) ->  | G56: =LOOKUP(C56,StrokeData!$A$4:$A$100,StrokeData!$D$4:$D$100) ->  | H56: =LOOKUP(C56,StrokeData!$A$4:$A$100,StrokeData!$E$4:$E$100) ->  | I56: =LOOKUP(C56,StrokeData!$A$4:$A$100,StrokeData!$F$4:$F$100) ->  | J56: =LOOKUP(C56,StrokeData!$A$4:$A$100,StrokeData!$G$4:$G$100) ->  | K56: =LOOKUP(C56,StrokeData!$A$4:$A$100,StrokeData!$H$4:$H$100) ->  | L56: =LOOKUP(C56,StrokeData!$A$4:$A$100,StrokeData!$I$4:$I$100) ->  | M56: =LOOKUP(C56,StrokeData!$A$4:$A$100,StrokeData!$J$4:$J$100) ->  | S56: =LOOKUP(C56,StrokeData!$A$4:$A$100,StrokeData!$K$4:$K$100) ->  | T56: =LOOKUP(C56,StrokeData!$A$4:$A$100,StrokeData!$L$4:$L$100) -> 
D57: ストローク | E57: =H5 -> 50 | F57: mm | G57: ～ | H57: =I5 -> 400 | I57: mm | K57: 刻み | L57: =LOOKUP(D35,B26:B33,R26:R33) -> 50 | M57: mm | O57: 慣性係数 | P57: =IF($J$5=1,0.000001,0.001) -> 0.001 | Q57: 有効桁数 | R57: =IF($J$5=1,6,3) -> 3
B58: stﾘｽﾄ検索用(降順) | D58: № | E58: =StrokeData!$B$2 -> ｽﾄﾛｰｸ長 | F58: stﾘｽﾄ№ | G58: =StrokeData!$C$2 -> 有効ｽﾄﾛｰｸ補正 | I58: =StrokeData!$D$2 -> 基準ｹﾞｲﾝ用搬送質量 | J58: =StrokeData!$E$2 -> 水平可搬質量 | K58: =StrokeData!$F$2 -> 垂直可搬質量 | L58: =StrokeData!$G$2 -> 最大速度 | M58: =StrokeData!$H$2 -> 位置ｹﾞｲﾝ | N58: =StrokeData!$I$2 -> FFｹﾞｲﾝ | O58: =StrokeData!$J$2 -> 速度制御帯域
B59: =B36 -> № | C59: =D36 -> ｽﾄﾛｰｸ長 | D59: 0 | E59: =H4 -> [mm] | G59: [mm] | H59: [kg/mm] | I59: =IF(J5=1,"[kgm^2]","[kg]") -> [kg] | J59: =IF(J5=1,"[kgm^2]","[kg]") -> [kg] | K59: =IF(J5=1,"[kgm^2]","[kg]") -> [kg] | L59: [mm/s] | M59: [1/s] | N59: [%] | O59: [rad/s] | Q59: [s] | T59: [Nm/rad]
B60: =B56 -> 20 | C60: =D56 ->  | D60: 1 | E60: =IF( (E57+L57*D59)<=H57,(E57+L57*D59),"- - -") -> 50 | F60: =(B60+1)-MATCH(E60,C60:C79,-1) -> 1 | G60: =LOOKUP(F60,B37:B56,E37:E56) -> 0 | I60: =LOOKUP(F60,B37:B56,G37:G56)*$P$57 -> 8 | J60: =LOOKUP(F60,B37:B56,H37:H56)*$P$57 -> 11 | K60: =LOOKUP(F60,B37:B56,I37:I56)*$P$57 -> 4.5 | L60: =LOOKUP(F60,B37:B56,J37:J56) -> 165 | M60: =LOOKUP(F60,B37:B56,K37:K56) -> 35 | N60: =LOOKUP(F60,B37:B56,L37:L56) -> 0 | O60: =LOOKUP(F60,B37:B56,M37:M56) -> 140
B61: =B55 -> 19 | C61: =D55 ->  | D61: =D60+1 -> 2 | E61: =IF( (E57+L57*D60)<=H57,(E57+L57*D60),"- - -") -> 100 | F61: =(B60+1)-MATCH(E61,C60:C79,-1) -> 1 | G61: =LOOKUP(F61,B37:B56,E37:E56) -> 0 | I61: =LOOKUP(F61,B37:B56,G37:G56)*$P$57 -> 8 | J61: =LOOKUP(F61,B37:B56,H37:H56)*$P$57 -> 11 | K61: =LOOKUP(F61,B37:B56,I37:I56)*$P$57 -> 4.5 | L61: =LOOKUP(F61,B37:B56,J37:J56) -> 165 | M61: =LOOKUP(F61,B37:B56,K37:K56) -> 35 | N61: =LOOKUP(F61,B37:B56,L37:L56) -> 0 | O61: =LOOKUP(F61,B37:B56,M37:M56) -> 140
B62: =B54 -> 18 | C62: =D54 ->  | D62: =D61+1 -> 3 | E62: =IF( (E57+L57*D61)<=H57,(E57+L57*D61),"- - -") -> 150 | F62: =(B60+1)-MATCH(E62,C60:C79,-1) -> 1 | G62: =LOOKUP(F62,B37:B56,E37:E56) -> 0 | I62: =LOOKUP(F62,B37:B56,G37:G56)*$P$57 -> 8 | J62: =LOOKUP(F62,B37:B56,H37:H56)*$P$57 -> 11 | K62: =LOOKUP(F62,B37:B56,I37:I56)*$P$57 -> 4.5 | L62: =LOOKUP(F62,B37:B56,J37:J56) -> 165 | M62: =LOOKUP(F62,B37:B56,K37:K56) -> 35 | N62: =LOOKUP(F62,B37:B56,L37:L56) -> 0 | O62: =LOOKUP(F62,B37:B56,M37:M56) -> 140
B63: =B53 -> 17 | C63: =D53 ->  | D63: 4 | E63: =IF( (E57+L57*D62)<=H57,(E57+L57*D62),"- - -") -> 200 | F63: =(B60+1)-MATCH(E63,C60:C79,-1) -> 1 | G63: =LOOKUP(F63,B37:B56,E37:E56) -> 0 | I63: =LOOKUP(F63,B37:B56,G37:G56)*$P$57 -> 8 | J63: =LOOKUP(F63,B37:B56,H37:H56)*$P$57 -> 11 | K63: =LOOKUP(F63,B37:B56,I37:I56)*$P$57 -> 4.5 | L63: =LOOKUP(F63,B37:B56,J37:J56) -> 165 | M63: =LOOKUP(F63,B37:B56,K37:K56) -> 35 | N63: =LOOKUP(F63,B37:B56,L37:L56) -> 0 | O63: =LOOKUP(F63,B37:B56,M37:M56) -> 140
B64: =B52 -> 16 | C64: =D52 ->  | D64: 5 | E64: =IF( (E57+L57*D63)<=H57,(E57+L57*D63),"- - -") -> 250 | F64: =(B60+1)-MATCH(E64,C60:C79,-1) -> 1 | G64: =LOOKUP(F64,B37:B56,E37:E56) -> 0 | I64: =LOOKUP(F64,B37:B56,G37:G56)*$P$57 -> 8 | J64: =LOOKUP(F64,B37:B56,H37:H56)*$P$57 -> 11 | K64: =LOOKUP(F64,B37:B56,I37:I56)*$P$57 -> 4.5 | L64: =LOOKUP(F64,B37:B56,J37:J56) -> 165 | M64: =LOOKUP(F64,B37:B56,K37:K56) -> 35 | N64: =LOOKUP(F64,B37:B56,L37:L56) -> 0 | O64: =LOOKUP(F64,B37:B56,M37:M56) -> 140
B65: =B51 -> 15 | C65: =D51 ->  | D65: 6 | E65: =IF( (E57+L57*D64)<=H57,(E57+L57*D64),"- - -") -> 300 | F65: =(B60+1)-MATCH(E65,C60:C79,-1) -> 1 | G65: =LOOKUP(F65,B37:B56,E37:E56) -> 0 | I65: =LOOKUP(F65,B37:B56,G37:G56)*$P$57 -> 8 | J65: =LOOKUP(F65,B37:B56,H37:H56)*$P$57 -> 11 | K65: =LOOKUP(F65,B37:B56,I37:I56)*$P$57 -> 4.5 | L65: =LOOKUP(F65,B37:B56,J37:J56) -> 165 | M65: =LOOKUP(F65,B37:B56,K37:K56) -> 35 | N65: =LOOKUP(F65,B37:B56,L37:L56) -> 0 | O65: =LOOKUP(F65,B37:B56,M37:M56) -> 140
B66: =B50 -> 14 | C66: =D50 ->  | D66: 7 | E66: =IF( (E57+L57*D65)<=H57,(E57+L57*D65),"- - -") -> 350 | F66: =(B60+1)-MATCH(E66,C60:C79,-1) -> 1 | G66: =LOOKUP(F66,B37:B56,E37:E56) -> 0 | I66: =LOOKUP(F66,B37:B56,G37:G56)*$P$57 -> 8 | J66: =LOOKUP(F66,B37:B56,H37:H56)*$P$57 -> 11 | K66: =LOOKUP(F66,B37:B56,I37:I56)*$P$57 -> 4.5 | L66: =LOOKUP(F66,B37:B56,J37:J56) -> 165 | M66: =LOOKUP(F66,B37:B56,K37:K56) -> 35 | N66: =LOOKUP(F66,B37:B56,L37:L56) -> 0 | O66: =LOOKUP(F66,B37:B56,M37:M56) -> 140
B67: =B49 -> 13 | C67: =D49 ->  | D67: 8 | E67: =IF( (E57+L57*D66)<=H57,(E57+L57*D66),"- - -") -> 400 | F67: =(B60+1)-MATCH(E67,C60:C79,-1) -> 1 | G67: =LOOKUP(F67,B37:B56,E37:E56) -> 0 | I67: =LOOKUP(F67,B37:B56,G37:G56)*$P$57 -> 8 | J67: =LOOKUP(F67,B37:B56,H37:H56)*$P$57 -> 11 | K67: =LOOKUP(F67,B37:B56,I37:I56)*$P$57 -> 4.5 | L67: =LOOKUP(F67,B37:B56,J37:J56) -> 165 | M67: =LOOKUP(F67,B37:B56,K37:K56) -> 35 | N67: =LOOKUP(F67,B37:B56,L37:L56) -> 0 | O67: =LOOKUP(F67,B37:B56,M37:M56) -> 140
B68: =B48 -> 12 | C68: =D48 ->  | D68: 9 | E68: =IF( (E57+L57*D67)<=H57,(E57+L57*D67),"- - -") -> - - - | F68: =(B60+1)-MATCH(E68,C60:C79,-1) ->  | G68: =LOOKUP(F68,B37:B56,E37:E56) ->  | I68: =LOOKUP(F68,B37:B56,G37:G56)*$P$57 ->  | J68: =LOOKUP(F68,B37:B56,H37:H56)*$P$57 ->  | K68: =LOOKUP(F68,B37:B56,I37:I56)*$P$57 ->  | L68: =LOOKUP(F68,B37:B56,J37:J56) ->  | M68: =LOOKUP(F68,B37:B56,K37:K56) ->  | N68: =LOOKUP(F68,B37:B56,L37:L56) ->  | O68: =LOOKUP(F68,B37:B56,M37:M56) -> 
B69: =B47 -> 11 | C69: =D47 ->  | D69: 10 | E69: =IF( (E57+L57*D68)<=H57,(E57+L57*D68),"- - -") -> - - - | F69: =(B60+1)-MATCH(E69,C60:C79,-1) ->  | G69: =LOOKUP(F69,B37:B56,E37:E56) ->  | I69: =LOOKUP(F69,B37:B56,G37:G56)*$P$57 ->  | J69: =LOOKUP(F69,B37:B56,H37:H56)*$P$57 ->  | K69: =LOOKUP(F69,B37:B56,I37:I56)*$P$57 ->  | L69: =LOOKUP(F69,B37:B56,J37:J56) ->  | M69: =LOOKUP(F69,B37:B56,K37:K56) ->  | N69: =LOOKUP(F69,B37:B56,L37:L56) ->  | O69: =LOOKUP(F69,B37:B56,M37:M56) -> 
B70: =B46 -> 10 | C70: =D46 ->  | D70: 11 | E70: =IF( (E57+L57*D69)<=H57,(E57+L57*D69),"- - -") -> - - - | F70: =(B60+1)-MATCH(E70,C60:C79,-1) ->  | G70: =LOOKUP(F70,B37:B56,E37:E56) ->  | I70: =LOOKUP(F70,B37:B56,G37:G56)*$P$57 ->  | J70: =LOOKUP(F70,B37:B56,H37:H56)*$P$57 ->  | K70: =LOOKUP(F70,B37:B56,I37:I56)*$P$57 ->  | L70: =LOOKUP(F70,B37:B56,J37:J56) ->  | M70: =LOOKUP(F70,B37:B56,K37:K56) ->  | N70: =LOOKUP(F70,B37:B56,L37:L56) ->  | O70: =LOOKUP(F70,B37:B56,M37:M56) -> 
B71: =B45 -> 9 | C71: =D45 ->  | D71: 12 | E71: =IF( (E57+L57*D70)<=H57,(E57+L57*D70),"- - -") -> - - - | F71: =(B60+1)-MATCH(E71,C60:C79,-1) ->  | G71: =LOOKUP(F71,B37:B56,E37:E56) ->  | I71: =LOOKUP(F71,B37:B56,G37:G56)*$P$57 ->  | J71: =LOOKUP(F71,B37:B56,H37:H56)*$P$57 ->  | K71: =LOOKUP(F71,B37:B56,I37:I56)*$P$57 ->  | L71: =LOOKUP(F71,B37:B56,J37:J56) ->  | M71: =LOOKUP(F71,B37:B56,K37:K56) ->  | N71: =LOOKUP(F71,B37:B56,L37:L56) ->  | O71: =LOOKUP(F71,B37:B56,M37:M56) -> 
B72: =B44 -> 8 | C72: =D44 ->  | D72: 13 | E72: =IF( (E57+L57*D71)<=H57,(E57+L57*D71),"- - -") -> - - - | F72: =(B60+1)-MATCH(E72,C60:C79,-1) ->  | G72: =LOOKUP(F72,B37:B56,E37:E56) ->  | I72: =LOOKUP(F72,B37:B56,G37:G56)*$P$57 ->  | J72: =LOOKUP(F72,B37:B56,H37:H56)*$P$57 ->  | K72: =LOOKUP(F72,B37:B56,I37:I56)*$P$57 ->  | L72: =LOOKUP(F72,B37:B56,J37:J56) ->  | M72: =LOOKUP(F72,B37:B56,K37:K56) ->  | N72: =LOOKUP(F72,B37:B56,L37:L56) ->  | O72: =LOOKUP(F72,B37:B56,M37:M56) -> 
B73: =B43 -> 7 | C73: =D43 ->  | D73: 14 | E73: =IF( (E57+L57*D72)<=H57,(E57+L57*D72),"- - -") -> - - - | F73: =(B60+1)-MATCH(E73,C60:C79,-1) ->  | G73: =LOOKUP(F73,B37:B56,E37:E56) ->  | I73: =LOOKUP(F73,B37:B56,G37:G56)*$P$57 ->  | J73: =LOOKUP(F73,B37:B56,H37:H56)*$P$57 ->  | K73: =LOOKUP(F73,B37:B56,I37:I56)*$P$57 ->  | L73: =LOOKUP(F73,B37:B56,J37:J56) ->  | M73: =LOOKUP(F73,B37:B56,K37:K56) ->  | N73: =LOOKUP(F73,B37:B56,L37:L56) ->  | O73: =LOOKUP(F73,B37:B56,M37:M56) -> 
B74: =B42 -> 6 | C74: =D42 ->  | D74: 15 | E74: =IF( (E57+L57*D73)<=H57,(E57+L57*D73),"- - -") -> - - - | F74: =(B60+1)-MATCH(E74,C60:C79,-1) ->  | G74: =LOOKUP(F74,B37:B56,E37:E56) ->  | I74: =LOOKUP(F74,B37:B56,G37:G56)*$P$57 ->  | J74: =LOOKUP(F74,B37:B56,H37:H56)*$P$57 ->  | K74: =LOOKUP(F74,B37:B56,I37:I56)*$P$57 ->  | L74: =LOOKUP(F74,B37:B56,J37:J56) ->  | M74: =LOOKUP(F74,B37:B56,K37:K56) ->  | N74: =LOOKUP(F74,B37:B56,L37:L56) ->  | O74: =LOOKUP(F74,B37:B56,M37:M56) -> 
B75: =B41 -> 5 | C75: =D41 ->  | D75: 16 | E75: =IF( (E57+L57*D74)<=H57,(E57+L57*D74),"- - -") -> - - - | F75: =(B60+1)-MATCH(E75,C60:C79,-1) ->  | G75: =LOOKUP(F75,B37:B56,E37:E56) ->  | I75: =LOOKUP(F75,B37:B56,G37:G56)*$P$57 ->  | J75: =LOOKUP(F75,B37:B56,H37:H56)*$P$57 ->  | K75: =LOOKUP(F75,B37:B56,I37:I56)*$P$57 ->  | L75: =LOOKUP(F75,B37:B56,J37:J56) ->  | M75: =LOOKUP(F75,B37:B56,K37:K56) ->  | N75: =LOOKUP(F75,B37:B56,L37:L56) ->  | O75: =LOOKUP(F75,B37:B56,M37:M56) -> 
B76: =B40 -> 4 | C76: =D40 ->  | D76: 17 | E76: =IF( (E57+L57*D75)<=H57,(E57+L57*D75),"- - -") -> - - - | F76: =(B60+1)-MATCH(E76,C60:C79,-1) ->  | G76: =LOOKUP(F76,B37:B56,E37:E56) ->  | I76: =LOOKUP(F76,B37:B56,G37:G56)*$P$57 ->  | J76: =LOOKUP(F76,B37:B56,H37:H56)*$P$57 ->  | K76: =LOOKUP(F76,B37:B56,I37:I56)*$P$57 ->  | L76: =LOOKUP(F76,B37:B56,J37:J56) ->  | M76: =LOOKUP(F76,B37:B56,K37:K56) ->  | N76: =LOOKUP(F76,B37:B56,L37:L56) ->  | O76: =LOOKUP(F76,B37:B56,M37:M56) -> 
B77: =B39 -> 3 | C77: =D39 ->  | D77: 18 | E77: =IF( (E57+L57*D76)<=H57,(E57+L57*D76),"- - -") -> - - - | F77: =(B60+1)-MATCH(E77,C60:C79,-1) ->  | G77: =LOOKUP(F77,B37:B56,E37:E56) ->  | I77: =LOOKUP(F77,B37:B56,G37:G56)*$P$57 ->  | J77: =LOOKUP(F77,B37:B56,H37:H56)*$P$57 ->  | K77: =LOOKUP(F77,B37:B56,I37:I56)*$P$57 ->  | L77: =LOOKUP(F77,B37:B56,J37:J56) ->  | M77: =LOOKUP(F77,B37:B56,K37:K56) ->  | N77: =LOOKUP(F77,B37:B56,L37:L56) ->  | O77: =LOOKUP(F77,B37:B56,M37:M56) -> 
B78: =B38 -> 2 | C78: =D38 ->  | D78: 19 | E78: =IF( (E57+L57*D77)<=H57,(E57+L57*D77),"- - -") -> - - - | F78: =(B60+1)-MATCH(E78,C60:C79,-1) ->  | G78: =LOOKUP(F78,B37:B56,E37:E56) ->  | I78: =LOOKUP(F78,B37:B56,G37:G56)*$P$57 ->  | J78: =LOOKUP(F78,B37:B56,H37:H56)*$P$57 ->  | K78: =LOOKUP(F78,B37:B56,I37:I56)*$P$57 ->  | L78: =LOOKUP(F78,B37:B56,J37:J56) ->  | M78: =LOOKUP(F78,B37:B56,K37:K56) ->  | N78: =LOOKUP(F78,B37:B56,L37:L56) ->  | O78: =LOOKUP(F78,B37:B56,M37:M56) -> 
B79: =B37 -> 1 | C79: =D37 -> 400 | D79: 20 | E79: =IF( (E57+L57*D78)<=H57,(E57+L57*D78),"- - -") -> - - - | F79: =(B60+1)-MATCH(E79,C60:C79,-1) ->  | G79: =LOOKUP(F79,B37:B56,E37:E56) ->  | I79: =LOOKUP(F79,B37:B56,G37:G56)*$P$57 ->  | J79: =LOOKUP(F79,B37:B56,H37:H56)*$P$57 ->  | K79: =LOOKUP(F79,B37:B56,I37:I56)*$P$57 ->  | L79: =LOOKUP(F79,B37:B56,J37:J56) ->  | M79: =LOOKUP(F79,B37:B56,K37:K56) ->  | N79: =LOOKUP(F79,B37:B56,L37:L56) ->  | O79: =LOOKUP(F79,B37:B56,M37:M56) -> 
D80: 21 | E80: =IF( (E57+L57*D79)<=H57,(E57+L57*D79),"- - -") -> - - - | F80: =(B60+1)-MATCH(E80,C60:C79,-1) ->  | G80: =LOOKUP(F80,B37:B56,E37:E56) ->  | I80: =LOOKUP(F80,B37:B56,G37:G56)*$P$57 ->  | J80: =LOOKUP(F80,B37:B56,H37:H56)*$P$57 ->  | K80: =LOOKUP(F80,B37:B56,I37:I56)*$P$57 ->  | L80: =LOOKUP(F80,B37:B56,J37:J56) ->  | M80: =LOOKUP(F80,B37:B56,K37:K56) ->  | N80: =LOOKUP(F80,B37:B56,L37:L56) ->  | O80: =LOOKUP(F80,B37:B56,M37:M56) -> 
D81: 22 | E81: =IF( (E57+L57*D80)<=H57,(E57+L57*D80),"- - -") -> - - - | F81: =(B60+1)-MATCH(E81,C60:C79,-1) ->  | G81: =LOOKUP(F81,B37:B56,E37:E56) ->  | I81: =LOOKUP(F81,B37:B56,G37:G56)*$P$57 ->  | J81: =LOOKUP(F81,B37:B56,H37:H56)*$P$57 ->  | K81: =LOOKUP(F81,B37:B56,I37:I56)*$P$57 ->  | L81: =LOOKUP(F81,B37:B56,J37:J56) ->  | M81: =LOOKUP(F81,B37:B56,K37:K56) ->  | N81: =LOOKUP(F81,B37:B56,L37:L56) ->  | O81: =LOOKUP(F81,B37:B56,M37:M56) -> 
D82: 23 | E82: =IF( (E57+L57*D81)<=H57,(E57+L57*D81),"- - -") -> - - - | F82: =(B60+1)-MATCH(E82,C60:C79,-1) ->  | G82: =LOOKUP(F82,B37:B56,E37:E56) ->  | I82: =LOOKUP(F82,B37:B56,G37:G56)*$P$57 ->  | J82: =LOOKUP(F82,B37:B56,H37:H56)*$P$57 ->  | K82: =LOOKUP(F82,B37:B56,I37:I56)*$P$57 ->  | L82: =LOOKUP(F82,B37:B56,J37:J56) ->  | M82: =LOOKUP(F82,B37:B56,K37:K56) ->  | N82: =LOOKUP(F82,B37:B56,L37:L56) ->  | O82: =LOOKUP(F82,B37:B56,M37:M56) -> 
D83: 24 | E83: =IF( (E57+L57*D82)<=H57,(E57+L57*D82),"- - -") -> - - - | F83: =(B60+1)-MATCH(E83,C60:C79,-1) ->  | G83: =LOOKUP(F83,B37:B56,E37:E56) ->  | I83: =LOOKUP(F83,B37:B56,G37:G56)*$P$57 ->  | J83: =LOOKUP(F83,B37:B56,H37:H56)*$P$57 ->  | K83: =LOOKUP(F83,B37:B56,I37:I56)*$P$57 ->  | L83: =LOOKUP(F83,B37:B56,J37:J56) ->  | M83: =LOOKUP(F83,B37:B56,K37:K56) ->  | N83: =LOOKUP(F83,B37:B56,L37:L56) ->  | O83: =LOOKUP(F83,B37:B56,M37:M56) -> 
D84: 25 | E84: =IF( (E57+L57*D83)<=H57,(E57+L57*D83),"- - -") -> - - - | F84: =(B60+1)-MATCH(E84,C60:C79,-1) ->  | G84: =LOOKUP(F84,B37:B56,E37:E56) ->  | I84: =LOOKUP(F84,B37:B56,G37:G56)*$P$57 ->  | J84: =LOOKUP(F84,B37:B56,H37:H56)*$P$57 ->  | K84: =LOOKUP(F84,B37:B56,I37:I56)*$P$57 ->  | L84: =LOOKUP(F84,B37:B56,J37:J56) ->  | M84: =LOOKUP(F84,B37:B56,K37:K56) ->  | N84: =LOOKUP(F84,B37:B56,L37:L56) ->  | O84: =LOOKUP(F84,B37:B56,M37:M56) -> 
D85: 26 | E85: =IF( (E57+L57*D84)<=H57,(E57+L57*D84),"- - -") -> - - - | F85: =(B60+1)-MATCH(E85,C60:C79,-1) ->  | G85: =LOOKUP(F85,B37:B56,E37:E56) ->  | I85: =LOOKUP(F85,B37:B56,G37:G56)*$P$57 ->  | J85: =LOOKUP(F85,B37:B56,H37:H56)*$P$57 ->  | K85: =LOOKUP(F85,B37:B56,I37:I56)*$P$57 ->  | L85: =LOOKUP(F85,B37:B56,J37:J56) ->  | M85: =LOOKUP(F85,B37:B56,K37:K56) ->  | N85: =LOOKUP(F85,B37:B56,L37:L56) ->  | O85: =LOOKUP(F85,B37:B56,M37:M56) -> 
D86: 27 | E86: =IF( (E57+L57*D85)<=H57,(E57+L57*D85),"- - -") -> - - - | F86: =(B60+1)-MATCH(E86,C60:C79,-1) ->  | G86: =LOOKUP(F86,B37:B56,E37:E56) ->  | I86: =LOOKUP(F86,B37:B56,G37:G56)*$P$57 ->  | J86: =LOOKUP(F86,B37:B56,H37:H56)*$P$57 ->  | K86: =LOOKUP(F86,B37:B56,I37:I56)*$P$57 ->  | L86: =LOOKUP(F86,B37:B56,J37:J56) ->  | M86: =LOOKUP(F86,B37:B56,K37:K56) ->  | N86: =LOOKUP(F86,B37:B56,L37:L56) ->  | O86: =LOOKUP(F86,B37:B56,M37:M56) -> 
D87: 28 | E87: =IF( (E57+L57*D86)<=H57,(E57+L57*D86),"- - -") -> - - - | F87: =(B60+1)-MATCH(E87,C60:C79,-1) ->  | G87: =LOOKUP(F87,B37:B56,E37:E56) ->  | I87: =LOOKUP(F87,B37:B56,G37:G56)*$P$57 ->  | J87: =LOOKUP(F87,B37:B56,H37:H56)*$P$57 ->  | K87: =LOOKUP(F87,B37:B56,I37:I56)*$P$57 ->  | L87: =LOOKUP(F87,B37:B56,J37:J56) ->  | M87: =LOOKUP(F87,B37:B56,K37:K56) ->  | N87: =LOOKUP(F87,B37:B56,L37:L56) ->  | O87: =LOOKUP(F87,B37:B56,M37:M56) -> 
D88: 29 | E88: =IF( (E57+L57*D87)<=H57,(E57+L57*D87),"- - -") -> - - - | F88: =(B60+1)-MATCH(E88,C60:C79,-1) ->  | G88: =LOOKUP(F88,B37:B56,E37:E56) ->  | I88: =LOOKUP(F88,B37:B56,G37:G56)*$P$57 ->  | J88: =LOOKUP(F88,B37:B56,H37:H56)*$P$57 ->  | K88: =LOOKUP(F88,B37:B56,I37:I56)*$P$57 ->  | L88: =LOOKUP(F88,B37:B56,J37:J56) ->  | M88: =LOOKUP(F88,B37:B56,K37:K56) ->  | N88: =LOOKUP(F88,B37:B56,L37:L56) ->  | O88: =LOOKUP(F88,B37:B56,M37:M56) -> 
D89: 30 | E89: =IF( (E57+L57*D88)<=H57,(E57+L57*D88),"- - -") -> - - - | F89: =(B60+1)-MATCH(E89,C60:C79,-1) ->  | G89: =LOOKUP(F89,B37:B56,E37:E56) ->  | I89: =LOOKUP(F89,B37:B56,G37:G56)*$P$57 ->  | J89: =LOOKUP(F89,B37:B56,H37:H56)*$P$57 ->  | K89: =LOOKUP(F89,B37:B56,I37:I56)*$P$57 ->  | L89: =LOOKUP(F89,B37:B56,J37:J56) ->  | M89: =LOOKUP(F89,B37:B56,K37:K56) ->  | N89: =LOOKUP(F89,B37:B56,L37:L56) ->  | O89: =LOOKUP(F89,B37:B56,M37:M56) -> 
D90: =D89+1 -> 31 | E90: =IF( (E57+L57*D89)<=H57,(E57+L57*D89),"- - -") -> - - - | F90: =(B60+1)-MATCH(E90,C60:C79,-1) ->  | G90: =LOOKUP(F90,B37:B56,E37:E56) ->  | I90: =LOOKUP(F90,B37:B56,G37:G56)*$P$57 ->  | J90: =LOOKUP(F90,B37:B56,H37:H56)*$P$57 ->  | K90: =LOOKUP(F90,B37:B56,I37:I56)*$P$57 ->  | L90: =LOOKUP(F90,B37:B56,J37:J56) ->  | M90: =LOOKUP(F90,B37:B56,K37:K56) ->  | N90: =LOOKUP(F90,B37:B56,L37:L56) ->  | O90: =LOOKUP(F90,B37:B56,M37:M56) -> 
D91: 32 | E91: =IF( (E57+L57*D90)<=H57,(E57+L57*D90),"- - -") -> - - - | F91: =(B60+1)-MATCH(E91,C60:C79,-1) ->  | G91: =LOOKUP(F91,B37:B56,E37:E56) ->  | I91: =LOOKUP(F91,B37:B56,G37:G56)*$P$57 ->  | J91: =LOOKUP(F91,B37:B56,H37:H56)*$P$57 ->  | K91: =LOOKUP(F91,B37:B56,I37:I56)*$P$57 ->  | L91: =LOOKUP(F91,B37:B56,J37:J56) ->  | M91: =LOOKUP(F91,B37:B56,K37:K56) ->  | N91: =LOOKUP(F91,B37:B56,L37:L56) ->  | O91: =LOOKUP(F91,B37:B56,M37:M56) -> 
D92: 33 | E92: =IF( (E57+L57*D91)<=H57,(E57+L57*D91),"- - -") -> - - - | F92: =(B60+1)-MATCH(E92,C60:C79,-1) ->  | G92: =LOOKUP(F92,B37:B56,E37:E56) ->  | I92: =LOOKUP(F92,B37:B56,G37:G56)*$P$57 ->  | J92: =LOOKUP(F92,B37:B56,H37:H56)*$P$57 ->  | K92: =LOOKUP(F92,B37:B56,I37:I56)*$P$57 ->  | L92: =LOOKUP(F92,B37:B56,J37:J56) ->  | M92: =LOOKUP(F92,B37:B56,K37:K56) ->  | N92: =LOOKUP(F92,B37:B56,L37:L56) ->  | O92: =LOOKUP(F92,B37:B56,M37:M56) -> 
D93: 34 | E93: =IF( (E57+L57*D92)<=H57,(E57+L57*D92),"- - -") -> - - - | F93: =(B60+1)-MATCH(E93,C60:C79,-1) ->  | G93: =LOOKUP(F93,B37:B56,E37:E56) ->  | I93: =LOOKUP(F93,B37:B56,G37:G56)*$P$57 ->  | J93: =LOOKUP(F93,B37:B56,H37:H56)*$P$57 ->  | K93: =LOOKUP(F93,B37:B56,I37:I56)*$P$57 ->  | L93: =LOOKUP(F93,B37:B56,J37:J56) ->  | M93: =LOOKUP(F93,B37:B56,K37:K56) ->  | N93: =LOOKUP(F93,B37:B56,L37:L56) ->  | O93: =LOOKUP(F93,B37:B56,M37:M56) -> 
D94: 35 | E94: =IF( (E57+L57*D93)<=H57,(E57+L57*D93),"- - -") -> - - - | F94: =(B60+1)-MATCH(E94,C60:C79,-1) ->  | G94: =LOOKUP(F94,B37:B56,E37:E56) ->  | I94: =LOOKUP(F94,B37:B56,G37:G56)*$P$57 ->  | J94: =LOOKUP(F94,B37:B56,H37:H56)*$P$57 ->  | K94: =LOOKUP(F94,B37:B56,I37:I56)*$P$57 ->  | L94: =LOOKUP(F94,B37:B56,J37:J56) ->  | M94: =LOOKUP(F94,B37:B56,K37:K56) ->  | N94: =LOOKUP(F94,B37:B56,L37:L56) ->  | O94: =LOOKUP(F94,B37:B56,M37:M56) -> 
D95: 36 | E95: =IF( (E57+L57*D94)<=H57,(E57+L57*D94),"- - -") -> - - - | F95: =(B60+1)-MATCH(E95,C60:C79,-1) ->  | G95: =LOOKUP(F95,B37:B56,E37:E56) ->  | I95: =LOOKUP(F95,B37:B56,G37:G56)*$P$57 ->  | J95: =LOOKUP(F95,B37:B56,H37:H56)*$P$57 ->  | K95: =LOOKUP(F95,B37:B56,I37:I56)*$P$57 ->  | L95: =LOOKUP(F95,B37:B56,J37:J56) ->  | M95: =LOOKUP(F95,B37:B56,K37:K56) ->  | N95: =LOOKUP(F95,B37:B56,L37:L56) ->  | O95: =LOOKUP(F95,B37:B56,M37:M56) -> 
D96: 37 | E96: =IF( (E57+L57*D95)<=H57,(E57+L57*D95),"- - -") -> - - - | F96: =(B60+1)-MATCH(E96,C60:C79,-1) ->  | G96: =LOOKUP(F96,B37:B56,E37:E56) ->  | I96: =LOOKUP(F96,B37:B56,G37:G56)*$P$57 ->  | J96: =LOOKUP(F96,B37:B56,H37:H56)*$P$57 ->  | K96: =LOOKUP(F96,B37:B56,I37:I56)*$P$57 ->  | L96: =LOOKUP(F96,B37:B56,J37:J56) ->  | M96: =LOOKUP(F96,B37:B56,K37:K56) ->  | N96: =LOOKUP(F96,B37:B56,L37:L56) ->  | O96: =LOOKUP(F96,B37:B56,M37:M56) -> 
D97: 38 | E97: =IF( (E57+L57*D96)<=H57,(E57+L57*D96),"- - -") -> - - - | F97: =(B60+1)-MATCH(E97,C60:C79,-1) ->  | G97: =LOOKUP(F97,B37:B56,E37:E56) ->  | I97: =LOOKUP(F97,B37:B56,G37:G56)*$P$57 ->  | J97: =LOOKUP(F97,B37:B56,H37:H56)*$P$57 ->  | K97: =LOOKUP(F97,B37:B56,I37:I56)*$P$57 ->  | L97: =LOOKUP(F97,B37:B56,J37:J56) ->  | M97: =LOOKUP(F97,B37:B56,K37:K56) ->  | N97: =LOOKUP(F97,B37:B56,L37:L56) ->  | O97: =LOOKUP(F97,B37:B56,M37:M56) -> 
D98: 39 | E98: =IF( (E57+L57*D97)<=H57,(E57+L57*D97),"- - -") -> - - - | F98: =(B60+1)-MATCH(E98,C60:C79,-1) ->  | G98: =LOOKUP(F98,B37:B56,E37:E56) ->  | I98: =LOOKUP(F98,B37:B56,G37:G56)*$P$57 ->  | J98: =LOOKUP(F98,B37:B56,H37:H56)*$P$57 ->  | K98: =LOOKUP(F98,B37:B56,I37:I56)*$P$57 ->  | L98: =LOOKUP(F98,B37:B56,J37:J56) ->  | M98: =LOOKUP(F98,B37:B56,K37:K56) ->  | N98: =LOOKUP(F98,B37:B56,L37:L56) ->  | O98: =LOOKUP(F98,B37:B56,M37:M56) -> 
D99: 40 | E99: =IF( (E57+L57*D98)<=H57,(E57+L57*D98),"- - -") -> - - - | F99: =(B60+1)-MATCH(E99,C60:C79,-1) ->  | G99: =LOOKUP(F99,B37:B56,E37:E56) ->  | I99: =LOOKUP(F99,B37:B56,G37:G56)*$P$57 ->  | J99: =LOOKUP(F99,B37:B56,H37:H56)*$P$57 ->  | K99: =LOOKUP(F99,B37:B56,I37:I56)*$P$57 ->  | L99: =LOOKUP(F99,B37:B56,J37:J56) ->  | M99: =LOOKUP(F99,B37:B56,K37:K56) ->  | N99: =LOOKUP(F99,B37:B56,L37:L56) ->  | O99: =LOOKUP(F99,B37:B56,M37:M56) -> 
D100: 41 | E100: =IF( (E57+L57*D99)<=H57,(E57+L57*D99),"- - -") -> - - - | F100: =(B60+1)-MATCH(E100,C60:C79,-1) ->  | G100: =LOOKUP(F100,B37:B56,E37:E56) ->  | I100: =LOOKUP(F100,B37:B56,G37:G56)*$P$57 ->  | J100: =LOOKUP(F100,B37:B56,H37:H56)*$P$57 ->  | K100: =LOOKUP(F100,B37:B56,I37:I56)*$P$57 ->  | L100: =LOOKUP(F100,B37:B56,J37:J56) ->  | M100: =LOOKUP(F100,B37:B56,K37:K56) ->  | N100: =LOOKUP(F100,B37:B56,L37:L56) ->  | O100: =LOOKUP(F100,B37:B56,M37:M56) -> 
D101: 42 | E101: =IF( (E57+L57*D100)<=H57,(E57+L57*D100),"- - -") -> - - - | F101: =(B60+1)-MATCH(E101,C60:C79,-1) ->  | G101: =LOOKUP(F101,B37:B56,E37:E56) ->  | I101: =LOOKUP(F101,B37:B56,G37:G56)*$P$57 ->  | J101: =LOOKUP(F101,B37:B56,H37:H56)*$P$57 ->  | K101: =LOOKUP(F101,B37:B56,I37:I56)*$P$57 ->  | L101: =LOOKUP(F101,B37:B56,J37:J56) ->  | M101: =LOOKUP(F101,B37:B56,K37:K56) ->  | N101: =LOOKUP(F101,B37:B56,L37:L56) ->  | O101: =LOOKUP(F101,B37:B56,M37:M56) -> 
D102: 43 | E102: =IF( (E57+L57*D101)<=H57,(E57+L57*D101),"- - -") -> - - - | F102: =(B60+1)-MATCH(E102,C60:C79,-1) ->  | G102: =LOOKUP(F102,B37:B56,E37:E56) ->  | I102: =LOOKUP(F102,B37:B56,G37:G56)*$P$57 ->  | J102: =LOOKUP(F102,B37:B56,H37:H56)*$P$57 ->  | K102: =LOOKUP(F102,B37:B56,I37:I56)*$P$57 ->  | L102: =LOOKUP(F102,B37:B56,J37:J56) ->  | M102: =LOOKUP(F102,B37:B56,K37:K56) ->  | N102: =LOOKUP(F102,B37:B56,L37:L56) ->  | O102: =LOOKUP(F102,B37:B56,M37:M56) -> 
D103: 44 | E103: =IF( (E57+L57*D102)<=H57,(E57+L57*D102),"- - -") -> - - - | F103: =(B60+1)-MATCH(E103,C60:C79,-1) ->  | G103: =LOOKUP(F103,B37:B56,E37:E56) ->  | I103: =LOOKUP(F103,B37:B56,G37:G56)*$P$57 ->  | J103: =LOOKUP(F103,B37:B56,H37:H56)*$P$57 ->  | K103: =LOOKUP(F103,B37:B56,I37:I56)*$P$57 ->  | L103: =LOOKUP(F103,B37:B56,J37:J56) ->  | M103: =LOOKUP(F103,B37:B56,K37:K56) ->  | N103: =LOOKUP(F103,B37:B56,L37:L56) ->  | O103: =LOOKUP(F103,B37:B56,M37:M56) -> 
D104: 45 | E104: =IF( (E57+L57*D103)<=H57,(E57+L57*D103),"- - -") -> - - - | F104: =(B60+1)-MATCH(E104,C60:C79,-1) ->  | G104: =LOOKUP(F104,B37:B56,E37:E56) ->  | I104: =LOOKUP(F104,B37:B56,G37:G56)*$P$57 ->  | J104: =LOOKUP(F104,B37:B56,H37:H56)*$P$57 ->  | K104: =LOOKUP(F104,B37:B56,I37:I56)*$P$57 ->  | L104: =LOOKUP(F104,B37:B56,J37:J56) ->  | M104: =LOOKUP(F104,B37:B56,K37:K56) ->  | N104: =LOOKUP(F104,B37:B56,L37:L56) ->  | O104: =LOOKUP(F104,B37:B56,M37:M56) -> 
D105: 46 | E105: =IF( (E57+L57*D104)<=H57,(E57+L57*D104),"- - -") -> - - - | F105: =(B60+1)-MATCH(E105,C60:C79,-1) ->  | G105: =LOOKUP(F105,B37:B56,E37:E56) ->  | I105: =LOOKUP(F105,B37:B56,G37:G56)*$P$57 ->  | J105: =LOOKUP(F105,B37:B56,H37:H56)*$P$57 ->  | K105: =LOOKUP(F105,B37:B56,I37:I56)*$P$57 ->  | L105: =LOOKUP(F105,B37:B56,J37:J56) ->  | M105: =LOOKUP(F105,B37:B56,K37:K56) ->  | N105: =LOOKUP(F105,B37:B56,L37:L56) ->  | O105: =LOOKUP(F105,B37:B56,M37:M56) -> 
D106: 47 | E106: =IF( (E57+L57*D105)<=H57,(E57+L57*D105),"- - -") -> - - - | F106: =(B60+1)-MATCH(E106,C60:C79,-1) ->  | G106: =LOOKUP(F106,B37:B56,E37:E56) ->  | I106: =LOOKUP(F106,B37:B56,G37:G56)*$P$57 ->  | J106: =LOOKUP(F106,B37:B56,H37:H56)*$P$57 ->  | K106: =LOOKUP(F106,B37:B56,I37:I56)*$P$57 ->  | L106: =LOOKUP(F106,B37:B56,J37:J56) ->  | M106: =LOOKUP(F106,B37:B56,K37:K56) ->  | N106: =LOOKUP(F106,B37:B56,L37:L56) ->  | O106: =LOOKUP(F106,B37:B56,M37:M56) -> 
D107: 48 | E107: =IF( (E57+L57*D106)<=H57,(E57+L57*D106),"- - -") -> - - - | F107: =(B60+1)-MATCH(E107,C60:C79,-1) ->  | G107: =LOOKUP(F107,B37:B56,E37:E56) ->  | I107: =LOOKUP(F107,B37:B56,G37:G56)*$P$57 ->  | J107: =LOOKUP(F107,B37:B56,H37:H56)*$P$57 ->  | K107: =LOOKUP(F107,B37:B56,I37:I56)*$P$57 ->  | L107: =LOOKUP(F107,B37:B56,J37:J56) ->  | M107: =LOOKUP(F107,B37:B56,K37:K56) ->  | N107: =LOOKUP(F107,B37:B56,L37:L56) ->  | O107: =LOOKUP(F107,B37:B56,M37:M56) -> 
D108: 49 | E108: =IF( (E57+L57*D107)<=H57,(E57+L57*D107),"- - -") -> - - - | F108: =(B60+1)-MATCH(E108,C60:C79,-1) ->  | G108: =LOOKUP(F108,B37:B56,E37:E56) ->  | I108: =LOOKUP(F108,B37:B56,G37:G56)*$P$57 ->  | J108: =LOOKUP(F108,B37:B56,H37:H56)*$P$57 ->  | K108: =LOOKUP(F108,B37:B56,I37:I56)*$P$57 ->  | L108: =LOOKUP(F108,B37:B56,J37:J56) ->  | M108: =LOOKUP(F108,B37:B56,K37:K56) ->  | N108: =LOOKUP(F108,B37:B56,L37:L56) ->  | O108: =LOOKUP(F108,B37:B56,M37:M56) -> 
D109: 50 | E109: =IF( (E57+L57*D108)<=H57,(E57+L57*D108),"- - -") -> - - - | F109: =(B60+1)-MATCH(E109,C60:C79,-1) ->  | G109: =LOOKUP(F109,B37:B56,E37:E56) ->  | I109: =LOOKUP(F109,B37:B56,G37:G56)*$P$57 ->  | J109: =LOOKUP(F109,B37:B56,H37:H56)*$P$57 ->  | K109: =LOOKUP(F109,B37:B56,I37:I56)*$P$57 ->  | L109: =LOOKUP(F109,B37:B56,J37:J56) ->  | M109: =LOOKUP(F109,B37:B56,K37:K56) ->  | N109: =LOOKUP(F109,B37:B56,L37:L56) ->  | O109: =LOOKUP(F109,B37:B56,M37:M56) -> 
B112: 搬送負荷データレコード | E112: =LOOKUP(C114,MassDataLink!$A$4:$A$446,MassDataLink!$G$4:$G$446) -> RCA-SA4C-20-2.5-水平 | J112: 設置姿勢で絞込み | L112: - - - | N112: 加減速・速度データレコード
B113: № | C113: Ldﾚｺｰﾄﾞ№ | D113: =MassDataLink!B2 -> ｱｸﾁｭｴｰﾀ姿勢 | E113: =MassDataLink!C2 -> 搬送負荷質量 | F113: =MassDataLink!D2 -> 加減速・速度ﾃﾞｰﾀ | G113: =MassDataLink!E2 -> 前ﾃﾞｰﾀ№ | H113: =MassDataLink!F2 -> 次ﾃﾞｰﾀ№ | J113: № | K113: 搬送負荷質量 | L113: avﾚｺｰﾄﾞ№ | N113: 備考 | O113: =LOOKUP(O115,AccVelDataLink!$A$4:$A$446,AccVelDataLink!$F$4:$F$446) -> RCA-SA4C-20-2.5-水平
B114: 1 | C114: =LOOKUP(D35,B26:B33,E26:E33) -> 1 | D114: =LOOKUP(C114,MassDataLink!$A$4:$A$446,MassDataLink!$B$4:$B$446) -> 0 | E114: =LOOKUP(C114,MassDataLink!$A$4:$A$446,MassDataLink!$C$4:$C$446) -> 1000 | F114: =LOOKUP(C114,MassDataLink!$A$4:$A$446,MassDataLink!$D$4:$D$446) -> 1 | G114: =LOOKUP(C114,MassDataLink!$A$4:$A$446,MassDataLink!$E$4:$E$446) -> -1 | H114: =LOOKUP(C114,MassDataLink!$A$4:$A$446,MassDataLink!$F$4:$F$446) -> 2 | J114: 1 | K114: =IF(C114=-1,$L$112,IF($A$11=D114,ROUND((E114*$P$57),$R$57),$L$112)) -> 1 | L114: =IF(K114=$L$112,$L$112,F114) -> 1 | N114: № | O114: avﾚｺｰﾄﾞ№ | P114: 加速度 | Q114: 速度 | R114: 前ﾃﾞｰﾀ | S114: 次ﾃﾞｰﾀ
B115: =B114+1 -> 2 | C115: =IF(C114=-1,-1,H114) -> 2 | D115: =LOOKUP(C115,MassDataLink!$A$4:$A$446,MassDataLink!$B$4:$B$446) -> 0 | E115: =LOOKUP(C115,MassDataLink!$A$4:$A$446,MassDataLink!$C$4:$C$446) -> 2500 | F115: =LOOKUP(C115,MassDataLink!$A$4:$A$446,MassDataLink!$D$4:$D$446) -> 2 | G115: =LOOKUP(C115,MassDataLink!$A$4:$A$446,MassDataLink!$E$4:$E$446) -> 1 | H115: =LOOKUP(C115,MassDataLink!$A$4:$A$446,MassDataLink!$F$4:$F$446) -> 3 | J115: =J114+1 -> 2 | K115: =IF(C115=-1,$L$112,IF($A$11=D115,ROUND((E115*$P$57),$R$57),$L$112)) -> 2.5 | L115: =IF(K115=$L$112,$L$112,F115) -> 2 | N115: 1 | O115: =LOOKUP(A14,K114:K163,L114:L163) -> 1 | P115: =LOOKUP(O115,AccVelDataLink!$A$4:$A$446,AccVelDataLink!$B$4:$B$446) -> 4903325 | Q115: =LOOKUP(O115,AccVelDataLink!$A$4:$A$446,AccVelDataLink!$C$4:$C$446) -> 165 | R115: =LOOKUP(O115,AccVelDataLink!$A$4:$A$446,AccVelDataLink!$D$4:$D$446) -> -1 | S115: =LOOKUP(O115,AccVelDataLink!$A$4:$A$446,AccVelDataLink!$E$4:$E$446) -> -1
B116: =B115+1 -> 3 | C116: =IF(C115=-1,-1,H115) -> 3 | D116: =LOOKUP(C116,MassDataLink!$A$4:$A$446,MassDataLink!$B$4:$B$446) -> 0 | E116: =LOOKUP(C116,MassDataLink!$A$4:$A$446,MassDataLink!$C$4:$C$446) -> 5000 | F116: =LOOKUP(C116,MassDataLink!$A$4:$A$446,MassDataLink!$D$4:$D$446) -> 3 | G116: =LOOKUP(C116,MassDataLink!$A$4:$A$446,MassDataLink!$E$4:$E$446) -> 2 | H116: =LOOKUP(C116,MassDataLink!$A$4:$A$446,MassDataLink!$F$4:$F$446) -> 4 | J116: =J115+1 -> 3 | K116: 5 | L116: 3 | N116: =N115+1 -> 2 | O116: =IF(O115=-1,-1,S115) -> -1 | P116: =LOOKUP(O116,AccVelDataLink!$A$4:$A$446,AccVelDataLink!$B$4:$B$446) ->  | Q116: =LOOKUP(O116,AccVelDataLink!$A$4:$A$446,AccVelDataLink!$C$4:$C$446) ->  | R116: =LOOKUP(O116,AccVelDataLink!$A$4:$A$446,AccVelDataLink!$D$4:$D$446) ->  | S116: =LOOKUP(O116,AccVelDataLink!$A$4:$A$446,AccVelDataLink!$E$4:$E$446) -> 
B117: =B116+1 -> 4 | C117: =IF(C116=-1,-1,H116) -> 4 | D117: =LOOKUP(C117,MassDataLink!$A$4:$A$446,MassDataLink!$B$4:$B$446) -> 0 | E117: =LOOKUP(C117,MassDataLink!$A$4:$A$446,MassDataLink!$C$4:$C$446) -> 8000 | F117: =LOOKUP(C117,MassDataLink!$A$4:$A$446,MassDataLink!$D$4:$D$446) -> 4 | G117: =LOOKUP(C117,MassDataLink!$A$4:$A$446,MassDataLink!$E$4:$E$446) -> 3 | H117: =LOOKUP(C117,MassDataLink!$A$4:$A$446,MassDataLink!$F$4:$F$446) -> 5 | J117: =J116+1 -> 4 | K117: 8 | L117: 4 | N117: 3 | O117: =IF(O116=-1,-1,S116) -> -1 | P117: =LOOKUP(O117,AccVelDataLink!$A$4:$A$446,AccVelDataLink!$B$4:$B$446) ->  | Q117: =LOOKUP(O117,AccVelDataLink!$A$4:$A$446,AccVelDataLink!$C$4:$C$446) ->  | R117: =LOOKUP(O117,AccVelDataLink!$A$4:$A$446,AccVelDataLink!$D$4:$D$446) ->  | S117: =LOOKUP(O117,AccVelDataLink!$A$4:$A$446,AccVelDataLink!$E$4:$E$446) -> 
B118: =B117+1 -> 5 | C118: =IF(C117=-1,-1,H117) -> 5 | D118: =LOOKUP(C118,MassDataLink!$A$4:$A$446,MassDataLink!$B$4:$B$446) -> 0 | E118: =LOOKUP(C118,MassDataLink!$A$4:$A$446,MassDataLink!$C$4:$C$446) -> 11000 | F118: =LOOKUP(C118,MassDataLink!$A$4:$A$446,MassDataLink!$D$4:$D$446) -> 5 | G118: =LOOKUP(C118,MassDataLink!$A$4:$A$446,MassDataLink!$E$4:$E$446) -> 4 | H118: =LOOKUP(C118,MassDataLink!$A$4:$A$446,MassDataLink!$F$4:$F$446) -> 6 | J118: =J117+1 -> 5 | K118: 11 | L118: 5 | N118: 4 | O118: -1 | P118: =LOOKUP(O118,AccVelDataLink!$A$4:$A$446,AccVelDataLink!$B$4:$B$446) ->  | Q118: =LOOKUP(O118,AccVelDataLink!$A$4:$A$446,AccVelDataLink!$C$4:$C$446) ->  | R118: =LOOKUP(O118,AccVelDataLink!$A$4:$A$446,AccVelDataLink!$D$4:$D$446) ->  | S118: =LOOKUP(O118,AccVelDataLink!$A$4:$A$446,AccVelDataLink!$E$4:$E$446) -> 
B119: =B118+1 -> 6 | C119: =IF(C118=-1,-1,H118) -> 6 | D119: =LOOKUP(C119,MassDataLink!$A$4:$A$446,MassDataLink!$B$4:$B$446) -> 1 | E119: =LOOKUP(C119,MassDataLink!$A$4:$A$446,MassDataLink!$C$4:$C$446) -> 2000 | F119: =LOOKUP(C119,MassDataLink!$A$4:$A$446,MassDataLink!$D$4:$D$446) -> 6 | G119: =LOOKUP(C119,MassDataLink!$A$4:$A$446,MassDataLink!$E$4:$E$446) -> 5 | H119: =LOOKUP(C119,MassDataLink!$A$4:$A$446,MassDataLink!$F$4:$F$446) -> 7 | J119: =J118+1 -> 6 | K119: - - - | L119: - - - | N119: 5 | O119: -1 | P119: =LOOKUP(O119,AccVelDataLink!$A$4:$A$446,AccVelDataLink!$B$4:$B$446) ->  | Q119: =LOOKUP(O119,AccVelDataLink!$A$4:$A$446,AccVelDataLink!$C$4:$C$446) ->  | R119: =LOOKUP(O119,AccVelDataLink!$A$4:$A$446,AccVelDataLink!$D$4:$D$446) ->  | S119: =LOOKUP(O119,AccVelDataLink!$A$4:$A$446,AccVelDataLink!$E$4:$E$446) -> 
B120: 7 | C120: 7 | D120: =LOOKUP(C120,MassDataLink!$A$4:$A$446,MassDataLink!$B$4:$B$446) -> 1 | E120: =LOOKUP(C120,MassDataLink!$A$4:$A$446,MassDataLink!$C$4:$C$446) -> 4500 | F120: =LOOKUP(C120,MassDataLink!$A$4:$A$446,MassDataLink!$D$4:$D$446) -> 7 | G120: =LOOKUP(C120,MassDataLink!$A$4:$A$446,MassDataLink!$E$4:$E$446) -> 6 | H120: =LOOKUP(C120,MassDataLink!$A$4:$A$446,MassDataLink!$F$4:$F$446) -> -1 | J120: 7 | K120: - - - | L120: - - - | N120: 6 | O120: -1 | P120: =LOOKUP(O120,AccVelDataLink!$A$4:$A$446,AccVelDataLink!$B$4:$B$446) ->  | Q120: =LOOKUP(O120,AccVelDataLink!$A$4:$A$446,AccVelDataLink!$C$4:$C$446) ->  | R120: =LOOKUP(O120,AccVelDataLink!$A$4:$A$446,AccVelDataLink!$D$4:$D$446) ->  | S120: =LOOKUP(O120,AccVelDataLink!$A$4:$A$446,AccVelDataLink!$E$4:$E$446) -> 
B121: 8 | C121: -1 | D121: =LOOKUP(C121,MassDataLink!$A$4:$A$446,MassDataLink!$B$4:$B$446) ->  | E121: =LOOKUP(C121,MassDataLink!$A$4:$A$446,MassDataLink!$C$4:$C$446) ->  | F121: =LOOKUP(C121,MassDataLink!$A$4:$A$446,MassDataLink!$D$4:$D$446) ->  | G121: =LOOKUP(C121,MassDataLink!$A$4:$A$446,MassDataLink!$E$4:$E$446) ->  | H121: =LOOKUP(C121,MassDataLink!$A$4:$A$446,MassDataLink!$F$4:$F$446) ->  | J121: 8 | K121: - - - | L121: - - - | N121: 7 | O121: -1 | P121: =LOOKUP(O121,AccVelDataLink!$A$4:$A$446,AccVelDataLink!$B$4:$B$446) ->  | Q121: =LOOKUP(O121,AccVelDataLink!$A$4:$A$446,AccVelDataLink!$C$4:$C$446) ->  | R121: =LOOKUP(O121,AccVelDataLink!$A$4:$A$446,AccVelDataLink!$D$4:$D$446) ->  | S121: =LOOKUP(O121,AccVelDataLink!$A$4:$A$446,AccVelDataLink!$E$4:$E$446) -> 
B122: 9 | C122: -1 | D122: =LOOKUP(C122,MassDataLink!$A$4:$A$446,MassDataLink!$B$4:$B$446) ->  | E122: =LOOKUP(C122,MassDataLink!$A$4:$A$446,MassDataLink!$C$4:$C$446) ->  | F122: =LOOKUP(C122,MassDataLink!$A$4:$A$446,MassDataLink!$D$4:$D$446) ->  | G122: =LOOKUP(C122,MassDataLink!$A$4:$A$446,MassDataLink!$E$4:$E$446) ->  | H122: =LOOKUP(C122,MassDataLink!$A$4:$A$446,MassDataLink!$F$4:$F$446) ->  | J122: 9 | K122: - - - | L122: - - - | N122: 8 | O122: -1 | P122: =LOOKUP(O122,AccVelDataLink!$A$4:$A$446,AccVelDataLink!$B$4:$B$446) ->  | Q122: =LOOKUP(O122,AccVelDataLink!$A$4:$A$446,AccVelDataLink!$C$4:$C$446) ->  | R122: =LOOKUP(O122,AccVelDataLink!$A$4:$A$446,AccVelDataLink!$D$4:$D$446) ->  | S122: =LOOKUP(O122,AccVelDataLink!$A$4:$A$446,AccVelDataLink!$E$4:$E$446) -> 
B123: 10 | C123: -1 | D123: =LOOKUP(C123,MassDataLink!$A$4:$A$446,MassDataLink!$B$4:$B$446) ->  | E123: =LOOKUP(C123,MassDataLink!$A$4:$A$446,MassDataLink!$C$4:$C$446) ->  | F123: =LOOKUP(C123,MassDataLink!$A$4:$A$446,MassDataLink!$D$4:$D$446) ->  | G123: =LOOKUP(C123,MassDataLink!$A$4:$A$446,MassDataLink!$E$4:$E$446) ->  | H123: =LOOKUP(C123,MassDataLink!$A$4:$A$446,MassDataLink!$F$4:$F$446) ->  | J123: 10 | K123: - - - | L123: - - - | N123: 9 | O123: -1 | P123: =LOOKUP(O123,AccVelDataLink!$A$4:$A$446,AccVelDataLink!$B$4:$B$446) ->  | Q123: =LOOKUP(O123,AccVelDataLink!$A$4:$A$446,AccVelDataLink!$C$4:$C$446) ->  | R123: =LOOKUP(O123,AccVelDataLink!$A$4:$A$446,AccVelDataLink!$D$4:$D$446) ->  | S123: =LOOKUP(O123,AccVelDataLink!$A$4:$A$446,AccVelDataLink!$E$4:$E$446) -> 
B124: 11 | C124: -1 | D124: =LOOKUP(C124,MassDataLink!$A$4:$A$446,MassDataLink!$B$4:$B$446) ->  | E124: =LOOKUP(C124,MassDataLink!$A$4:$A$446,MassDataLink!$C$4:$C$446) ->  | F124: =LOOKUP(C124,MassDataLink!$A$4:$A$446,MassDataLink!$D$4:$D$446) ->  | G124: =LOOKUP(C124,MassDataLink!$A$4:$A$446,MassDataLink!$E$4:$E$446) ->  | H124: =LOOKUP(C124,MassDataLink!$A$4:$A$446,MassDataLink!$F$4:$F$446) ->  | J124: 11 | K124: - - - | L124: - - - | N124: 10 | O124: -1 | P124: =LOOKUP(O124,AccVelDataLink!$A$4:$A$446,AccVelDataLink!$B$4:$B$446) ->  | Q124: =LOOKUP(O124,AccVelDataLink!$A$4:$A$446,AccVelDataLink!$C$4:$C$446) ->  | R124: =LOOKUP(O124,AccVelDataLink!$A$4:$A$446,AccVelDataLink!$D$4:$D$446) ->  | S124: =LOOKUP(O124,AccVelDataLink!$A$4:$A$446,AccVelDataLink!$E$4:$E$446) -> 
B125: 12 | C125: -1 | D125: =LOOKUP(C125,MassDataLink!$A$4:$A$446,MassDataLink!$B$4:$B$446) ->  | E125: =LOOKUP(C125,MassDataLink!$A$4:$A$446,MassDataLink!$C$4:$C$446) ->  | F125: =LOOKUP(C125,MassDataLink!$A$4:$A$446,MassDataLink!$D$4:$D$446) ->  | G125: =LOOKUP(C125,MassDataLink!$A$4:$A$446,MassDataLink!$E$4:$E$446) ->  | H125: =LOOKUP(C125,MassDataLink!$A$4:$A$446,MassDataLink!$F$4:$F$446) ->  | J125: 12 | K125: - - - | L125: - - - | O125: 加速度系数 | P125: 1e-06
B126: 13 | C126: -1 | D126: =LOOKUP(C126,MassDataLink!$A$4:$A$446,MassDataLink!$B$4:$B$446) ->  | E126: =LOOKUP(C126,MassDataLink!$A$4:$A$446,MassDataLink!$C$4:$C$446) ->  | F126: =LOOKUP(C126,MassDataLink!$A$4:$A$446,MassDataLink!$D$4:$D$446) ->  | G126: =LOOKUP(C126,MassDataLink!$A$4:$A$446,MassDataLink!$E$4:$E$446) ->  | H126: =LOOKUP(C126,MassDataLink!$A$4:$A$446,MassDataLink!$F$4:$F$446) ->  | J126: 13 | K126: - - - | L126: - - - | N126: G | O126: № | P126: 加速度 | Q126: 速度
B127: 14 | C127: -1 | D127: =LOOKUP(C127,MassDataLink!$A$4:$A$446,MassDataLink!$B$4:$B$446) ->  | E127: =LOOKUP(C127,MassDataLink!$A$4:$A$446,MassDataLink!$C$4:$C$446) ->  | F127: =LOOKUP(C127,MassDataLink!$A$4:$A$446,MassDataLink!$D$4:$D$446) ->  | G127: =LOOKUP(C127,MassDataLink!$A$4:$A$446,MassDataLink!$E$4:$E$446) ->  | H127: =LOOKUP(C127,MassDataLink!$A$4:$A$446,MassDataLink!$F$4:$F$446) ->  | J127: 14 | K127: - - - | L127: - - - | N127: =LeadData!A1 -> 9.80665 | O127: 1 | P127: =IF(O115=-1,$L$112,(P115/$N$127)*$P$125) -> 0.5 | Q127: =IF(O115=-1,$L$112,Q115) -> 165
B128: 15 | C128: -1 | D128: =LOOKUP(C128,MassDataLink!$A$4:$A$446,MassDataLink!$B$4:$B$446) ->  | E128: =LOOKUP(C128,MassDataLink!$A$4:$A$446,MassDataLink!$C$4:$C$446) ->  | F128: =LOOKUP(C128,MassDataLink!$A$4:$A$446,MassDataLink!$D$4:$D$446) ->  | G128: =LOOKUP(C128,MassDataLink!$A$4:$A$446,MassDataLink!$E$4:$E$446) ->  | H128: =LOOKUP(C128,MassDataLink!$A$4:$A$446,MassDataLink!$F$4:$F$446) ->  | J128: 15 | K128: - - - | L128: - - - | O128: =O127+1 -> 2 | P128: =IF(O116=-1,$L$112,(P116/$N$127)*$P$125) -> - - - | Q128: =IF(O116=-1,$L$112,Q116) -> - - -
B129: 16 | C129: -1 | D129: =LOOKUP(C129,MassDataLink!$A$4:$A$446,MassDataLink!$B$4:$B$446) ->  | E129: =LOOKUP(C129,MassDataLink!$A$4:$A$446,MassDataLink!$C$4:$C$446) ->  | F129: =LOOKUP(C129,MassDataLink!$A$4:$A$446,MassDataLink!$D$4:$D$446) ->  | G129: =LOOKUP(C129,MassDataLink!$A$4:$A$446,MassDataLink!$E$4:$E$446) ->  | H129: =LOOKUP(C129,MassDataLink!$A$4:$A$446,MassDataLink!$F$4:$F$446) ->  | J129: 16 | K129: - - - | L129: - - - | O129: 3 | P129: - - - | Q129: - - -
B130: 17 | C130: -1 | D130: =LOOKUP(C130,MassDataLink!$A$4:$A$446,MassDataLink!$B$4:$B$446) ->  | E130: =LOOKUP(C130,MassDataLink!$A$4:$A$446,MassDataLink!$C$4:$C$446) ->  | F130: =LOOKUP(C130,MassDataLink!$A$4:$A$446,MassDataLink!$D$4:$D$446) ->  | G130: =LOOKUP(C130,MassDataLink!$A$4:$A$446,MassDataLink!$E$4:$E$446) ->  | H130: =LOOKUP(C130,MassDataLink!$A$4:$A$446,MassDataLink!$F$4:$F$446) ->  | J130: 17 | K130: - - - | L130: - - - | O130: 4 | P130: - - - | Q130: - - -
B131: 18 | C131: -1 | D131: =LOOKUP(C131,MassDataLink!$A$4:$A$446,MassDataLink!$B$4:$B$446) ->  | E131: =LOOKUP(C131,MassDataLink!$A$4:$A$446,MassDataLink!$C$4:$C$446) ->  | F131: =LOOKUP(C131,MassDataLink!$A$4:$A$446,MassDataLink!$D$4:$D$446) ->  | G131: =LOOKUP(C131,MassDataLink!$A$4:$A$446,MassDataLink!$E$4:$E$446) ->  | H131: =LOOKUP(C131,MassDataLink!$A$4:$A$446,MassDataLink!$F$4:$F$446) ->  | J131: 18 | K131: - - - | L131: - - - | O131: 5 | P131: - - - | Q131: - - -
B132: 19 | C132: -1 | D132: =LOOKUP(C132,MassDataLink!$A$4:$A$446,MassDataLink!$B$4:$B$446) ->  | E132: =LOOKUP(C132,MassDataLink!$A$4:$A$446,MassDataLink!$C$4:$C$446) ->  | F132: =LOOKUP(C132,MassDataLink!$A$4:$A$446,MassDataLink!$D$4:$D$446) ->  | G132: =LOOKUP(C132,MassDataLink!$A$4:$A$446,MassDataLink!$E$4:$E$446) ->  | H132: =LOOKUP(C132,MassDataLink!$A$4:$A$446,MassDataLink!$F$4:$F$446) ->  | J132: 19 | K132: - - - | L132: - - - | O132: 6 | P132: - - - | Q132: - - -
B133: 20 | C133: -1 | D133: =LOOKUP(C133,MassDataLink!$A$4:$A$446,MassDataLink!$B$4:$B$446) ->  | E133: =LOOKUP(C133,MassDataLink!$A$4:$A$446,MassDataLink!$C$4:$C$446) ->  | F133: =LOOKUP(C133,MassDataLink!$A$4:$A$446,MassDataLink!$D$4:$D$446) ->  | G133: =LOOKUP(C133,MassDataLink!$A$4:$A$446,MassDataLink!$E$4:$E$446) ->  | H133: =LOOKUP(C133,MassDataLink!$A$4:$A$446,MassDataLink!$F$4:$F$446) ->  | J133: 20 | K133: - - - | L133: - - - | O133: 7 | P133: - - - | Q133: - - -
B134: 21 | C134: -1 | D134: =LOOKUP(C134,MassDataLink!$A$4:$A$446,MassDataLink!$B$4:$B$446) ->  | E134: =LOOKUP(C134,MassDataLink!$A$4:$A$446,MassDataLink!$C$4:$C$446) ->  | F134: =LOOKUP(C134,MassDataLink!$A$4:$A$446,MassDataLink!$D$4:$D$446) ->  | G134: =LOOKUP(C134,MassDataLink!$A$4:$A$446,MassDataLink!$E$4:$E$446) ->  | H134: =LOOKUP(C134,MassDataLink!$A$4:$A$446,MassDataLink!$F$4:$F$446) ->  | J134: 21 | K134: - - - | L134: - - - | O134: 8 | P134: - - - | Q134: - - -
B135: 22 | C135: -1 | D135: =LOOKUP(C135,MassDataLink!$A$4:$A$446,MassDataLink!$B$4:$B$446) ->  | E135: =LOOKUP(C135,MassDataLink!$A$4:$A$446,MassDataLink!$C$4:$C$446) ->  | F135: =LOOKUP(C135,MassDataLink!$A$4:$A$446,MassDataLink!$D$4:$D$446) ->  | G135: =LOOKUP(C135,MassDataLink!$A$4:$A$446,MassDataLink!$E$4:$E$446) ->  | H135: =LOOKUP(C135,MassDataLink!$A$4:$A$446,MassDataLink!$F$4:$F$446) ->  | J135: 22 | K135: - - - | L135: - - - | O135: 9 | P135: - - - | Q135: - - -
B136: 23 | C136: -1 | D136: =LOOKUP(C136,MassDataLink!$A$4:$A$446,MassDataLink!$B$4:$B$446) ->  | E136: =LOOKUP(C136,MassDataLink!$A$4:$A$446,MassDataLink!$C$4:$C$446) ->  | F136: =LOOKUP(C136,MassDataLink!$A$4:$A$446,MassDataLink!$D$4:$D$446) ->  | G136: =LOOKUP(C136,MassDataLink!$A$4:$A$446,MassDataLink!$E$4:$E$446) ->  | H136: =LOOKUP(C136,MassDataLink!$A$4:$A$446,MassDataLink!$F$4:$F$446) ->  | J136: 23 | K136: - - - | L136: - - - | O136: 10 | P136: - - - | Q136: - - -
B137: 24 | C137: -1 | D137: =LOOKUP(C137,MassDataLink!$A$4:$A$446,MassDataLink!$B$4:$B$446) ->  | E137: =LOOKUP(C137,MassDataLink!$A$4:$A$446,MassDataLink!$C$4:$C$446) ->  | F137: =LOOKUP(C137,MassDataLink!$A$4:$A$446,MassDataLink!$D$4:$D$446) ->  | G137: =LOOKUP(C137,MassDataLink!$A$4:$A$446,MassDataLink!$E$4:$E$446) ->  | H137: =LOOKUP(C137,MassDataLink!$A$4:$A$446,MassDataLink!$F$4:$F$446) ->  | J137: 24 | K137: - - - | L137: - - -
B138: 25 | C138: -1 | D138: =LOOKUP(C138,MassDataLink!$A$4:$A$446,MassDataLink!$B$4:$B$446) ->  | E138: =LOOKUP(C138,MassDataLink!$A$4:$A$446,MassDataLink!$C$4:$C$446) ->  | F138: =LOOKUP(C138,MassDataLink!$A$4:$A$446,MassDataLink!$D$4:$D$446) ->  | G138: =LOOKUP(C138,MassDataLink!$A$4:$A$446,MassDataLink!$E$4:$E$446) ->  | H138: =LOOKUP(C138,MassDataLink!$A$4:$A$446,MassDataLink!$F$4:$F$446) ->  | J138: 25 | K138: - - - | L138: - - -
B139: 26 | C139: -1 | D139: =LOOKUP(C139,MassDataLink!$A$4:$A$446,MassDataLink!$B$4:$B$446) ->  | E139: =LOOKUP(C139,MassDataLink!$A$4:$A$446,MassDataLink!$C$4:$C$446) ->  | F139: =LOOKUP(C139,MassDataLink!$A$4:$A$446,MassDataLink!$D$4:$D$446) ->  | G139: =LOOKUP(C139,MassDataLink!$A$4:$A$446,MassDataLink!$E$4:$E$446) ->  | H139: =LOOKUP(C139,MassDataLink!$A$4:$A$446,MassDataLink!$F$4:$F$446) ->  | J139: 26 | K139: - - - | L139: - - -
B140: 27 | C140: -1 | D140: =LOOKUP(C140,MassDataLink!$A$4:$A$446,MassDataLink!$B$4:$B$446) ->  | E140: =LOOKUP(C140,MassDataLink!$A$4:$A$446,MassDataLink!$C$4:$C$446) ->  | F140: =LOOKUP(C140,MassDataLink!$A$4:$A$446,MassDataLink!$D$4:$D$446) ->  | G140: =LOOKUP(C140,MassDataLink!$A$4:$A$446,MassDataLink!$E$4:$E$446) ->  | H140: =LOOKUP(C140,MassDataLink!$A$4:$A$446,MassDataLink!$F$4:$F$446) ->  | J140: 27 | K140: - - - | L140: - - -
B141: 28 | C141: -1 | D141: =LOOKUP(C141,MassDataLink!$A$4:$A$446,MassDataLink!$B$4:$B$446) ->  | E141: =LOOKUP(C141,MassDataLink!$A$4:$A$446,MassDataLink!$C$4:$C$446) ->  | F141: =LOOKUP(C141,MassDataLink!$A$4:$A$446,MassDataLink!$D$4:$D$446) ->  | G141: =LOOKUP(C141,MassDataLink!$A$4:$A$446,MassDataLink!$E$4:$E$446) ->  | H141: =LOOKUP(C141,MassDataLink!$A$4:$A$446,MassDataLink!$F$4:$F$446) ->  | J141: 28 | K141: - - - | L141: - - -
B142: 29 | C142: -1 | D142: =LOOKUP(C142,MassDataLink!$A$4:$A$446,MassDataLink!$B$4:$B$446) ->  | E142: =LOOKUP(C142,MassDataLink!$A$4:$A$446,MassDataLink!$C$4:$C$446) ->  | F142: =LOOKUP(C142,MassDataLink!$A$4:$A$446,MassDataLink!$D$4:$D$446) ->  | G142: =LOOKUP(C142,MassDataLink!$A$4:$A$446,MassDataLink!$E$4:$E$446) ->  | H142: =LOOKUP(C142,MassDataLink!$A$4:$A$446,MassDataLink!$F$4:$F$446) ->  | J142: 29 | K142: - - - | L142: - - -
B143: 30 | C143: -1 | D143: =LOOKUP(C143,MassDataLink!$A$4:$A$446,MassDataLink!$B$4:$B$446) ->  | E143: =LOOKUP(C143,MassDataLink!$A$4:$A$446,MassDataLink!$C$4:$C$446) ->  | F143: =LOOKUP(C143,MassDataLink!$A$4:$A$446,MassDataLink!$D$4:$D$446) ->  | G143: =LOOKUP(C143,MassDataLink!$A$4:$A$446,MassDataLink!$E$4:$E$446) ->  | H143: =LOOKUP(C143,MassDataLink!$A$4:$A$446,MassDataLink!$F$4:$F$446) ->  | J143: 30 | K143: - - - | L143: - - -
B144: 31 | C144: -1 | D144: =LOOKUP(C144,MassDataLink!$A$4:$A$446,MassDataLink!$B$4:$B$446) ->  | E144: =LOOKUP(C144,MassDataLink!$A$4:$A$446,MassDataLink!$C$4:$C$446) ->  | F144: =LOOKUP(C144,MassDataLink!$A$4:$A$446,MassDataLink!$D$4:$D$446) ->  | G144: =LOOKUP(C144,MassDataLink!$A$4:$A$446,MassDataLink!$E$4:$E$446) ->  | H144: =LOOKUP(C144,MassDataLink!$A$4:$A$446,MassDataLink!$F$4:$F$446) ->  | J144: 31 | K144: - - - | L144: - - -
B145: 32 | C145: -1 | D145: =LOOKUP(C145,MassDataLink!$A$4:$A$446,MassDataLink!$B$4:$B$446) ->  | E145: =LOOKUP(C145,MassDataLink!$A$4:$A$446,MassDataLink!$C$4:$C$446) ->  | F145: =LOOKUP(C145,MassDataLink!$A$4:$A$446,MassDataLink!$D$4:$D$446) ->  | G145: =LOOKUP(C145,MassDataLink!$A$4:$A$446,MassDataLink!$E$4:$E$446) ->  | H145: =LOOKUP(C145,MassDataLink!$A$4:$A$446,MassDataLink!$F$4:$F$446) ->  | J145: 32 | K145: - - - | L145: - - -
B146: 33 | C146: -1 | D146: =LOOKUP(C146,MassDataLink!$A$4:$A$446,MassDataLink!$B$4:$B$446) ->  | E146: =LOOKUP(C146,MassDataLink!$A$4:$A$446,MassDataLink!$C$4:$C$446) ->  | F146: =LOOKUP(C146,MassDataLink!$A$4:$A$446,MassDataLink!$D$4:$D$446) ->  | G146: =LOOKUP(C146,MassDataLink!$A$4:$A$446,MassDataLink!$E$4:$E$446) ->  | H146: =LOOKUP(C146,MassDataLink!$A$4:$A$446,MassDataLink!$F$4:$F$446) ->  | J146: 33 | K146: - - - | L146: - - -
B147: 34 | C147: -1 | D147: =LOOKUP(C147,MassDataLink!$A$4:$A$446,MassDataLink!$B$4:$B$446) ->  | E147: =LOOKUP(C147,MassDataLink!$A$4:$A$446,MassDataLink!$C$4:$C$446) ->  | F147: =LOOKUP(C147,MassDataLink!$A$4:$A$446,MassDataLink!$D$4:$D$446) ->  | G147: =LOOKUP(C147,MassDataLink!$A$4:$A$446,MassDataLink!$E$4:$E$446) ->  | H147: =LOOKUP(C147,MassDataLink!$A$4:$A$446,MassDataLink!$F$4:$F$446) ->  | J147: 34 | K147: - - - | L147: - - -
B148: 35 | C148: -1 | D148: =LOOKUP(C148,MassDataLink!$A$4:$A$446,MassDataLink!$B$4:$B$446) ->  | E148: =LOOKUP(C148,MassDataLink!$A$4:$A$446,MassDataLink!$C$4:$C$446) ->  | F148: =LOOKUP(C148,MassDataLink!$A$4:$A$446,MassDataLink!$D$4:$D$446) ->  | G148: =LOOKUP(C148,MassDataLink!$A$4:$A$446,MassDataLink!$E$4:$E$446) ->  | H148: =LOOKUP(C148,MassDataLink!$A$4:$A$446,MassDataLink!$F$4:$F$446) ->  | J148: 35 | K148: - - - | L148: - - -
B149: 36 | C149: -1 | D149: =LOOKUP(C149,MassDataLink!$A$4:$A$446,MassDataLink!$B$4:$B$446) ->  | E149: =LOOKUP(C149,MassDataLink!$A$4:$A$446,MassDataLink!$C$4:$C$446) ->  | F149: =LOOKUP(C149,MassDataLink!$A$4:$A$446,MassDataLink!$D$4:$D$446) ->  | G149: =LOOKUP(C149,MassDataLink!$A$4:$A$446,MassDataLink!$E$4:$E$446) ->  | H149: =LOOKUP(C149,MassDataLink!$A$4:$A$446,MassDataLink!$F$4:$F$446) ->  | J149: 36 | K149: - - - | L149: - - -
B150: 37 | C150: -1 | D150: =LOOKUP(C150,MassDataLink!$A$4:$A$446,MassDataLink!$B$4:$B$446) ->  | E150: =LOOKUP(C150,MassDataLink!$A$4:$A$446,MassDataLink!$C$4:$C$446) ->  | F150: =LOOKUP(C150,MassDataLink!$A$4:$A$446,MassDataLink!$D$4:$D$446) ->  | G150: =LOOKUP(C150,MassDataLink!$A$4:$A$446,MassDataLink!$E$4:$E$446) ->  | H150: =LOOKUP(C150,MassDataLink!$A$4:$A$446,MassDataLink!$F$4:$F$446) ->  | J150: 37 | K150: - - - | L150: - - -
B151: 38 | C151: -1 | D151: =LOOKUP(C151,MassDataLink!$A$4:$A$446,MassDataLink!$B$4:$B$446) ->  | E151: =LOOKUP(C151,MassDataLink!$A$4:$A$446,MassDataLink!$C$4:$C$446) ->  | F151: =LOOKUP(C151,MassDataLink!$A$4:$A$446,MassDataLink!$D$4:$D$446) ->  | G151: =LOOKUP(C151,MassDataLink!$A$4:$A$446,MassDataLink!$E$4:$E$446) ->  | H151: =LOOKUP(C151,MassDataLink!$A$4:$A$446,MassDataLink!$F$4:$F$446) ->  | J151: 38 | K151: - - - | L151: - - -
B152: 39 | C152: -1 | D152: =LOOKUP(C152,MassDataLink!$A$4:$A$446,MassDataLink!$B$4:$B$446) ->  | E152: =LOOKUP(C152,MassDataLink!$A$4:$A$446,MassDataLink!$C$4:$C$446) ->  | F152: =LOOKUP(C152,MassDataLink!$A$4:$A$446,MassDataLink!$D$4:$D$446) ->  | G152: =LOOKUP(C152,MassDataLink!$A$4:$A$446,MassDataLink!$E$4:$E$446) ->  | H152: =LOOKUP(C152,MassDataLink!$A$4:$A$446,MassDataLink!$F$4:$F$446) ->  | J152: 39 | K152: - - - | L152: - - -
B153: 40 | C153: -1 | D153: =LOOKUP(C153,MassDataLink!$A$4:$A$446,MassDataLink!$B$4:$B$446) ->  | E153: =LOOKUP(C153,MassDataLink!$A$4:$A$446,MassDataLink!$C$4:$C$446) ->  | F153: =LOOKUP(C153,MassDataLink!$A$4:$A$446,MassDataLink!$D$4:$D$446) ->  | G153: =LOOKUP(C153,MassDataLink!$A$4:$A$446,MassDataLink!$E$4:$E$446) ->  | H153: =LOOKUP(C153,MassDataLink!$A$4:$A$446,MassDataLink!$F$4:$F$446) ->  | J153: 40 | K153: - - - | L153: - - -
B154: 41 | C154: -1 | D154: =LOOKUP(C154,MassDataLink!$A$4:$A$446,MassDataLink!$B$4:$B$446) ->  | E154: =LOOKUP(C154,MassDataLink!$A$4:$A$446,MassDataLink!$C$4:$C$446) ->  | F154: =LOOKUP(C154,MassDataLink!$A$4:$A$446,MassDataLink!$D$4:$D$446) ->  | G154: =LOOKUP(C154,MassDataLink!$A$4:$A$446,MassDataLink!$E$4:$E$446) ->  | H154: =LOOKUP(C154,MassDataLink!$A$4:$A$446,MassDataLink!$F$4:$F$446) ->  | J154: 41 | K154: - - - | L154: - - -
B155: 42 | C155: -1 | D155: =LOOKUP(C155,MassDataLink!$A$4:$A$446,MassDataLink!$B$4:$B$446) ->  | E155: =LOOKUP(C155,MassDataLink!$A$4:$A$446,MassDataLink!$C$4:$C$446) ->  | F155: =LOOKUP(C155,MassDataLink!$A$4:$A$446,MassDataLink!$D$4:$D$446) ->  | G155: =LOOKUP(C155,MassDataLink!$A$4:$A$446,MassDataLink!$E$4:$E$446) ->  | H155: =LOOKUP(C155,MassDataLink!$A$4:$A$446,MassDataLink!$F$4:$F$446) ->  | J155: 42 | K155: - - - | L155: - - -
B156: 43 | C156: -1 | D156: =LOOKUP(C156,MassDataLink!$A$4:$A$446,MassDataLink!$B$4:$B$446) ->  | E156: =LOOKUP(C156,MassDataLink!$A$4:$A$446,MassDataLink!$C$4:$C$446) ->  | F156: =LOOKUP(C156,MassDataLink!$A$4:$A$446,MassDataLink!$D$4:$D$446) ->  | G156: =LOOKUP(C156,MassDataLink!$A$4:$A$446,MassDataLink!$E$4:$E$446) ->  | H156: =LOOKUP(C156,MassDataLink!$A$4:$A$446,MassDataLink!$F$4:$F$446) ->  | J156: 43 | K156: - - - | L156: - - -
B157: 44 | C157: -1 | D157: =LOOKUP(C157,MassDataLink!$A$4:$A$446,MassDataLink!$B$4:$B$446) ->  | E157: =LOOKUP(C157,MassDataLink!$A$4:$A$446,MassDataLink!$C$4:$C$446) ->  | F157: =LOOKUP(C157,MassDataLink!$A$4:$A$446,MassDataLink!$D$4:$D$446) ->  | G157: =LOOKUP(C157,MassDataLink!$A$4:$A$446,MassDataLink!$E$4:$E$446) ->  | H157: =LOOKUP(C157,MassDataLink!$A$4:$A$446,MassDataLink!$F$4:$F$446) ->  | J157: 44 | K157: - - - | L157: - - -
B158: 45 | C158: -1 | D158: =LOOKUP(C158,MassDataLink!$A$4:$A$446,MassDataLink!$B$4:$B$446) ->  | E158: =LOOKUP(C158,MassDataLink!$A$4:$A$446,MassDataLink!$C$4:$C$446) ->  | F158: =LOOKUP(C158,MassDataLink!$A$4:$A$446,MassDataLink!$D$4:$D$446) ->  | G158: =LOOKUP(C158,MassDataLink!$A$4:$A$446,MassDataLink!$E$4:$E$446) ->  | H158: =LOOKUP(C158,MassDataLink!$A$4:$A$446,MassDataLink!$F$4:$F$446) ->  | J158: 45 | K158: - - - | L158: - - -
B159: 46 | C159: -1 | D159: =LOOKUP(C159,MassDataLink!$A$4:$A$446,MassDataLink!$B$4:$B$446) ->  | E159: =LOOKUP(C159,MassDataLink!$A$4:$A$446,MassDataLink!$C$4:$C$446) ->  | F159: =LOOKUP(C159,MassDataLink!$A$4:$A$446,MassDataLink!$D$4:$D$446) ->  | G159: =LOOKUP(C159,MassDataLink!$A$4:$A$446,MassDataLink!$E$4:$E$446) ->  | H159: =LOOKUP(C159,MassDataLink!$A$4:$A$446,MassDataLink!$F$4:$F$446) ->  | J159: 46 | K159: - - - | L159: - - -
B160: 47 | C160: -1 | D160: =LOOKUP(C160,MassDataLink!$A$4:$A$446,MassDataLink!$B$4:$B$446) ->  | E160: =LOOKUP(C160,MassDataLink!$A$4:$A$446,MassDataLink!$C$4:$C$446) ->  | F160: =LOOKUP(C160,MassDataLink!$A$4:$A$446,MassDataLink!$D$4:$D$446) ->  | G160: =LOOKUP(C160,MassDataLink!$A$4:$A$446,MassDataLink!$E$4:$E$446) ->  | H160: =LOOKUP(C160,MassDataLink!$A$4:$A$446,MassDataLink!$F$4:$F$446) ->  | J160: 47 | K160: - - - | L160: - - -
B161: 48 | C161: -1 | D161: =LOOKUP(C161,MassDataLink!$A$4:$A$446,MassDataLink!$B$4:$B$446) ->  | E161: =LOOKUP(C161,MassDataLink!$A$4:$A$446,MassDataLink!$C$4:$C$446) ->  | F161: =LOOKUP(C161,MassDataLink!$A$4:$A$446,MassDataLink!$D$4:$D$446) ->  | G161: =LOOKUP(C161,MassDataLink!$A$4:$A$446,MassDataLink!$E$4:$E$446) ->  | H161: =LOOKUP(C161,MassDataLink!$A$4:$A$446,MassDataLink!$F$4:$F$446) ->  | J161: 48 | K161: - - - | L161: - - -
B162: 49 | C162: -1 | D162: =LOOKUP(C162,MassDataLink!$A$4:$A$446,MassDataLink!$B$4:$B$446) ->  | E162: =LOOKUP(C162,MassDataLink!$A$4:$A$446,MassDataLink!$C$4:$C$446) ->  | F162: =LOOKUP(C162,MassDataLink!$A$4:$A$446,MassDataLink!$D$4:$D$446) ->  | G162: =LOOKUP(C162,MassDataLink!$A$4:$A$446,MassDataLink!$E$4:$E$446) ->  | H162: =LOOKUP(C162,MassDataLink!$A$4:$A$446,MassDataLink!$F$4:$F$446) ->  | J162: 49 | K162: - - - | L162: - - -
B163: 50 | C163: -1 | D163: =LOOKUP(C163,MassDataLink!$A$4:$A$446,MassDataLink!$B$4:$B$446) ->  | E163: =LOOKUP(C163,MassDataLink!$A$4:$A$446,MassDataLink!$C$4:$C$446) ->  | F163: =LOOKUP(C163,MassDataLink!$A$4:$A$446,MassDataLink!$D$4:$D$446) ->  | G163: =LOOKUP(C163,MassDataLink!$A$4:$A$446,MassDataLink!$E$4:$E$446) ->  | H163: =LOOKUP(C163,MassDataLink!$A$4:$A$446,MassDataLink!$F$4:$F$446) ->  | J163: 50 | K163: - - - | L163: - - -
B164: =B163+1 -> 51 | C164: =IF(C163=-1,-1,H163) -> -1 | D164: =LOOKUP(C164,MassDataLink!$A$4:$A$446,MassDataLink!$B$4:$B$446) ->  | E164: =LOOKUP(C164,MassDataLink!$A$4:$A$446,MassDataLink!$C$4:$C$446) ->  | F164: =LOOKUP(C164,MassDataLink!$A$4:$A$446,MassDataLink!$D$4:$D$446) ->  | G164: =LOOKUP(C164,MassDataLink!$A$4:$A$446,MassDataLink!$E$4:$E$446) ->  | H164: =LOOKUP(C164,MassDataLink!$A$4:$A$446,MassDataLink!$F$4:$F$446) ->  | J164: =J163+1 -> 51 | K164: =IF(C164=-1,$L$112,IF($A$11=D164,ROUND((E164*$P$57),$R$57),$L$112)) -> - - - | L164: =IF(K164=$L$112,$L$112,F164) -> - - -
B165: 52 | C165: -1 | D165: =LOOKUP(C165,MassDataLink!$A$4:$A$446,MassDataLink!$B$4:$B$446) ->  | E165: =LOOKUP(C165,MassDataLink!$A$4:$A$446,MassDataLink!$C$4:$C$446) ->  | F165: =LOOKUP(C165,MassDataLink!$A$4:$A$446,MassDataLink!$D$4:$D$446) ->  | G165: =LOOKUP(C165,MassDataLink!$A$4:$A$446,MassDataLink!$E$4:$E$446) ->  | H165: =LOOKUP(C165,MassDataLink!$A$4:$A$446,MassDataLink!$F$4:$F$446) ->  | J165: 52 | K165: - - - | L165: - - -
B166: 53 | C166: -1 | D166: =LOOKUP(C166,MassDataLink!$A$4:$A$446,MassDataLink!$B$4:$B$446) ->  | E166: =LOOKUP(C166,MassDataLink!$A$4:$A$446,MassDataLink!$C$4:$C$446) ->  | F166: =LOOKUP(C166,MassDataLink!$A$4:$A$446,MassDataLink!$D$4:$D$446) ->  | G166: =LOOKUP(C166,MassDataLink!$A$4:$A$446,MassDataLink!$E$4:$E$446) ->  | H166: =LOOKUP(C166,MassDataLink!$A$4:$A$446,MassDataLink!$F$4:$F$446) ->  | J166: 53 | K166: - - - | L166: - - -
B167: 54 | C167: -1 | D167: =LOOKUP(C167,MassDataLink!$A$4:$A$446,MassDataLink!$B$4:$B$446) ->  | E167: =LOOKUP(C167,MassDataLink!$A$4:$A$446,MassDataLink!$C$4:$C$446) ->  | F167: =LOOKUP(C167,MassDataLink!$A$4:$A$446,MassDataLink!$D$4:$D$446) ->  | G167: =LOOKUP(C167,MassDataLink!$A$4:$A$446,MassDataLink!$E$4:$E$446) ->  | H167: =LOOKUP(C167,MassDataLink!$A$4:$A$446,MassDataLink!$F$4:$F$446) ->  | J167: 54 | K167: - - - | L167: - - -
B168: 55 | C168: -1 | D168: =LOOKUP(C168,MassDataLink!$A$4:$A$446,MassDataLink!$B$4:$B$446) ->  | E168: =LOOKUP(C168,MassDataLink!$A$4:$A$446,MassDataLink!$C$4:$C$446) ->  | F168: =LOOKUP(C168,MassDataLink!$A$4:$A$446,MassDataLink!$D$4:$D$446) ->  | G168: =LOOKUP(C168,MassDataLink!$A$4:$A$446,MassDataLink!$E$4:$E$446) ->  | H168: =LOOKUP(C168,MassDataLink!$A$4:$A$446,MassDataLink!$F$4:$F$446) ->  | J168: 55 | K168: - - - | L168: - - -
B169: 56 | C169: -1 | D169: =LOOKUP(C169,MassDataLink!$A$4:$A$446,MassDataLink!$B$4:$B$446) ->  | E169: =LOOKUP(C169,MassDataLink!$A$4:$A$446,MassDataLink!$C$4:$C$446) ->  | F169: =LOOKUP(C169,MassDataLink!$A$4:$A$446,MassDataLink!$D$4:$D$446) ->  | G169: =LOOKUP(C169,MassDataLink!$A$4:$A$446,MassDataLink!$E$4:$E$446) ->  | H169: =LOOKUP(C169,MassDataLink!$A$4:$A$446,MassDataLink!$F$4:$F$446) ->  | J169: 56 | K169: - - - | L169: - - -
B170: 57 | C170: -1 | D170: =LOOKUP(C170,MassDataLink!$A$4:$A$446,MassDataLink!$B$4:$B$446) ->  | E170: =LOOKUP(C170,MassDataLink!$A$4:$A$446,MassDataLink!$C$4:$C$446) ->  | F170: =LOOKUP(C170,MassDataLink!$A$4:$A$446,MassDataLink!$D$4:$D$446) ->  | G170: =LOOKUP(C170,MassDataLink!$A$4:$A$446,MassDataLink!$E$4:$E$446) ->  | H170: =LOOKUP(C170,MassDataLink!$A$4:$A$446,MassDataLink!$F$4:$F$446) ->  | J170: 57 | K170: - - - | L170: - - -
B171: 58 | C171: -1 | D171: =LOOKUP(C171,MassDataLink!$A$4:$A$446,MassDataLink!$B$4:$B$446) ->  | E171: =LOOKUP(C171,MassDataLink!$A$4:$A$446,MassDataLink!$C$4:$C$446) ->  | F171: =LOOKUP(C171,MassDataLink!$A$4:$A$446,MassDataLink!$D$4:$D$446) ->  | G171: =LOOKUP(C171,MassDataLink!$A$4:$A$446,MassDataLink!$E$4:$E$446) ->  | H171: =LOOKUP(C171,MassDataLink!$A$4:$A$446,MassDataLink!$F$4:$F$446) ->  | J171: 58 | K171: - - - | L171: - - -
B172: 59 | C172: -1 | D172: =LOOKUP(C172,MassDataLink!$A$4:$A$446,MassDataLink!$B$4:$B$446) ->  | E172: =LOOKUP(C172,MassDataLink!$A$4:$A$446,MassDataLink!$C$4:$C$446) ->  | F172: =LOOKUP(C172,MassDataLink!$A$4:$A$446,MassDataLink!$D$4:$D$446) ->  | G172: =LOOKUP(C172,MassDataLink!$A$4:$A$446,MassDataLink!$E$4:$E$446) ->  | H172: =LOOKUP(C172,MassDataLink!$A$4:$A$446,MassDataLink!$F$4:$F$446) ->  | J172: 59 | K172: - - - | L172: - - -
B173: 60 | C173: -1 | D173: =LOOKUP(C173,MassDataLink!$A$4:$A$446,MassDataLink!$B$4:$B$446) ->  | E173: =LOOKUP(C173,MassDataLink!$A$4:$A$446,MassDataLink!$C$4:$C$446) ->  | F173: =LOOKUP(C173,MassDataLink!$A$4:$A$446,MassDataLink!$D$4:$D$446) ->  | G173: =LOOKUP(C173,MassDataLink!$A$4:$A$446,MassDataLink!$E$4:$E$446) ->  | H173: =LOOKUP(C173,MassDataLink!$A$4:$A$446,MassDataLink!$F$4:$F$446) ->  | J173: 60 | K173: - - - | L173: - - -
B174: 61 | C174: -1 | D174: =LOOKUP(C174,MassDataLink!$A$4:$A$446,MassDataLink!$B$4:$B$446) ->  | E174: =LOOKUP(C174,MassDataLink!$A$4:$A$446,MassDataLink!$C$4:$C$446) ->  | F174: =LOOKUP(C174,MassDataLink!$A$4:$A$446,MassDataLink!$D$4:$D$446) ->  | G174: =LOOKUP(C174,MassDataLink!$A$4:$A$446,MassDataLink!$E$4:$E$446) ->  | H174: =LOOKUP(C174,MassDataLink!$A$4:$A$446,MassDataLink!$F$4:$F$446) ->  | J174: 61 | K174: - - - | L174: - - -
B175: 62 | C175: -1 | D175: =LOOKUP(C175,MassDataLink!$A$4:$A$446,MassDataLink!$B$4:$B$446) ->  | E175: =LOOKUP(C175,MassDataLink!$A$4:$A$446,MassDataLink!$C$4:$C$446) ->  | F175: =LOOKUP(C175,MassDataLink!$A$4:$A$446,MassDataLink!$D$4:$D$446) ->  | G175: =LOOKUP(C175,MassDataLink!$A$4:$A$446,MassDataLink!$E$4:$E$446) ->  | H175: =LOOKUP(C175,MassDataLink!$A$4:$A$446,MassDataLink!$F$4:$F$446) ->  | J175: 62 | K175: - - - | L175: - - -
B176: 63 | C176: -1 | D176: =LOOKUP(C176,MassDataLink!$A$4:$A$446,MassDataLink!$B$4:$B$446) ->  | E176: =LOOKUP(C176,MassDataLink!$A$4:$A$446,MassDataLink!$C$4:$C$446) ->  | F176: =LOOKUP(C176,MassDataLink!$A$4:$A$446,MassDataLink!$D$4:$D$446) ->  | G176: =LOOKUP(C176,MassDataLink!$A$4:$A$446,MassDataLink!$E$4:$E$446) ->  | H176: =LOOKUP(C176,MassDataLink!$A$4:$A$446,MassDataLink!$F$4:$F$446) ->  | J176: 63 | K176: - - - | L176: - - -
B177: 64 | C177: -1 | D177: =LOOKUP(C177,MassDataLink!$A$4:$A$446,MassDataLink!$B$4:$B$446) ->  | E177: =LOOKUP(C177,MassDataLink!$A$4:$A$446,MassDataLink!$C$4:$C$446) ->  | F177: =LOOKUP(C177,MassDataLink!$A$4:$A$446,MassDataLink!$D$4:$D$446) ->  | G177: =LOOKUP(C177,MassDataLink!$A$4:$A$446,MassDataLink!$E$4:$E$446) ->  | H177: =LOOKUP(C177,MassDataLink!$A$4:$A$446,MassDataLink!$F$4:$F$446) ->  | J177: 64 | K177: - - - | L177: - - -
B178: 65 | C178: -1 | D178: =LOOKUP(C178,MassDataLink!$A$4:$A$446,MassDataLink!$B$4:$B$446) ->  | E178: =LOOKUP(C178,MassDataLink!$A$4:$A$446,MassDataLink!$C$4:$C$446) ->  | F178: =LOOKUP(C178,MassDataLink!$A$4:$A$446,MassDataLink!$D$4:$D$446) ->  | G178: =LOOKUP(C178,MassDataLink!$A$4:$A$446,MassDataLink!$E$4:$E$446) ->  | H178: =LOOKUP(C178,MassDataLink!$A$4:$A$446,MassDataLink!$F$4:$F$446) ->  | J178: 65 | K178: - - - | L178: - - -
B179: 66 | C179: -1 | D179: =LOOKUP(C179,MassDataLink!$A$4:$A$446,MassDataLink!$B$4:$B$446) ->  | E179: =LOOKUP(C179,MassDataLink!$A$4:$A$446,MassDataLink!$C$4:$C$446) ->  | F179: =LOOKUP(C179,MassDataLink!$A$4:$A$446,MassDataLink!$D$4:$D$446) ->  | G179: =LOOKUP(C179,MassDataLink!$A$4:$A$446,MassDataLink!$E$4:$E$446) ->  | H179: =LOOKUP(C179,MassDataLink!$A$4:$A$446,MassDataLink!$F$4:$F$446) ->  | J179: 66 | K179: - - - | L179: - - -
B180: 67 | C180: -1 | D180: =LOOKUP(C180,MassDataLink!$A$4:$A$446,MassDataLink!$B$4:$B$446) ->  | E180: =LOOKUP(C180,MassDataLink!$A$4:$A$446,MassDataLink!$C$4:$C$446) ->  | F180: =LOOKUP(C180,MassDataLink!$A$4:$A$446,MassDataLink!$D$4:$D$446) ->  | G180: =LOOKUP(C180,MassDataLink!$A$4:$A$446,MassDataLink!$E$4:$E$446) ->  | H180: =LOOKUP(C180,MassDataLink!$A$4:$A$446,MassDataLink!$F$4:$F$446) ->  | J180: 67 | K180: - - - | L180: - - -
B181: 68 | C181: -1 | D181: =LOOKUP(C181,MassDataLink!$A$4:$A$446,MassDataLink!$B$4:$B$446) ->  | E181: =LOOKUP(C181,MassDataLink!$A$4:$A$446,MassDataLink!$C$4:$C$446) ->  | F181: =LOOKUP(C181,MassDataLink!$A$4:$A$446,MassDataLink!$D$4:$D$446) ->  | G181: =LOOKUP(C181,MassDataLink!$A$4:$A$446,MassDataLink!$E$4:$E$446) ->  | H181: =LOOKUP(C181,MassDataLink!$A$4:$A$446,MassDataLink!$F$4:$F$446) ->  | J181: 68 | K181: - - - | L181: - - -
B182: 69 | C182: -1 | D182: =LOOKUP(C182,MassDataLink!$A$4:$A$446,MassDataLink!$B$4:$B$446) ->  | E182: =LOOKUP(C182,MassDataLink!$A$4:$A$446,MassDataLink!$C$4:$C$446) ->  | F182: =LOOKUP(C182,MassDataLink!$A$4:$A$446,MassDataLink!$D$4:$D$446) ->  | G182: =LOOKUP(C182,MassDataLink!$A$4:$A$446,MassDataLink!$E$4:$E$446) ->  | H182: =LOOKUP(C182,MassDataLink!$A$4:$A$446,MassDataLink!$F$4:$F$446) ->  | J182: 69 | K182: - - - | L182: - - -
B183: 70 | C183: -1 | D183: =LOOKUP(C183,MassDataLink!$A$4:$A$446,MassDataLink!$B$4:$B$446) ->  | E183: =LOOKUP(C183,MassDataLink!$A$4:$A$446,MassDataLink!$C$4:$C$446) ->  | F183: =LOOKUP(C183,MassDataLink!$A$4:$A$446,MassDataLink!$D$4:$D$446) ->  | G183: =LOOKUP(C183,MassDataLink!$A$4:$A$446,MassDataLink!$E$4:$E$446) ->  | H183: =LOOKUP(C183,MassDataLink!$A$4:$A$446,MassDataLink!$F$4:$F$446) ->  | J183: 70 | K183: - - - | L183: - - -
B184: 71 | C184: -1 | D184: =LOOKUP(C184,MassDataLink!$A$4:$A$446,MassDataLink!$B$4:$B$446) ->  | E184: =LOOKUP(C184,MassDataLink!$A$4:$A$446,MassDataLink!$C$4:$C$446) ->  | F184: =LOOKUP(C184,MassDataLink!$A$4:$A$446,MassDataLink!$D$4:$D$446) ->  | G184: =LOOKUP(C184,MassDataLink!$A$4:$A$446,MassDataLink!$E$4:$E$446) ->  | H184: =LOOKUP(C184,MassDataLink!$A$4:$A$446,MassDataLink!$F$4:$F$446) ->  | J184: 71 | K184: - - - | L184: - - -
B185: 72 | C185: -1 | D185: =LOOKUP(C185,MassDataLink!$A$4:$A$446,MassDataLink!$B$4:$B$446) ->  | E185: =LOOKUP(C185,MassDataLink!$A$4:$A$446,MassDataLink!$C$4:$C$446) ->  | F185: =LOOKUP(C185,MassDataLink!$A$4:$A$446,MassDataLink!$D$4:$D$446) ->  | G185: =LOOKUP(C185,MassDataLink!$A$4:$A$446,MassDataLink!$E$4:$E$446) ->  | H185: =LOOKUP(C185,MassDataLink!$A$4:$A$446,MassDataLink!$F$4:$F$446) ->  | J185: 72 | K185: - - - | L185: - - -
B186: 73 | C186: -1 | D186: =LOOKUP(C186,MassDataLink!$A$4:$A$446,MassDataLink!$B$4:$B$446) ->  | E186: =LOOKUP(C186,MassDataLink!$A$4:$A$446,MassDataLink!$C$4:$C$446) ->  | F186: =LOOKUP(C186,MassDataLink!$A$4:$A$446,MassDataLink!$D$4:$D$446) ->  | G186: =LOOKUP(C186,MassDataLink!$A$4:$A$446,MassDataLink!$E$4:$E$446) ->  | H186: =LOOKUP(C186,MassDataLink!$A$4:$A$446,MassDataLink!$F$4:$F$446) ->  | J186: 73 | K186: - - - | L186: - - -
B187: 74 | C187: -1 | D187: =LOOKUP(C187,MassDataLink!$A$4:$A$446,MassDataLink!$B$4:$B$446) ->  | E187: =LOOKUP(C187,MassDataLink!$A$4:$A$446,MassDataLink!$C$4:$C$446) ->  | F187: =LOOKUP(C187,MassDataLink!$A$4:$A$446,MassDataLink!$D$4:$D$446) ->  | G187: =LOOKUP(C187,MassDataLink!$A$4:$A$446,MassDataLink!$E$4:$E$446) ->  | H187: =LOOKUP(C187,MassDataLink!$A$4:$A$446,MassDataLink!$F$4:$F$446) ->  | J187: 74 | K187: - - - | L187: - - -
B188: 75 | C188: -1 | D188: =LOOKUP(C188,MassDataLink!$A$4:$A$446,MassDataLink!$B$4:$B$446) ->  | E188: =LOOKUP(C188,MassDataLink!$A$4:$A$446,MassDataLink!$C$4:$C$446) ->  | F188: =LOOKUP(C188,MassDataLink!$A$4:$A$446,MassDataLink!$D$4:$D$446) ->  | G188: =LOOKUP(C188,MassDataLink!$A$4:$A$446,MassDataLink!$E$4:$E$446) ->  | H188: =LOOKUP(C188,MassDataLink!$A$4:$A$446,MassDataLink!$F$4:$F$446) ->  | J188: 75 | K188: - - - | L188: - - -
B189: 76 | C189: -1 | D189: =LOOKUP(C189,MassDataLink!$A$4:$A$446,MassDataLink!$B$4:$B$446) ->  | E189: =LOOKUP(C189,MassDataLink!$A$4:$A$446,MassDataLink!$C$4:$C$446) ->  | F189: =LOOKUP(C189,MassDataLink!$A$4:$A$446,MassDataLink!$D$4:$D$446) ->  | G189: =LOOKUP(C189,MassDataLink!$A$4:$A$446,MassDataLink!$E$4:$E$446) ->  | H189: =LOOKUP(C189,MassDataLink!$A$4:$A$446,MassDataLink!$F$4:$F$446) ->  | J189: 76 | K189: - - - | L189: - - -
B190: 77 | C190: -1 | D190: =LOOKUP(C190,MassDataLink!$A$4:$A$446,MassDataLink!$B$4:$B$446) ->  | E190: =LOOKUP(C190,MassDataLink!$A$4:$A$446,MassDataLink!$C$4:$C$446) ->  | F190: =LOOKUP(C190,MassDataLink!$A$4:$A$446,MassDataLink!$D$4:$D$446) ->  | G190: =LOOKUP(C190,MassDataLink!$A$4:$A$446,MassDataLink!$E$4:$E$446) ->  | H190: =LOOKUP(C190,MassDataLink!$A$4:$A$446,MassDataLink!$F$4:$F$446) ->  | J190: 77 | K190: - - - | L190: - - -
B191: 78 | C191: -1 | D191: =LOOKUP(C191,MassDataLink!$A$4:$A$446,MassDataLink!$B$4:$B$446) ->  | E191: =LOOKUP(C191,MassDataLink!$A$4:$A$446,MassDataLink!$C$4:$C$446) ->  | F191: =LOOKUP(C191,MassDataLink!$A$4:$A$446,MassDataLink!$D$4:$D$446) ->  | G191: =LOOKUP(C191,MassDataLink!$A$4:$A$446,MassDataLink!$E$4:$E$446) ->  | H191: =LOOKUP(C191,MassDataLink!$A$4:$A$446,MassDataLink!$F$4:$F$446) ->  | J191: 78 | K191: - - - | L191: - - -
B192: 79 | C192: -1 | D192: =LOOKUP(C192,MassDataLink!$A$4:$A$446,MassDataLink!$B$4:$B$446) ->  | E192: =LOOKUP(C192,MassDataLink!$A$4:$A$446,MassDataLink!$C$4:$C$446) ->  | F192: =LOOKUP(C192,MassDataLink!$A$4:$A$446,MassDataLink!$D$4:$D$446) ->  | G192: =LOOKUP(C192,MassDataLink!$A$4:$A$446,MassDataLink!$E$4:$E$446) ->  | H192: =LOOKUP(C192,MassDataLink!$A$4:$A$446,MassDataLink!$F$4:$F$446) ->  | J192: 79 | K192: - - - | L192: - - -
B193: 80 | C193: -1 | D193: =LOOKUP(C193,MassDataLink!$A$4:$A$446,MassDataLink!$B$4:$B$446) ->  | E193: =LOOKUP(C193,MassDataLink!$A$4:$A$446,MassDataLink!$C$4:$C$446) ->  | F193: =LOOKUP(C193,MassDataLink!$A$4:$A$446,MassDataLink!$D$4:$D$446) ->  | G193: =LOOKUP(C193,MassDataLink!$A$4:$A$446,MassDataLink!$E$4:$E$446) ->  | H193: =LOOKUP(C193,MassDataLink!$A$4:$A$446,MassDataLink!$F$4:$F$446) ->  | J193: 80 | K193: - - - | L193: - - -
B194: 81 | C194: -1 | D194: =LOOKUP(C194,MassDataLink!$A$4:$A$446,MassDataLink!$B$4:$B$446) ->  | E194: =LOOKUP(C194,MassDataLink!$A$4:$A$446,MassDataLink!$C$4:$C$446) ->  | F194: =LOOKUP(C194,MassDataLink!$A$4:$A$446,MassDataLink!$D$4:$D$446) ->  | G194: =LOOKUP(C194,MassDataLink!$A$4:$A$446,MassDataLink!$E$4:$E$446) ->  | H194: =LOOKUP(C194,MassDataLink!$A$4:$A$446,MassDataLink!$F$4:$F$446) ->  | J194: 81 | K194: - - - | L194: - - -
B195: 82 | C195: -1 | D195: =LOOKUP(C195,MassDataLink!$A$4:$A$446,MassDataLink!$B$4:$B$446) ->  | E195: =LOOKUP(C195,MassDataLink!$A$4:$A$446,MassDataLink!$C$4:$C$446) ->  | F195: =LOOKUP(C195,MassDataLink!$A$4:$A$446,MassDataLink!$D$4:$D$446) ->  | G195: =LOOKUP(C195,MassDataLink!$A$4:$A$446,MassDataLink!$E$4:$E$446) ->  | H195: =LOOKUP(C195,MassDataLink!$A$4:$A$446,MassDataLink!$F$4:$F$446) ->  | J195: 82 | K195: - - - | L195: - - -
B196: 83 | C196: -1 | D196: =LOOKUP(C196,MassDataLink!$A$4:$A$446,MassDataLink!$B$4:$B$446) ->  | E196: =LOOKUP(C196,MassDataLink!$A$4:$A$446,MassDataLink!$C$4:$C$446) ->  | F196: =LOOKUP(C196,MassDataLink!$A$4:$A$446,MassDataLink!$D$4:$D$446) ->  | G196: =LOOKUP(C196,MassDataLink!$A$4:$A$446,MassDataLink!$E$4:$E$446) ->  | H196: =LOOKUP(C196,MassDataLink!$A$4:$A$446,MassDataLink!$F$4:$F$446) ->  | J196: 83 | K196: - - - | L196: - - -
B197: 84 | C197: -1 | D197: =LOOKUP(C197,MassDataLink!$A$4:$A$446,MassDataLink!$B$4:$B$446) ->  | E197: =LOOKUP(C197,MassDataLink!$A$4:$A$446,MassDataLink!$C$4:$C$446) ->  | F197: =LOOKUP(C197,MassDataLink!$A$4:$A$446,MassDataLink!$D$4:$D$446) ->  | G197: =LOOKUP(C197,MassDataLink!$A$4:$A$446,MassDataLink!$E$4:$E$446) ->  | H197: =LOOKUP(C197,MassDataLink!$A$4:$A$446,MassDataLink!$F$4:$F$446) ->  | J197: 84 | K197: - - - | L197: - - -
B198: 85 | C198: -1 | D198: =LOOKUP(C198,MassDataLink!$A$4:$A$446,MassDataLink!$B$4:$B$446) ->  | E198: =LOOKUP(C198,MassDataLink!$A$4:$A$446,MassDataLink!$C$4:$C$446) ->  | F198: =LOOKUP(C198,MassDataLink!$A$4:$A$446,MassDataLink!$D$4:$D$446) ->  | G198: =LOOKUP(C198,MassDataLink!$A$4:$A$446,MassDataLink!$E$4:$E$446) ->  | H198: =LOOKUP(C198,MassDataLink!$A$4:$A$446,MassDataLink!$F$4:$F$446) ->  | J198: 85 | K198: - - - | L198: - - -
B199: 86 | C199: -1 | D199: =LOOKUP(C199,MassDataLink!$A$4:$A$446,MassDataLink!$B$4:$B$446) ->  | E199: =LOOKUP(C199,MassDataLink!$A$4:$A$446,MassDataLink!$C$4:$C$446) ->  | F199: =LOOKUP(C199,MassDataLink!$A$4:$A$446,MassDataLink!$D$4:$D$446) ->  | G199: =LOOKUP(C199,MassDataLink!$A$4:$A$446,MassDataLink!$E$4:$E$446) ->  | H199: =LOOKUP(C199,MassDataLink!$A$4:$A$446,MassDataLink!$F$4:$F$446) ->  | J199: 86 | K199: - - - | L199: - - -
B200: 87 | C200: -1 | D200: =LOOKUP(C200,MassDataLink!$A$4:$A$446,MassDataLink!$B$4:$B$446) ->  | E200: =LOOKUP(C200,MassDataLink!$A$4:$A$446,MassDataLink!$C$4:$C$446) ->  | F200: =LOOKUP(C200,MassDataLink!$A$4:$A$446,MassDataLink!$D$4:$D$446) ->  | G200: =LOOKUP(C200,MassDataLink!$A$4:$A$446,MassDataLink!$E$4:$E$446) ->  | H200: =LOOKUP(C200,MassDataLink!$A$4:$A$446,MassDataLink!$F$4:$F$446) ->  | J200: 87 | K200: - - - | L200: - - -
B201: 88 | C201: -1 | D201: =LOOKUP(C201,MassDataLink!$A$4:$A$446,MassDataLink!$B$4:$B$446) ->  | E201: =LOOKUP(C201,MassDataLink!$A$4:$A$446,MassDataLink!$C$4:$C$446) ->  | F201: =LOOKUP(C201,MassDataLink!$A$4:$A$446,MassDataLink!$D$4:$D$446) ->  | G201: =LOOKUP(C201,MassDataLink!$A$4:$A$446,MassDataLink!$E$4:$E$446) ->  | H201: =LOOKUP(C201,MassDataLink!$A$4:$A$446,MassDataLink!$F$4:$F$446) ->  | J201: 88 | K201: - - - | L201: - - -
B202: 89 | C202: -1 | D202: =LOOKUP(C202,MassDataLink!$A$4:$A$446,MassDataLink!$B$4:$B$446) ->  | E202: =LOOKUP(C202,MassDataLink!$A$4:$A$446,MassDataLink!$C$4:$C$446) ->  | F202: =LOOKUP(C202,MassDataLink!$A$4:$A$446,MassDataLink!$D$4:$D$446) ->  | G202: =LOOKUP(C202,MassDataLink!$A$4:$A$446,MassDataLink!$E$4:$E$446) ->  | H202: =LOOKUP(C202,MassDataLink!$A$4:$A$446,MassDataLink!$F$4:$F$446) ->  | J202: 89 | K202: - - - | L202: - - -
B203: 90 | C203: -1 | D203: =LOOKUP(C203,MassDataLink!$A$4:$A$446,MassDataLink!$B$4:$B$446) ->  | E203: =LOOKUP(C203,MassDataLink!$A$4:$A$446,MassDataLink!$C$4:$C$446) ->  | F203: =LOOKUP(C203,MassDataLink!$A$4:$A$446,MassDataLink!$D$4:$D$446) ->  | G203: =LOOKUP(C203,MassDataLink!$A$4:$A$446,MassDataLink!$E$4:$E$446) ->  | H203: =LOOKUP(C203,MassDataLink!$A$4:$A$446,MassDataLink!$F$4:$F$446) ->  | J203: 90 | K203: - - - | L203: - - -
B204: 91 | C204: -1 | D204: =LOOKUP(C204,MassDataLink!$A$4:$A$446,MassDataLink!$B$4:$B$446) ->  | E204: =LOOKUP(C204,MassDataLink!$A$4:$A$446,MassDataLink!$C$4:$C$446) ->  | F204: =LOOKUP(C204,MassDataLink!$A$4:$A$446,MassDataLink!$D$4:$D$446) ->  | G204: =LOOKUP(C204,MassDataLink!$A$4:$A$446,MassDataLink!$E$4:$E$446) ->  | H204: =LOOKUP(C204,MassDataLink!$A$4:$A$446,MassDataLink!$F$4:$F$446) ->  | J204: 91 | K204: - - - | L204: - - -
B205: 92 | C205: -1 | D205: =LOOKUP(C205,MassDataLink!$A$4:$A$446,MassDataLink!$B$4:$B$446) ->  | E205: =LOOKUP(C205,MassDataLink!$A$4:$A$446,MassDataLink!$C$4:$C$446) ->  | F205: =LOOKUP(C205,MassDataLink!$A$4:$A$446,MassDataLink!$D$4:$D$446) ->  | G205: =LOOKUP(C205,MassDataLink!$A$4:$A$446,MassDataLink!$E$4:$E$446) ->  | H205: =LOOKUP(C205,MassDataLink!$A$4:$A$446,MassDataLink!$F$4:$F$446) ->  | J205: 92 | K205: - - - | L205: - - -
... 133 more rows

Sheet ModelData (hidden)
B1: 1 | C1: 6 | D1: 7 | E1: 8 | F1: 10 | G1: 11 | H1: 12 | I1: 13 | J1: 14 | K1: 15 | L1: 16 | M1: 17 | N1: 18 | O1: 19 | P1: 20 | Q1: 21 | R1: 22 | S1: 23 | T1: 24 | U1: 25 | V1: 26 | W1: 27 | X1: 28 | Y1: 29 | Z1: 30 | AA1: 31 | AB1: 32 | AC1: 33
A2: データ№ | B2: ｱｸﾁｭｴｰﾀ型式 | C2: 最小ｽﾄﾛｰｸ | D2: 最大ｽﾄﾛｰｸ | E2: 動作種別 | F2: リンク[0] | I2: リンク[1] | L2: リンク[2] | O2: リンク[3] | R2: リンク[4] | U2: リンク[5] | X2: リンク[6] | AA2: リンク[7]
A3: 0 | C3: ㎜ | D3: ㎜ | E3: 1/0:回/直 | F3: ﾘｰﾄﾞ | G3: ｽﾄﾛｰｸ | H3: 搬送負荷 | I3: ﾘｰﾄﾞ | J3: ｽﾄﾛｰｸ | K3: 搬送負荷 | L3: ﾘｰﾄﾞ | M3: ｽﾄﾛｰｸ | N3: 搬送負荷 | O3: ﾘｰﾄﾞ | P3: ｽﾄﾛｰｸ | Q3: 搬送負荷 | R3: ﾘｰﾄﾞ | S3: ｽﾄﾛｰｸ | T3: 搬送負荷 | U3: ﾘｰﾄﾞ | V3: ｽﾄﾛｰｸ | W3: 搬送負荷 | X3: ﾘｰﾄﾞ | Y3: ｽﾄﾛｰｸ | Z3: 搬送負荷 | AA3: ﾘｰﾄﾞ | AB3: ｽﾄﾛｰｸ | AC3: 搬送負荷
A4: =A3+1 -> 1 | B4: RCA-SA4C-20 | C4: 50 | D4: 400 | E4: 0 | F4: =LeadData!A4 -> 1 | G4: =StrokeData!A4 -> 1 | H4: =MassDataLink!A4 -> 1 | I4: =LeadData!A5 -> 2 | J4: =StrokeData!A5 -> 2 | K4: =MassDataLink!A11 -> 8 | L4: =LeadData!A6 -> 3 | M4: =StrokeData!A6 -> 3 | N4: =MassDataLink!A31 -> 28 | O4: -1 | P4: -1 | Q4: -1 | R4: -1 | S4: -1 | T4: -1 | U4: -1 | V4: -1 | W4: -1 | X4: -1 | Y4: -1 | Z4: -1 | AA4: -1 | AB4: -1 | AC4: -1
A5: =A4+1 -> 2 | B5: RCA-SA5C-20 | C5: 50 | D5: 500 | E5: 0 | F5: =LeadData!A7 -> 4 | G5: =StrokeData!A7 -> 4 | H5: =MassDataLink!A59 -> 56 | I5: =LeadData!A8 -> 5 | J5: =StrokeData!A9 -> 6 | K5: =MassDataLink!A64 -> 61 | L5: =LeadData!A9 -> 6 | M5: =StrokeData!A11 -> 8 | N5: =MassDataLink!A82 -> 79 | O5: =LeadData!A10 -> 7 | P5: =StrokeData!A13 -> 10 | Q5: =MassDataLink!A107 -> 104 | R5: -1 | S5: -1 | T5: -1 | U5: -1 | V5: -1 | W5: -1 | X5: -1 | Y5: -1 | Z5: -1 | AA5: -1 | AB5: -1 | AC5: -1
A6: =A5+1 -> 3 | B6: RCA-SA6C-30 | C6: 50 | D6: 600 | E6: 0 | F6: =LeadData!A11 -> 8 | G6: =StrokeData!A14 -> 11 | H6: =MassDataLink!A127 -> 124 | I6: =LeadData!A12 -> 9 | J6: =StrokeData!A18 -> 15 | K6: =MassDataLink!A133 -> 130 | L6: =LeadData!A13 -> 10 | M6: =StrokeData!A22 -> 19 | N6: =MassDataLink!A151 -> 148 | O6: =LeadData!A14 -> 11 | P6: =StrokeData!A26 -> 23 | Q6: =MassDataLink!A181 -> 178 | R6: -1 | S6: -1 | T6: -1 | U6: -1 | V6: -1 | W6: -1 | X6: -1 | Y6: -1 | Z6: -1 | AA6: -1 | AB6: -1 | AC6: -1
A7: =A6+1 -> 4 | B7: RCA-SA4D-20 | C7: 50 | D7: 300 | E7: 0 | F7: =LeadData!A15 -> 12 | G7: =StrokeData!A29 -> 26 | H7: =MassDataLink!A200 -> 197 | I7: =LeadData!A16 -> 13 | J7: =StrokeData!A30 -> 27 | K7: =MassDataLink!A202 -> 199 | L7: =LeadData!A17 -> 14 | M7: =StrokeData!A31 -> 28 | N7: =MassDataLink!A204 -> 201 | O7: -1 | P7: -1 | Q7: -1 | R7: -1 | S7: -1 | T7: -1 | U7: -1 | V7: -1 | W7: -1 | X7: -1 | Y7: -1 | Z7: -1 | AA7: -1 | AB7: -1 | AC7: -1
A8: =A7+1 -> 5 | B8: RCA-SA5D-20 | C8: 50 | D8: 500 | E8: 0 | F8: =LeadData!A18 -> 15 | G8: =StrokeData!A32 -> 29 | H8: =MassDataLink!A206 -> 203 | I8: =LeadData!A19 -> 16 | J8: =StrokeData!A34 -> 31 | K8: =MassDataLink!A208 -> 205 | L8: =LeadData!A20 -> 17 | M8: =StrokeData!A36 -> 33 | N8: =MassDataLink!A210 -> 207 | O8: -1 | P8: -1 | Q8: -1 | R8: -1 | S8: -1 | T8: -1 | U8: -1 | V8: -1 | W8: -1 | X8: -1 | Y8: -1 | Z8: -1 | AA8: -1 | AB8: -1 | AC8: -1
A9: 6 | B9: RCA-SA6D-30 | C9: 50 | D9: 600 | E9: 0 | F9: =LeadData!A21 -> 18 | G9: =StrokeData!A38 -> 35 | H9: =MassDataLink!A212 -> 209 | I9: =LeadData!A22 -> 19 | J9: =StrokeData!A42 -> 39 | K9: =MassDataLink!A214 -> 211 | L9: =LeadData!A23 -> 20 | M9: =StrokeData!A46 -> 43 | N9: =MassDataLink!A216 -> 213 | O9: -1 | P9: -1 | Q9: -1 | R9: -1 | S9: -1 | T9: -1 | U9: -1 | V9: -1 | W9: -1 | X9: -1 | Y9: -1 | Z9: -1 | AA9: -1 | AB9: -1 | AC9: -1
A10: 7 | B10: RCA-SS4D-20 | C10: 50 | D10: 300 | E10: 0 | F10: =LeadData!A24 -> 21 | G10: =StrokeData!A50 -> 47 | H10: =MassDataLink!A218 -> 215 | I10: =LeadData!A25 -> 22 | J10: =StrokeData!A51 -> 48 | K10: =MassDataLink!A220 -> 217 | L10: =LeadData!A26 -> 23 | M10: =StrokeData!A52 -> 49 | N10: =MassDataLink!A222 -> 219 | O10: -1 | P10: -1 | Q10: -1 | R10: -1 | S10: -1 | T10: -1 | U10: -1 | V10: -1 | W10: -1 | X10: -1 | Y10: -1 | Z10: -1 | AA10: -1 | AB10: -1 | AC10: -1
A11: 8 | B11: RCA-SS5D-20 | C11: 50 | D11: 500 | E11: 0 | F11: =LeadData!A27 -> 24 | G11: =StrokeData!A53 -> 50 | H11: =MassDataLink!A224 -> 221 | I11: =LeadData!A28 -> 25 | J11: =StrokeData!A55 -> 52 | K11: =MassDataLink!A226 -> 223 | L11: =LeadData!A29 -> 26 | M11: =StrokeData!A57 -> 54 | N11: =MassDataLink!A228 -> 225 | O11: -1 | P11: -1 | Q11: -1 | R11: -1 | S11: -1 | T11: -1 | U11: -1 | V11: -1 | W11: -1 | X11: -1 | Y11: -1 | Z11: -1 | AA11: -1 | AB11: -1 | AC11: -1
A12: 9 | B12: RCA-SS6D-30 | C12: 50 | D12: 600 | E12: 0 | F12: =LeadData!A30 -> 27 | G12: =StrokeData!A59 -> 56 | H12: =MassDataLink!A230 -> 227 | I12: =LeadData!A31 -> 28 | J12: =StrokeData!A63 -> 60 | K12: =MassDataLink!A232 -> 229 | L12: =LeadData!A32 -> 29 | M12: =StrokeData!A67 -> 64 | N12: =MassDataLink!A234 -> 231 | O12: -1 | P12: -1 | Q12: -1 | R12: -1 | S12: -1 | T12: -1 | U12: -1 | V12: -1 | W12: -1 | X12: -1 | Y12: -1 | Z12: -1 | AA12: -1 | AB12: -1 | AC12: -1
A13: 10 | B13: RCA-SA4R-20 | C13: 50 | D13: 400 | E13: 0 | F13: =LeadData!A33 -> 30 | G13: =StrokeData!A71 -> 68 | H13: =MassDataLink!A236 -> 233 | I13: =LeadData!A34 -> 31 | J13: =StrokeData!A72 -> 69 | K13: =MassDataLink!A242 -> 239 | L13: =LeadData!A35 -> 32 | M13: =StrokeData!A73 -> 70 | N13: =MassDataLink!A252 -> 249 | O13: -1 | P13: -1 | Q13: -1 | R13: -1 | S13: -1 | T13: -1 | U13: -1 | V13: -1 | W13: -1 | X13: -1 | Y13: -1 | Z13: -1 | AA13: -1 | AB13: -1 | AC13: -1
A14: 11 | B14: RCA-SA5R-20 | C14: 50 | D14: 500 | E14: 0 | F14: =LeadData!A36 -> 33 | G14: =StrokeData!A74 -> 71 | H14: =MassDataLink!A266 -> 263 | I14: =LeadData!A37 -> 34 | J14: =StrokeData!A76 -> 73 | K14: =MassDataLink!A271 -> 268 | L14: =LeadData!A38 -> 35 | M14: =StrokeData!A78 -> 75 | N14: =MassDataLink!A281 -> 278 | O14: -1 | P14: -1 | Q14: -1 | R14: -1 | S14: -1 | T14: -1 | U14: -1 | V14: -1 | W14: -1 | X14: -1 | Y14: -1 | Z14: -1 | AA14: -1 | AB14: -1 | AC14: -1
A15: =A14+1 -> 12 | B15: RCA-SA6R-30 | C15: 50 | D15: 600 | E15: 0 | F15: =LeadData!A39 -> 36 | G15: =StrokeData!A80 -> 77 | H15: =MassDataLink!A295 -> 292 | I15: =LeadData!A40 -> 37 | J15: =StrokeData!A84 -> 81 | K15: =MassDataLink!A300 -> 297 | L15: =LeadData!A41 -> 38 | M15: =StrokeData!A88 -> 85 | N15: =MassDataLink!A310 -> 307 | O15: -1 | P15: -1 | Q15: -1 | R15: -1 | S15: -1 | T15: -1 | U15: -1 | V15: -1 | W15: -1 | X15: -1 | Y15: -1 | Z15: -1 | AA15: -1 | AB15: -1 | AC15: -1
A16: =A15+1 -> 13 | B16: RCA-RA3C-20 | C16: 50 | D16: 200 | E16: 0 | F16: =LeadData!A42 -> 39 | G16: =StrokeData!A92 -> 89 | H16: =MassDataLink!A324 -> 321 | I16: =LeadData!A43 -> 40 | J16: =StrokeData!A93 -> 90 | K16: =MassDataLink!A329 -> 326 | L16: =LeadData!A44 -> 41 | M16: =StrokeData!A94 -> 91 | N16: =MassDataLink!A344 -> 341 | O16: -1 | P16: -1 | Q16: -1 | R16: -1 | S16: -1 | T16: -1 | U16: -1 | V16: -1 | W16: -1 | X16: -1 | Y16: -1 | Z16: -1 | AA16: -1 | AB16: -1 | AC16: -1
A17: =A16+1 -> 14 | B17: RCA-RA4C-20 | C17: 50 | D17: 300 | E17: 0 | F17: =LeadData!A45 -> 42 | G17: =StrokeData!A95 -> 92 | H17: =MassDataLink!A365 -> 362 | I17: =LeadData!A46 -> 43 | J17: =StrokeData!A96 -> 93 | K17: =MassDataLink!A370 -> 367 | L17: =LeadData!A47 -> 44 | M17: =StrokeData!A97 -> 94 | N17: =MassDataLink!A385 -> 382 | O17: -1 | P17: -1 | Q17: -1 | R17: -1 | S17: -1 | T17: -1 | U17: -1 | V17: -1 | W17: -1 | X17: -1 | Y17: -1 | Z17: -1 | AA17: -1 | AB17: -1 | AC17: -1
A18: =A17+1 -> 15 | B18: RCA-RA4C-30 | C18: 50 | D18: 300 | E18: 0 | F18: =LeadData!A48 -> 45 | G18: =StrokeData!A98 -> 95 | H18: =MassDataLink!A401 -> 398 | I18: =LeadData!A49 -> 46 | J18: =StrokeData!A99 -> 96 | K18: =MassDataLink!A406 -> 403 | L18: =LeadData!A50 -> 47 | M18: =StrokeData!A100 -> 97 | N18: =MassDataLink!A424 -> 421 | O18: -1 | P18: -1 | Q18: -1 | R18: -1 | S18: -1 | T18: -1 | U18: -1 | V18: -1 | W18: -1 | X18: -1 | Y18: -1 | Z18: -1 | AA18: -1 | AB18: -1 | AC18: -1

Sheet LeadData (hidden)
A1: 9.80665 | B1: 1 | C1: 3 | D1: 4 | E1: 5 | F1: 6 | G1: 10 | H1: 11 | I1: 13
A2: データ№ | B2: ﾘｰﾄﾞ長 | C2: 水平定格加速度 | D2: 垂直定格加速度 | E2: 水平最大加速度 | F2: 垂直最大加速度 | G2: ｷﾞｱ比分子 | H2: ｷﾞｱ比分母 | I2: ｽﾄﾛｰｸ刻み | J2: 備考
A3: =ModelData!A3 -> 0 | B3: 0.001㎜ | C3: 0.001mm/s^2 | D3: 0.001mm/s^2 | E3: 0.001mm/s^2 | F3: 0.001mm/s^2 | I3: mm
A4: =A3+1 -> 1 | B4: 2500 | C4: =$A$1*1000^2*0.2 -> 1961330 | D4: =$A$1*1000^2*0.2 -> 1961330 | E4: =0.5*$A$1*1000*1000 -> 4903325 | F4: =0.3*$A$1*1000*1000 -> 2941995 | G4: 1 | H4: 1 | I4: 50 | J4: RCA-SA4C-20
A5: =A4+1 -> 2 | B5: 5000 | C5: =$A$1*1000^2*0.3 -> 2941995 | D5: =$A$1*1000^2*0.3 -> 2941995 | E5: =1.2*$A$1*1000*1000 -> 11767980 | F5: =1*$A$1*1000*1000 -> 9806650 | G5: 1 | H5: 1 | I5: 50
A6: =A5+1 -> 3 | B6: 10000 | C6: =$A$1*1000^2*0.3 -> 2941995 | D6: =$A$1*1000^2*0.3 -> 2941995 | E6: =1.5*$A$1*1000*1000 -> 14709975 | F6: =1.5*$A$1*1000*1000 -> 14709975 | G6: 1 | H6: 1 | I6: 50
A7: =A6+1 -> 4 | B7: 3000 | C7: =$A$1*1000^2*0.2 -> 1961330 | D7: =$A$1*1000^2*0.2 -> 1961330 | E7: =0.3*$A$1*1000*1000 -> 2941995 | F7: =0.3*$A$1*1000*1000 -> 2941995 | G7: 1 | H7: 1 | I7: 50 | J7: RCA-SA5C-20
A8: =A7+1 -> 5 | B8: 6000 | C8: =$A$1*1000^2*0.3 -> 2941995 | D8: 2941995 | E8: =1*$A$1*1000*1000 -> 9806650 | F8: =1*$A$1*1000*1000 -> 9806650 | G8: 1 | H8: 1 | I8: 50
A9: =A8+1 -> 6 | B9: 12000 | C9: 2941995 | D9: 2941995 | E9: =1.5*$A$1*1000*1000 -> 14709975 | F9: =1.2*$A$1*1000*1000 -> 11767980 | G9: 1 | H9: 1 | I9: 50
A10: =A9+1 -> 7 | B10: 20000 | C10: 2941995 | D10: 2941995 | E10: =1.5*$A$1*1000*1000 -> 14709975 | F10: =0.7*$A$1*1000*1000 -> 6864655 | G10: 1 | H10: 1 | I10: 50
A11: =A10+1 -> 8 | B11: 3000 | C11: =$A$1*1000^2*0.2 -> 1961330 | D11: =$A$1*1000^2*0.2 -> 1961330 | E11: =0.4*$A$1*1000*1000 -> 3922660 | F11: =0.3*$A$1*1000*1000 -> 2941995 | G11: 1 | H11: 1 | I11: 50 | J11: RCA-SA6C-30
A12: 9 | B12: 6000 | C12: =$A$1*1000^2*0.3 -> 2941995 | D12: 2941995 | E12: =1*$A$1*1000*1000 -> 9806650 | F12: =1*$A$1*1000*1000 -> 9806650 | G12: 1 | H12: 1 | I12: 50
A13: =A12+1 -> 10 | B13: 12000 | C13: 2941995 | D13: 2941995 | E13: =2*$A$1*1000*1000 -> 19613300 | F13: =1.2*$A$1*1000*1000 -> 11767980 | G13: 1 | H13: 1 | I13: 50
A14: =A13+1 -> 11 | B14: 20000 | C14: 2941995 | D14: 2941995 | E14: =1.5*$A$1*1000*1000 -> 14709975 | F14: =0.6*$A$1*1000*1000 -> 5883990 | G14: 1 | H14: 1 | I14: 50
A15: =A14+1 -> 12 | B15: 2500 | C15: =$A$1*1000^2*0.2 -> 1961330 | D15: =$A$1*1000^2*0.2 -> 1961330 | E15: =0.2*$A$1*1000*1000 -> 1961330 | F15: =0.2*$A$1*1000*1000 -> 1961330 | G15: 1 | H15: 1 | I15: 50 | J15: RCA-SA4D-20
A16: 13 | B16: 5000 | C16: =$A$1*1000^2*0.3 -> 2941995 | D16: =$A$1*1000^2*0.3 -> 2941995 | E16: =0.3*$A$1*1000*1000 -> 2941995 | F16: =0.3*$A$1*1000*1000 -> 2941995 | G16: 1 | H16: 1 | I16: 50
A17: 14 | B17: 10000 | C17: =$A$1*1000^2*0.3 -> 2941995 | D17: =$A$1*1000^2*0.3 -> 2941995 | E17: =0.3*$A$1*1000*1000 -> 2941995 | F17: =0.3*$A$1*1000*1000 -> 2941995 | G17: 1 | H17: 1 | I17: 50
A18: 15 | B18: 3000 | C18: =$A$1*1000^2*0.2 -> 1961330 | D18: =$A$1*1000^2*0.2 -> 1961330 | E18: =0.2*$A$1*1000*1000 -> 1961330 | F18: =0.2*$A$1*1000*1000 -> 1961330 | G18: 1 | H18: 1 | I18: 50 | J18: RCA-SA5D-20
A19: 16 | B19: 6000 | C19: =$A$1*1000^2*0.3 -> 2941995 | D19: =$A$1*1000^2*0.3 -> 2941995 | E19: =0.3*$A$1*1000*1000 -> 2941995 | F19: =0.3*$A$1*1000*1000 -> 2941995 | G19: 1 | H19: 1 | I19: 50
A20: 17 | B20: 12000 | C20: =$A$1*1000^2*0.3 -> 2941995 | D20: =$A$1*1000^2*0.3 -> 2941995 | E20: =0.3*$A$1*1000*1000 -> 2941995 | F20: =0.3*$A$1*1000*1000 -> 2941995 | G20: 1 | H20: 1 | I20: 50
A21: 18 | B21: 3000 | C21: =$A$1*1000^2*0.2 -> 1961330 | D21: =$A$1*1000^2*0.2 -> 1961330 | E21: =0.2*$A$1*1000*1000 -> 1961330 | F21: =0.2*$A$1*1000*1000 -> 1961330 | G21: 1 | H21: 1 | I21: 50 | J21: RCA-SA6D-30
A22: 19 | B22: 6000 | C22: =$A$1*1000^2*0.3 -> 2941995 | D22: =$A$1*1000^2*0.3 -> 2941995 | E22: =0.3*$A$1*1000*1000 -> 2941995 | F22: =0.3*$A$1*1000*1000 -> 2941995 | G22: 1 | H22: 1 | I22: 50
A23: 20 | B23: 12000 | C23: =$A$1*1000^2*0.3 -> 2941995 | D23: =$A$1*1000^2*0.3 -> 2941995 | E23: =0.3*$A$1*1000*1000 -> 2941995 | F23: =0.3*$A$1*1000*1000 -> 2941995 | G23: 1 | H23: 1 | I23: 50
A24: 21 | B24: 2500 | C24: =$A$1*1000^2*0.2 -> 1961330 | D24: =$A$1*1000^2*0.2 -> 1961330 | E24: =0.2*$A$1*1000*1000 -> 1961330 | F24: =0.2*$A$1*1000*1000 -> 1961330 | G24: 1 | H24: 1 | I24: 50 | J24: RCA-SS4D-20
A25: 22 | B25: 5000 | C25: =$A$1*1000^2*0.3 -> 2941995 | D25: =$A$1*1000^2*0.3 -> 2941995 | E25: =0.3*$A$1*1000*1000 -> 2941995 | F25: =0.3*$A$1*1000*1000 -> 2941995 | G25: 1 | H25: 1 | I25: 50
A26: 23 | B26: 10000 | C26: =$A$1*1000^2*0.3 -> 2941995 | D26: =$A$1*1000^2*0.3 -> 2941995 | E26: =0.3*$A$1*1000*1000 -> 2941995 | F26: =0.3*$A$1*1000*1000 -> 2941995 | G26: 1 | H26: 1 | I26: 50
A27: 24 | B27: 3000 | C27: =$A$1*1000^2*0.2 -> 1961330 | D27: =$A$1*1000^2*0.2 -> 1961330 | E27: =0.2*$A$1*1000*1000 -> 1961330 | F27: =0.2*$A$1*1000*1000 -> 1961330 | G27: 1 | H27: 1 | I27: 50 | J27: RCA-SS5D-20
A28: 25 | B28: 6000 | C28: =$A$1*1000^2*0.3 -> 2941995 | D28: =$A$1*1000^2*0.3 -> 2941995 | E28: =0.3*$A$1*1000*1000 -> 2941995 | F28: =0.3*$A$1*1000*1000 -> 2941995 | G28: 1 | H28: 1 | I28: 50
A29: 26 | B29: 12000 | C29: =$A$1*1000^2*0.3 -> 2941995 | D29: =$A$1*1000^2*0.3 -> 2941995 | E29: =0.3*$A$1*1000*1000 -> 2941995 | F29: =0.3*$A$1*1000*1000 -> 2941995 | G29: 1 | H29: 1 | I29: 50
A30: 27 | B30: 3000 | C30: =$A$1*1000^2*0.2 -> 1961330 | D30: =$A$1*1000^2*0.2 -> 1961330 | E30: =0.2*$A$1*1000*1000 -> 1961330 | F30: =0.2*$A$1*1000*1000 -> 1961330 | G30: 1 | H30: 1 | I30: 50 | J30: RCA-SS6D-30
A31: 28 | B31: 6000 | C31: =$A$1*1000^2*0.3 -> 2941995 | D31: =$A$1*1000^2*0.3 -> 2941995 | E31: =0.3*$A$1*1000*1000 -> 2941995 | F31: =0.3*$A$1*1000*1000 -> 2941995 | G31: 1 | H31: 1 | I31: 50
A32: 29 | B32: 12000 | C32: =$A$1*1000^2*0.3 -> 2941995 | D32: =$A$1*1000^2*0.3 -> 2941995 | E32: =0.3*$A$1*1000*1000 -> 2941995 | F32: =0.3*$A$1*1000*1000 -> 2941995 | G32: 1 | H32: 1 | I32: 50
A33: 30 | B33: 2500 | C33: =$A$1*1000^2*0.2 -> 1961330 | D33: =$A$1*1000^2*0.2 -> 1961330 | E33: =0.4*$A$1*1000*1000 -> 3922660 | F33: =0.3*$A$1*1000*1000 -> 2941995 | G33: 1 | H33: 1 | I33: 50 | J33: RCA-SA4R-20
A34: 31 | B34: 5000 | C34: =$A$1*1000^2*0.3 -> 2941995 | D34: =$A$1*1000^2*0.3 -> 2941995 | E34: =0.6*$A$1*1000*1000 -> 5883990 | F34: =0.6*$A$1*1000*1000 -> 5883990 | G34: 1 | H34: 1 | I34: 50
A35: 32 | B35: 10000 | C35: =$A$1*1000^2*0.3 -> 2941995 | D35: =$A$1*1000^2*0.3 -> 2941995 | E35: =0.8*$A$1*1000*1000 -> 7845320 | F35: =0.8*$A$1*1000*1000 -> 7845320 | G35: 1 | H35: 1 | I35: 50
A36: 33 | B36: 3000 | C36: =$A$1*1000^2*0.2 -> 1961330 | D36: =$A$1*1000^2*0.2 -> 1961330 | E36: =0.3*$A$1*1000*1000 -> 2941995 | F36: =0.3*$A$1*1000*1000 -> 2941995 | G36: 1 | H36: 1 | I36: 50 | J36: RCA-SA5R-20
A37: 34 | B37: 6000 | C37: =$A$1*1000^2*0.3 -> 2941995 | D37: =$A$1*1000^2*0.3 -> 2941995 | E37: =0.6*$A$1*1000*1000 -> 5883990 | F37: =0.6*$A$1*1000*1000 -> 5883990 | G37: 1 | H37: 1 | I37: 50
A38: 35 | B38: 12000 | C38: =$A$1*1000^2*0.3 -> 2941995 | D38: =$A$1*1000^2*0.3 -> 2941995 | E38: =0.8*$A$1*1000*1000 -> 7845320 | F38: =0.8*$A$1*1000*1000 -> 7845320 | G38: 1 | H38: 1 | I38: 50
A39: 36 | B39: 3000 | C39: =$A$1*1000^2*0.2 -> 1961330 | D39: =$A$1*1000^2*0.2 -> 1961330 | E39: =0.3*$A$1*1000*1000 -> 2941995 | F39: =0.3*$A$1*1000*1000 -> 2941995 | G39: 1 | H39: 1 | I39: 50 | J39: RCA-SA6R-30
A40: 37 | B40: 6000 | C40: =$A$1*1000^2*0.3 -> 2941995 | D40: =$A$1*1000^2*0.3 -> 2941995 | E40: =0.6*$A$1*1000*1000 -> 5883990 | F40: =0.6*$A$1*1000*1000 -> 5883990 | G40: 1 | H40: 1 | I40: 50
A41: =A40+1 -> 38 | B41: 12000 | C41: =$A$1*1000^2*0.3 -> 2941995 | D41: =$A$1*1000^2*0.3 -> 2941995 | E41: =0.8*$A$1*1000*1000 -> 7845320 | F41: =0.8*$A$1*1000*1000 -> 7845320 | G41: 1 | H41: 1 | I41: 50
A42: =A41+1 -> 39 | B42: 2500 | C42: =$A$1*1000^2*0.2 -> 1961330 | D42: =$A$1*1000^2*0.2 -> 1961330 | E42: =0.3*$A$1*1000*1000 -> 2941995 | F42: =0.3*$A$1*1000*1000 -> 2941995 | G42: 1 | H42: 1 | I42: 50 | J42: RCA-RA3C-20
A43: =A42+1 -> 40 | B43: 5000 | C43: =$A$1*1000^2*0.3 -> 2941995 | D43: =$A$1*1000^2*0.3 -> 2941995 | E43: =1*$A$1*1000*1000 -> 9806650 | F43: =0.7*$A$1*1000*1000 -> 6864655 | G43: 1 | H43: 1 | I43: 50
A44: =A43+1 -> 41 | B44: 10000 | C44: =$A$1*1000^2*0.3 -> 2941995 | D44: =$A$1*1000^2*0.3 -> 2941995 | E44: =1.5*$A$1*1000*1000 -> 14709975 | F44: =0.8*$A$1*1000*1000 -> 7845320 | G44: 1 | H44: 1 | I44: 50
A45: =A44+1 -> 42 | B45: 3000 | C45: =$A$1*1000^2*0.2 -> 1961330 | D45: =$A$1*1000^2*0.2 -> 1961330 | E45: =0.3*$A$1*1000*1000 -> 2941995 | F45: =0.3*$A$1*1000*1000 -> 2941995 | G45: 1 | H45: 1 | I45: 50 | J45: RCA-RA4C-20
A46: 43 | B46: 6000 | C46: =$A$1*1000^2*0.3 -> 2941995 | D46: =$A$1*1000^2*0.3 -> 2941995 | E46: =1*$A$1*1000*1000 -> 9806650 | F46: =0.7*$A$1*1000*1000 -> 6864655 | G46: 1 | H46: 1 | I46: 50
A47: 44 | B47: 12000 | C47: =$A$1*1000^2*0.3 -> 2941995 | D47: =$A$1*1000^2*0.3 -> 2941995 | E47: =1*$A$1*1000*1000 -> 9806650 | F47: =0.8*$A$1*1000*1000 -> 7845320 | G47: 1 | H47: 1 | I47: 50
A48: 45 | B48: 3000 | C48: =$A$1*1000^2*0.2 -> 1961330 | D48: =$A$1*1000^2*0.2 -> 1961330 | E48: =0.3*$A$1*1000*1000 -> 2941995 | F48: =0.3*$A$1*1000*1000 -> 2941995 | G48: 1 | H48: 1 | I48: 50 | J48: RCA-RA4C-30
A49: 46 | B49: 6000 | C49: =$A$1*1000^2*0.3 -> 2941995 | D49: =$A$1*1000^2*0.3 -> 2941995 | E49: =1*$A$1*1000*1000 -> 9806650 | F49: =1*$A$1*1000*1000 -> 9806650 | G49: 1 | H49: 1 | I49: 50
A50: =A49+1 -> 47 | B50: 12000 | C50: =$A$1*1000^2*0.3 -> 2941995 | D50: =$A$1*1000^2*0.3 -> 2941995 | E50: =1.5*$A$1*1000*1000 -> 14709975 | F50: =1*$A$1*1000*1000 -> 9806650 | G50: 1 | H50: 1 | I50: 50

Sheet StrokeData (hidden)
B1: 1 | C1: 2 | D1: 4 | E1: 5 | F1: 6 | G1: 7 | H1: 8 | I1: 9 | J1: 10 | K1: 16 | L1: 17
A2: ﾃﾞｰﾀ№ | B2: ｽﾄﾛｰｸ長 | C2: 有効ｽﾄﾛｰｸ補正 | D2: 基準ｹﾞｲﾝ用搬送質量 | E2: 水平可搬質量 | F2: 垂直可搬質量 | G2: 最大速度 | H2: 位置ｹﾞｲﾝ | I2: FFｹﾞｲﾝ | J2: 速度制御帯域 | K2: 前ﾃﾞｰﾀ№ | L2: 次ﾃﾞｰﾀ№ | M2: 備考
A3: =ModelData!A3 -> 0 | B3: ㎜ | C3: ㎜ | D3: 1g | E3: 1g | F3: 1g | G3: ㎜/s | H3: 1/s | I3: % | J3: rad/s
A4: =A3+1 -> 1 | B4: 400 | C4: 0 | D4: 8000 | E4: 11000 | F4: 4500 | G4: 165 | H4: 35 | I4: 0 | J4: 140 | K4: -1 | L4: -1 | M4: RCA-SA4C-20-2.5
A5: =A4+1 -> 2 | B5: 400 | C5: 0 | D5: 6000 | E5: 8500 | F5: 2500 | G5: 330 | H5: 35 | I5: 0 | J5: 160 | K5: -1 | L5: -1 | M5: RCA-SA4C-20-5
A6: 3 | B6: 400 | C6: 0 | D6: 4000 | E6: 5500 | F6: 1000 | G6: 665 | H6: 35 | I6: 0 | J6: 160 | K6: -1 | L6: -1 | M6: RCA-SA4C-20-10
A7: 4 | B7: 450 | C7: 0 | D7: 12000 | E7: 17000 | F7: 4000 | G7: 200 | H7: 35 | I7: 0 | J7: 160 | K7: -1 | L7: =A8 -> 5 | M7: RCA-SA5C-20-3
A8: 5 | B8: 500 | C8: 0 | D8: 12000 | E8: 17000 | F8: 4000 | G8: 190 | H8: 35 | I8: 0 | J8: 160 | K8: =A7 -> 4 | L8: -1
A9: 6 | B9: 450 | C9: 0 | D9: 8000 | E9: 11000 | F9: 2000 | G9: 400 | H9: 35 | I9: 0 | J9: 160 | K9: -1 | L9: =A10 -> 7 | M9: RCA-SA5C-20-6
A10: 7 | B10: 500 | C10: 0 | D10: 8000 | E10: 11000 | F10: 2000 | G10: 380 | H10: 35 | I10: 0 | J10: 160 | K10: =A9 -> 6 | L10: -1
A11: 8 | B11: 450 | C11: 0 | D11: 4000 | E11: 5500 | F11: 1000 | G11: 800 | H11: 35 | I11: 0 | J11: 120 | K11: -1 | L11: =A12 -> 9 | M11: RCA-SA5C-20-12
A12: 9 | B12: 500 | C12: 0 | D12: 4000 | E12: 5500 | F12: 1000 | G12: 760 | H12: 35 | I12: 0 | J12: 120 | K12: =A11 -> 8 | L12: -1
A13: 10 | B13: 500 | C13: 0 | D13: 2000 | E13: 3000 | F13: 500 | G13: 1300 | H13: 35 | I13: 0 | J13: 120 | K13: -1 | L13: -1 | M13: RCA-SA5C-20-20
A14: 11 | B14: 450 | C14: 0 | D14: 18000 | E14: 25000 | F14: 6000 | G14: 200 | H14: 35 | I14: 0 | J14: 160 | K14: -1 | L14: =A15 -> 12 | M14: RCA-SA6C-30-3
A15: 12 | B15: 500 | C15: 0 | D15: 18000 | E15: 25000 | F15: 6000 | G15: 190 | H15: 35 | I15: 0 | J15: 160 | K15: =A14 -> 11 | L15: =A16 -> 13
A16: 13 | B16: 550 | C16: 0 | D16: 18000 | E16: 25000 | F16: 6000 | G16: 160 | H16: 35 | I16: 0 | J16: 160 | K16: =A15 -> 12 | L16: =A17 -> 14
A17: 14 | B17: 600 | C17: 0 | D17: 18000 | E17: 25000 | F17: 6000 | G17: 135 | H17: 35 | I17: 0 | J17: 160 | K17: =A16 -> 13 | L17: -1
A18: 15 | B18: 450 | C18: 0 | D18: 12000 | E18: 16500 | F18: 3000 | G18: 400 | H18: 35 | I18: 0 | J18: 160 | K18: -1 | L18: =A19 -> 16 | M18: RCA-SA6C-30-6
A19: 16 | B19: 500 | C19: 0 | D19: 12000 | E19: 16500 | F19: 3000 | G19: 380 | H19: 35 | I19: 0 | J19: 160 | K19: =A18 -> 15 | L19: =A20 -> 17
A20: 17 | B20: 550 | C20: 0 | D20: 12000 | E20: 16500 | F20: 3000 | G20: 320 | H20: 35 | I20: 0 | J20: 160 | K20: =A19 -> 16 | L20: =A21 -> 18
A21: 18 | B21: 600 | C21: 0 | D21: 12000 | E21: 16500 | F21: 3000 | G21: 270 | H21: 35 | I21: 0 | J21: 160 | K21: =A20 -> 17 | L21: -1
A22: 19 | B22: 450 | C22: 0 | D22: 6000 | E22: 8500 | F22: 1500 | G22: 800 | H22: 30 | I22: 0 | J22: 120 | K22: -1 | L22: =A23 -> 20 | M22: RCA-SA6C-30-12
A23: 20 | B23: 500 | C23: 0 | D23: 6000 | E23: 8500 | F23: 1500 | G23: 760 | H23: 30 | I23: 0 | J23: 120 | K23: =A22 -> 19 | L23: =A24 -> 21
A24: 21 | B24: 550 | C24: 0 | D24: 6000 | E24: 8500 | F24: 1500 | G24: 640 | H24: 30 | I24: 0 | J24: 120 | K24: =A23 -> 20 | L24: =A25 -> 22
A25: 22 | B25: 600 | C25: 0 | D25: 6000 | E25: 8500 | F25: 1500 | G25: 540 | H25: 30 | I25: 0 | J25: 120 | K25: =A24 -> 21 | L25: -1
A26: 23 | B26: 500 | C26: 0 | D26: 3000 | E26: 4200 | F26: 500 | G26: 1300 | H26: 30 | I26: 0 | J26: 120 | K26: -1 | L26: =A27 -> 24 | M26: RCA-SA6C-30-20
A27: 24 | B27: 550 | C27: 0 | D27: 3000 | E27: 4200 | F27: 500 | G27: 1160 | H27: 30 | I27: 0 | J27: 120 | K27: =A26 -> 23 | L27: =A28 -> 25
A28: 25 | B28: 600 | C28: 0 | D28: 3000 | E28: 4200 | F28: 500 | G28: 990 | H28: 30 | I28: 0 | J28: 120 | K28: =A27 -> 24 | L28: -1
A29: 26 | B29: 300 | C29: 0 | D29: 8000 | E29: 8000 | F29: 4500 | G29: 165 | H29: 35 | I29: 0 | J29: 160 | K29: -1 | L29: -1 | M29: RCA-SA4D-20-2.5
A30: 27 | B30: 300 | C30: 0 | D30: 6000 | E30: 6000 | F30: 2500 | G30: 330 | H30: 35 | I30: 0 | J30: 160 | K30: -1 | L30: -1 | M30: RCA-SA4D-20-5
A31: 28 | B31: 300 | C31: 0 | D31: 4000 | E31: 4000 | F31: 1000 | G31: 665 | H31: 35 | I31: 0 | J31: 120 | K31: -1 | L31: -1 | M31: RCA-SA4D-20-10
A32: 29 | B32: 450 | C32: 0 | D32: 12000 | E32: 12000 | F32: 4000 | G32: 200 | H32: 35 | I32: 0 | J32: 160 | K32: -1 | L32: =A33 -> 30 | M32: RCA-SA5D-20-3
A33: 30 | B33: 500 | C33: 0 | D33: 12000 | E33: 12000 | F33: 4000 | G33: 190 | H33: 35 | I33: 0 | J33: 160 | K33: =A32 -> 29 | L33: -1
A34: 31 | B34: 450 | C34: 0 | D34: 8000 | E34: 8000 | F34: 2000 | G34: 400 | H34: 35 | I34: 0 | J34: 160 | K34: -1 | L34: =A35 -> 32 | M34: RCA-SA5D-20-6
A35: 32 | B35: 500 | C35: 0 | D35: 8000 | E35: 8000 | F35: 2000 | G35: 380 | H35: 35 | I35: 0 | J35: 160 | K35: =A34 -> 31 | L35: -1
A36: 33 | B36: 450 | C36: 0 | D36: 4000 | E36: 4000 | F36: 1000 | G36: 800 | H36: 35 | I36: 0 | J36: 120 | K36: -1 | L36: =A37 -> 34 | M36: RCA-SA5D-20-12
A37: 34 | B37: 500 | C37: 0 | D37: 4000 | E37: 4000 | F37: 1000 | G37: 760 | H37: 35 | I37: 0 | J37: 120 | K37: =A36 -> 33 | L37: -1
A38: 35 | B38: 450 | C38: 0 | D38: 18000 | E38: 18000 | F38: 6000 | G38: 200 | H38: 35 | I38: 0 | J38: 160 | K38: -1 | L38: =A39 -> 36 | M38: RCA-SA6D-30-3
A39: 36 | B39: 500 | C39: 0 | D39: 18000 | E39: 18000 | F39: 6000 | G39: 190 | H39: 35 | I39: 0 | J39: 160 | K39: =A38 -> 35 | L39: =A40 -> 37
A40: 37 | B40: 550 | C40: 0 | D40: 18000 | E40: 18000 | F40: 6000 | G40: 160 | H40: 35 | I40: 0 | J40: 160 | K40: =A39 -> 36 | L40: =A41 -> 38
A41: 38 | B41: 600 | C41: 0 | D41: 18000 | E41: 18000 | F41: 6000 | G41: 135 | H41: 35 | I41: 0 | J41: 160 | K41: =A40 -> 37 | L41: -1
A42: 39 | B42: 450 | C42: 0 | D42: 12000 | E42: 12000 | F42: 3000 | G42: 400 | H42: 35 | I42: 0 | J42: 160 | K42: -1 | L42: =A43 -> 40 | M42: RCA-SA6D-30-6
A43: 40 | B43: 500 | C43: 0 | D43: 12000 | E43: 12000 | F43: 3000 | G43: 380 | H43: 35 | I43: 0 | J43: 160 | K43: =A42 -> 39 | L43: =A44 -> 41
A44: 41 | B44: 550 | C44: 0 | D44: 12000 | E44: 12000 | F44: 3000 | G44: 320 | H44: 35 | I44: 0 | J44: 160 | K44: =A43 -> 40 | L44: =A45 -> 42
A45: 42 | B45: 600 | C45: 0 | D45: 12000 | E45: 12000 | F45: 3000 | G45: 270 | H45: 35 | I45: 0 | J45: 160 | K45: =A44 -> 41 | L45: -1
A46: 43 | B46: 450 | C46: 0 | D46: 6000 | E46: 6000 | F46: 1500 | G46: 800 | H46: 35 | I46: 0 | J46: 120 | K46: -1 | L46: =A47 -> 44 | M46: RCA-SA6D-30-12
A47: 44 | B47: 500 | C47: 0 | D47: 6000 | E47: 6000 | F47: 1500 | G47: 760 | H47: 35 | I47: 0 | J47: 120 | K47: =A46 -> 43 | L47: =A48 -> 45
A48: =A47+1 -> 45 | B48: 550 | C48: 0 | D48: 6000 | E48: 6000 | F48: 1500 | G48: 640 | H48: 35 | I48: 0 | J48: 120 | K48: =A47 -> 44 | L48: =A49 -> 46
A49: 46 | B49: 600 | C49: 0 | D49: 6000 | E49: 6000 | F49: 1500 | G49: 540 | H49: 35 | I49: 0 | J49: 120 | K49: =A48 -> 45 | L49: -1
A50: 47 | B50: 300 | C50: 0 | D50: 8000 | E50: 8000 | F50: 4500 | G50: 165 | H50: 35 | I50: 0 | J50: 160 | K50: -1 | L50: -1 | M50: RCA-SS4D-20-2.5
A51: 48 | B51: 300 | C51: 0 | D51: 6000 | E51: 6000 | F51: 2500 | G51: 330 | H51: 35 | I51: 0 | J51: 160 | K51: -1 | L51: -1 | M51: RCA-SS4D-20-5
A52: 49 | B52: 300 | C52: 0 | D52: 4000 | E52: 4000 | F52: 1000 | G52: 665 | H52: 35 | I52: 0 | J52: 160 | K52: -1 | L52: -1 | M52: RCA-SS4D-20-10
A53: 50 | B53: 450 | C53: 0 | D53: 12000 | E53: 12000 | F53: 4000 | G53: 200 | H53: 35 | I53: 0 | J53: 160 | K53: -1 | L53: =A54 -> 51 | M53: RCA-SS5D-20-3
A54: 51 | B54: 500 | C54: 0 | D54: 12000 | E54: 12000 | F54: 4000 | G54: 190 | H54: 35 | I54: 0 | J54: 160 | K54: =A53 -> 50 | L54: -1
A55: 52 | B55: 450 | C55: 0 | D55: 8000 | E55: 8000 | F55: 2000 | G55: 400 | H55: 35 | I55: 0 | J55: 160 | K55: -1 | L55: =A56 -> 53 | M55: RCA-SS5D-20-6
A56: 53 | B56: 500 | C56: 0 | D56: 8000 | E56: 8000 | F56: 2000 | G56: 380 | H56: 35 | I56: 0 | J56: 160 | K56: =A55 -> 52 | L56: -1
A57: 54 | B57: 450 | C57: 0 | D57: 4000 | E57: 4000 | F57: 1000 | G57: 800 | H57: 35 | I57: 0 | J57: 120 | K57: -1 | L57: =A58 -> 55 | M57: RCA-SS5D-20-12
A58: 55 | B58: 500 | C58: 0 | D58: 4000 | E58: 4000 | F58: 1000 | G58: 760 | H58: 35 | I58: 0 | J58: 120 | K58: =A57 -> 54 | L58: -1
A59: 56 | B59: 450 | C59: 0 | D59: 18000 | E59: 18000 | F59: 6000 | G59: 200 | H59: 35 | I59: 0 | J59: 160 | K59: -1 | L59: =A60 -> 57 | M59: RCA-SS6D-30-3
A60: 57 | B60: 500 | C60: 0 | D60: 18000 | E60: 18000 | F60: 6000 | G60: 190 | H60: 35 | I60: 0 | J60: 160 | K60: =A59 -> 56 | L60: =A61 -> 58
A61: 58 | B61: 550 | C61: 0 | D61: 18000 | E61: 18000 | F61: 6000 | G61: 160 | H61: 35 | I61: 0 | J61: 160 | K61: =A60 -> 57 | L61: =A62 -> 59
A62: 59 | B62: 600 | C62: 0 | D62: 18000 | E62: 18000 | F62: 6000 | G62: 135 | H62: 35 | I62: 0 | J62: 160 | K62: =A61 -> 58 | L62: -1
A63: 60 | B63: 450 | C63: 0 | D63: 12000 | E63: 12000 | F63: 3000 | G63: 400 | H63: 35 | I63: 0 | J63: 160 | K63: -1 | L63: =A64 -> 61 | M63: RCA-SS6D-30-6
A64: 61 | B64: 500 | C64: 0 | D64: 12000 | E64: 12000 | F64: 3000 | G64: 380 | H64: 35 | I64: 0 | J64: 160 | K64: =A63 -> 60 | L64: =A65 -> 62
A65: 62 | B65: 550 | C65: 0 | D65: 12000 | E65: 12000 | F65: 3000 | G65: 320 | H65: 35 | I65: 0 | J65: 160 | K65: =A64 -> 61 | L65: =A66 -> 63
A66: 63 | B66: 600 | C66: 0 | D66: 12000 | E66: 12000 | F66: 3000 | G66: 270 | H66: 35 | I66: 0 | J66: 160 | K66: =A65 -> 62 | L66: -1
A67: 64 | B67: 450 | C67: 0 | D67: 6000 | E67: 6000 | F67: 1500 | G67: 800 | H67: 35 | I67: 0 | J67: 120 | K67: -1 | L67: =A68 -> 65 | M67: RCA-SS6D-30-12
A68: 65 | B68: 500 | C68: 0 | D68: 6000 | E68: 6000 | F68: 1500 | G68: 760 | H68: 35 | I68: 0 | J68: 120 | K68: =A67 -> 64 | L68: =A69 -> 66
A69: 66 | B69: 550 | C69: 0 | D69: 6000 | E69: 6000 | F69: 1500 | G69: 640 | H69: 35 | I69: 0 | J69: 120 | K69: =A68 -> 65 | L69: =A70 -> 67
A70: 67 | B70: 600 | C70: 0 | D70: 6000 | E70: 6000 | F70: 1500 | G70: 540 | H70: 35 | I70: 0 | J70: 120 | K70: =A69 -> 66 | L70: -1
A71: 68 | B71: 400 | C71: 0 | D71: 8000 | E71: 10500 | F71: 4500 | G71: 165 | H71: 35 | I71: 0 | J71: 135 | K71: -1 | L71: -1 | M71: RCA-SA4R-20-2.5
A72: 69 | B72: 400 | C72: 0 | D72: 6000 | E72: 8000 | F72: 2500 | G72: 330 | H72: 35 | I72: 0 | J72: 160 | K72: -1 | L72: -1 | M72: RCA-SA4R-20-5
A73: 70 | B73: 400 | C73: 0 | D73: 4000 | E73: 5200 | F73: 1000 | G73: 665 | H73: 35 | I73: 0 | J73: 160 | K73: -1 | L73: -1 | M73: RCA-SA4R-20-10
A74: 71 | B74: 450 | C74: 0 | D74: 12000 | E74: 15500 | F74: 4000 | G74: 200 | H74: 35 | I74: 0 | J74: 160 | K74: -1 | L74: =A75 -> 72 | M74: RCA-SA5R-20-3
A75: 72 | B75: 500 | C75: 0 | D75: 12000 | E75: 15500 | F75: 4000 | G75: 190 | H75: 35 | I75: 0 | J75: 160 | K75: =A74 -> 71 | L75: -1
A76: 73 | B76: 450 | C76: 0 | D76: 8000 | E76: 10500 | F76: 2000 | G76: 400 | H76: 35 | I76: 0 | J76: 160 | K76: -1 | L76: =A77 -> 74 | M76: RCA-SA5R-20-6
A77: 74 | B77: 500 | C77: 0 | D77: 8000 | E77: 10500 | F77: 2000 | G77: 380 | H77: 35 | I77: 0 | J77: 160 | K77: =A76 -> 73 | L77: -1
A78: 75 | B78: 450 | C78: 0 | D78: 4000 | E78: 5200 | F78: 1000 | G78: 800 | H78: 35 | I78: 0 | J78: 120 | K78: -1 | L78: =A79 -> 76 | M78: RCA-SA5R-20-12
A79: 76 | B79: 500 | C79: 0 | D79: 4000 | E79: 5200 | F79: 1000 | G79: 760 | H79: 35 | I79: 0 | J79: 120 | K79: =A78 -> 75 | L79: -1
A80: 77 | B80: 450 | C80: 0 | D80: 18000 | E80: 23500 | F80: 6000 | G80: 200 | H80: 35 | I80: 0 | J80: 160 | K80: -1 | L80: =A81 -> 78 | M80: RCA-SA6R-30-3
A81: 78 | B81: 500 | C81: 0 | D81: 18000 | E81: 23500 | F81: 6000 | G81: 190 | H81: 35 | I81: 0 | J81: 160 | K81: =A80 -> 77 | L81: =A82 -> 79
A82: 79 | B82: 550 | C82: 0 | D82: 18000 | E82: 23500 | F82: 6000 | G82: 160 | H82: 35 | I82: 0 | J82: 160 | K82: =A81 -> 78 | L82: =A83 -> 80
A83: 80 | B83: 600 | C83: 0 | D83: 18000 | E83: 23500 | F83: 6000 | G83: 135 | H83: 35 | I83: 0 | J83: 160 | K83: =A82 -> 79 | L83: -1
A84: 81 | B84: 450 | C84: 0 | D84: 12000 | E84: 15500 | F84: 3000 | G84: 400 | H84: 35 | I84: 0 | J84: 160 | K84: -1 | L84: =A85 -> 82 | M84: RCA-SA6R-30-6
A85: 82 | B85: 500 | C85: 0 | D85: 12000 | E85: 15500 | F85: 3000 | G85: 380 | H85: 35 | I85: 0 | J85: 160 | K85: =A84 -> 81 | L85: =A86 -> 83
A86: 83 | B86: 550 | C86: 0 | D86: 12000 | E86: 15500 | F86: 3000 | G86: 320 | H86: 35 | I86: 0 | J86: 160 | K86: =A85 -> 82 | L86: =A87 -> 84
A87: 84 | B87: 600 | C87: 0 | D87: 12000 | E87: 15500 | F87: 3000 | G87: 270 | H87: 35 | I87: 0 | J87: 160 | K87: =A86 -> 83 | L87: -1
A88: 85 | B88: 450 | C88: 0 | D88: 6000 | E88: 7800 | F88: 1500 | G88: 800 | H88: 30 | I88: 0 | J88: 120 | K88: -1 | L88: =A89 -> 86 | M88: RCA-SA6R-30-12
A89: 86 | B89: 500 | C89: 0 | D89: 6000 | E89: 7800 | F89: 1500 | G89: 760 | H89: 30 | I89: 0 | J89: 120 | K89: =A88 -> 85 | L89: =A90 -> 87
A90: 87 | B90: 550 | C90: 0 | D90: 6000 | E90: 7800 | F90: 1500 | G90: 640 | H90: 30 | I90: 0 | J90: 120 | K90: =A89 -> 86 | L90: =A91 -> 88
A91: =A90+1 -> 88 | B91: 600 | C91: 0 | D91: 6000 | E91: 7800 | F91: 1500 | G91: 540 | H91: 30 | I91: 0 | J91: 120 | K91: =A90 -> 87 | L91: -1
A92: =A91+1 -> 89 | B92: 200 | C92: 0 | D92: 18000 | E92: 23500 | F92: 6500 | G92: 125 | H92: 35 | I92: 0 | J92: 150 | K92: -1 | L92: -1 | M92: RCA-RA3C-20-2.5
A93: =A92+1 -> 90 | B93: 200 | C93: 0 | D93: 9000 | E93: 12000 | F93: 3000 | G93: 250 | H93: 35 | I93: 0 | J93: 155 | K93: -1 | L93: -1 | M93: RCA-RA3C-20-5
A94: 91 | B94: 200 | C94: 0 | D94: 4000 | E94: 5200 | F94: 1500 | G94: 500 | H94: 35 | I94: 0 | J94: 155 | K94: -1 | L94: -1 | M94: RCA-RA3C-20-10
A95: 92 | B95: 300 | C95: 0 | D95: 12000 | E95: 15500 | F95: 4000 | G95: 150 | H95: 35 | I95: 0 | J95: 160 | K95: -1 | L95: -1 | M95: RCA-RA4C-20-3
A96: 93 | B96: 300 | C96: 0 | D96: 6000 | E96: 8000 | F96: 2000 | G96: 300 | H96: 35 | I96: 0 | J96: 160 | K96: -1 | L96: -1 | M96: RCA-RA4C-20-6
A97: 94 | B97: 300 | C97: 0 | D97: 3000 | E97: 4000 | F97: 1000 | G97: 600 | H97: 35 | I97: 0 | J97: 160 | K97: -1 | L97: -1 | M97: RCA-RA4C-20-12
A98: 95 | B98: 300 | C98: 0 | D98: 18000 | E98: 23500 | F98: 6500 | G98: 150 | H98: 35 | I98: 0 | J98: 160 | K98: -1 | L98: -1 | M98: RCA-RA4C-30-3
A99: 96 | B99: 300 | C99: 0 | D99: 9000 | E99: 12000 | F99: 3000 | G99: 300 | H99: 35 | I99: 0 | J99: 160 | K99: -1 | L99: -1 | M99: RCA-RA4C-30-6
A100: 97 | B100: 300 | C100: 0 | D100: 4000 | E100: 5200 | F100: 1500 | G100: 600 | H100: 35 | I100: 0 | J100: 160 | K100: -1 | L100: -1 | M100: RCA-RA4C-30-12

Sheet MassDataLink (hidden)
B1: 1 | C1: 2 | D1: 3 | E1: 4 | F1: 5 | H1: 1000
A2: ﾃﾞｰﾀ№ | B2: ｱｸﾁｭｴｰﾀ姿勢 | C2: 搬送負荷質量 | D2: 加減速・速度ﾃﾞｰﾀ | E2: 前ﾃﾞｰﾀ№ | F2: 次ﾃﾞｰﾀ№ | G2: 備考
A3: =ModelData!A3 -> 0 | B3: 0/1 | C3: 1g | D3: ﾚｺｰﾄﾞ№ | E3: ﾚｺｰﾄﾞ№ | F3: ﾚｺｰﾄﾞ№ | G3: 型式-姿勢 | H3: 質量 | I3: 前№ﾁｪｯｸ | J3: 後№ﾁｪｯｸ
A4: =A3+1 -> 1 | B4: 0 | C4: =H4*$H$1 -> 1000 | D4: =AccVelDataLink!A4 -> 1 | E4: -1 | F4: =A5 -> 2 | G4: =AccVelDataLink!F4 -> RCA-SA4C-20-2.5-水平 | H4: =AccVelDataLink!G4 -> 1 | I4: =IF(E4=A3,"○",IF(G4=0,"つなぎまちがい","先頭")) -> 先頭 | J4: =IF(F4=A5,"○",IF(F4<>E5,"つなぎまちがい","終端")) -> ○
A5: 2 | B5: 0 | C5: 2500 | D5: =AccVelDataLink!A5 -> 2 | E5: =A4 -> 1 | F5: 3 | H5: =AccVelDataLink!G5 -> 2.5 | I5: ○ | J5: ○
A6: 3 | B6: 0 | C6: 5000 | D6: =AccVelDataLink!A6 -> 3 | E6: 2 | F6: 4 | H6: =AccVelDataLink!G6 -> 5 | I6: ○ | J6: ○
A7: 4 | B7: 0 | C7: 8000 | D7: =AccVelDataLink!A7 -> 4 | E7: 3 | F7: 5 | H7: =AccVelDataLink!G7 -> 8 | I7: ○ | J7: ○
A8: 5 | B8: 0 | C8: 11000 | D8: =AccVelDataLink!A8 -> 5 | E8: 4 | F8: 6 | H8: =AccVelDataLink!G8 -> 11 | I8: ○ | J8: ○
A9: 6 | B9: 1 | C9: 2000 | D9: =AccVelDataLink!A9 -> 6 | E9: 5 | F9: 7 | G9: =AccVelDataLink!F9 -> RCA-SA4C-20-2.5-垂直 | H9: =AccVelDataLink!G9 -> 2 | I9: ○ | J9: ○
A10: 7 | B10: 1 | C10: 4500 | D10: =AccVelDataLink!A10 -> 7 | E10: 6 | F10: -1 | H10: =AccVelDataLink!G10 -> 4.5 | I10: ○ | J10: 終端
A11: 8 | B11: 0 | C11: 400 | D11: =AccVelDataLink!A11 -> 8 | E11: -1 | F11: =A12 -> 9 | G11: =AccVelDataLink!F11 -> RCA-SA4C-20-5-水平 | H11: =AccVelDataLink!G11 -> 0.4 | I11: 先頭 | J11: ○
A12: 9 | B12: 0 | C12: 700 | D12: =AccVelDataLink!A12 -> 9 | E12: =A11 -> 8 | F12: 10 | H12: =AccVelDataLink!G12 -> 0.7 | I12: ○ | J12: ○
A13: 10 | B13: 0 | C13: 1000 | D13: =AccVelDataLink!A13 -> 10 | E13: 9 | F13: 11 | H13: =AccVelDataLink!G13 -> 1 | I13: ○ | J13: ○
A14: 11 | B14: 0 | C14: 1500 | D14: =AccVelDataLink!A14 -> 11 | E14: 10 | F14: 12 | H14: =AccVelDataLink!G14 -> 1.5 | I14: ○ | J14: ○
A15: 12 | B15: 0 | C15: 2000 | D15: =AccVelDataLink!A15 -> 12 | E15: 11 | F15: 13 | H15: =AccVelDataLink!G15 -> 2 | I15: ○ | J15: ○
A16: 13 | B16: 0 | C16: 2500 | D16: =AccVelDataLink!A16 -> 13 | E16: 12 | F16: 14 | H16: =AccVelDataLink!G16 -> 2.5 | I16: ○ | J16: ○
A17: 14 | B17: 0 | C17: 3250 | D17: =AccVelDataLink!A17 -> 14 | E17: 13 | F17: 15 | H17: =AccVelDataLink!G17 -> 3.25 | I17: ○ | J17: ○
A18: 15 | B18: 0 | C18: 4000 | D18: =AccVelDataLink!A18 -> 15 | E18: 14 | F18: 16 | H18: =AccVelDataLink!G18 -> 4 | I18: ○ | J18: ○
A19: 16 | B19: 0 | C19: 5000 | D19: =AccVelDataLink!A19 -> 16 | E19: 15 | F19: 17 | H19: =AccVelDataLink!G19 -> 5 | I19: ○ | J19: ○
A20: 17 | B20: 0 | C20: 6000 | D20: =AccVelDataLink!A20 -> 17 | E20: 16 | F20: 18 | H20: =AccVelDataLink!G20 -> 6 | I20: ○ | J20: ○
A21: 18 | B21: 0 | C21: 7200 | D21: =AccVelDataLink!A21 -> 18 | E21: 17 | F21: 19 | H21: =AccVelDataLink!G21 -> 7.2 | I21: ○ | J21: ○
A22: 19 | B22: 0 | C22: 8500 | D22: =AccVelDataLink!A22 -> 19 | E22: 18 | F22: 20 | H22: =AccVelDataLink!G22 -> 8.5 | I22: ○ | J22: ○
A23: 20 | B23: 1 | C23: 500 | D23: =AccVelDataLink!A23 -> 20 | E23: 19 | F23: 21 | G23: =AccVelDataLink!F23 -> RCA-SA4C-20-5-垂直 | H23: =AccVelDataLink!G23 -> 0.5 | I23: ○ | J23: ○
A24: 21 | B24: 1 | C24: 600 | D24: =AccVelDataLink!A24 -> 21 | E24: 20 | F24: 22 | H24: =AccVelDataLink!G24 -> 0.6 | I24: ○ | J24: ○
A25: 22 | B25: 1 | C25: 800 | D25: =AccVelDataLink!A25 -> 22 | E25: 21 | F25: 23 | H25: =AccVelDataLink!G25 -> 0.8 | I25: ○ | J25: ○
A26: 23 | B26: 1 | C26: 1000 | D26: =AccVelDataLink!A26 -> 23 | E26: 22 | F26: 24 | H26: =AccVelDataLink!G26 -> 1 | I26: ○ | J26: ○
A27: 24 | B27: 1 | C27: 1200 | D27: =AccVelDataLink!A27 -> 24 | E27: 23 | F27: 25 | H27: =AccVelDataLink!G27 -> 1.2 | I27: ○ | J27: ○
A28: 25 | B28: 1 | C28: 1500 | D28: =AccVelDataLink!A28 -> 25 | E28: 24 | F28: 26 | H28: =AccVelDataLink!G28 -> 1.5 | I28: ○ | J28: ○
A29: 26 | B29: 1 | C29: 1900 | D29: =AccVelDataLink!A29 -> 26 | E29: 25 | F29: 27 | H29: =AccVelDataLink!G29 -> 1.9 | I29: ○ | J29: ○
A30: 27 | B30: 1 | C30: 2500 | D30: =AccVelDataLink!A30 -> 27 | E30: 26 | F30: -1 | H30: =AccVelDataLink!G30 -> 2.5 | I30: ○ | J30: 終端
A31: 28 | B31: 0 | C31: 500 | D31: =AccVelDataLink!A31 -> 28 | E31: -1 | F31: =A32 -> 29 | G31: =AccVelDataLink!F31 -> RCA-SA4C-20-10-水平 | H31: =AccVelDataLink!G31 -> 0.5 | I31: 先頭 | J31: ○
A32: 29 | B32: 0 | C32: 550 | D32: =AccVelDataLink!A32 -> 29 | E32: =A31 -> 28 | F32: 30 | H32: =AccVelDataLink!G32 -> 0.55 | I32: ○ | J32: ○
A33: 30 | B33: 0 | C33: 600 | D33: =AccVelDataLink!A33 -> 30 | E33: 29 | F33: 31 | H33: =AccVelDataLink!G33 -> 0.6 | I33: ○ | J33: ○
A34: 31 | B34: 0 | C34: 650 | D34: =AccVelDataLink!A34 -> 31 | E34: 30 | F34: 32 | H34: =AccVelDataLink!G34 -> 0.65 | I34: ○ | J34: ○
A35: 32 | B35: 0 | C35: 700 | D35: =AccVelDataLink!A35 -> 32 | E35: 31 | F35: 33 | H35: =AccVelDataLink!G35 -> 0.7 | I35: ○ | J35: ○
A36: 33 | B36: 0 | C36: 800 | D36: =AccVelDataLink!A36 -> 33 | E36: 32 | F36: 34 | H36: =AccVelDataLink!G36 -> 0.8 | I36: ○ | J36: ○
A37: 34 | B37: 0 | C37: 900 | D37: =AccVelDataLink!A37 -> 34 | E37: 33 | F37: 35 | H37: =AccVelDataLink!G37 -> 0.9 | I37: ○ | J37: ○
A38: 35 | B38: 0 | C38: 1200 | D38: =AccVelDataLink!A38 -> 35 | E38: 34 | F38: 36 | H38: =AccVelDataLink!G38 -> 1.2 | I38: ○ | J38: ○
A39: 36 | B39: 0 | C39: 1500 | D39: =AccVelDataLink!A39 -> 36 | E39: 35 | F39: 37 | H39: =AccVelDataLink!G39 -> 1.5 | I39: ○ | J39: ○
A40: 37 | B40: 0 | C40: 2000 | D40: =AccVelDataLink!A40 -> 37 | E40: 36 | F40: 38 | H40: =AccVelDataLink!G40 -> 2 | I40: ○ | J40: ○
A41: 38 | B41: 0 | C41: 2500 | D41: =AccVelDataLink!A41 -> 38 | E41: 37 | F41: 39 | H41: =AccVelDataLink!G41 -> 2.5 | I41: ○ | J41: ○
A42: 39 | B42: 0 | C42: 3250 | D42: =AccVelDataLink!A42 -> 39 | E42: 38 | F42: 40 | H42: =AccVelDataLink!G42 -> 3.25 | I42: ○ | J42: ○
A43: 40 | B43: 0 | C43: 4000 | D43: =AccVelDataLink!A43 -> 40 | E43: 39 | F43: 41 | H43: =AccVelDataLink!G43 -> 4 | I43: ○ | J43: ○
A44: 41 | B44: 0 | C44: 4800 | D44: =AccVelDataLink!A44 -> 41 | E44: 40 | F44: 42 | H44: =AccVelDataLink!G44 -> 4.8 | I44: ○ | J44: ○
A45: 42 | B45: 0 | C45: 5500 | D45: =AccVelDataLink!A45 -> 42 | E45: 41 | F45: 43 | H45: =AccVelDataLink!G45 -> 5.5 | I45: ○ | J45: ○
A46: 43 | B46: 1 | C46: 100 | D46: =AccVelDataLink!A46 -> 43 | E46: 42 | F46: 44 | G46: =AccVelDataLink!F46 -> RCA-SA4C-20-10-垂直 | H46: =AccVelDataLink!G46 -> 0.1 | I46: ○ | J46: ○
A47: 44 | B47: 1 | C47: 120 | D47: =AccVelDataLink!A47 -> 44 | E47: 43 | F47: 45 | H47: =AccVelDataLink!G47 -> 0.12 | I47: ○ | J47: ○
A48: 45 | B48: 1 | C48: 140 | D48: =AccVelDataLink!A48 -> 45 | E48: 44 | F48: 46 | H48: =AccVelDataLink!G48 -> 0.14 | I48: ○ | J48: ○
A49: 46 | B49: 1 | C49: 170 | D49: =AccVelDataLink!A49 -> 46 | E49: 45 | F49: 47 | H49: =AccVelDataLink!G49 -> 0.17 | I49: ○ | J49: ○
A50: 47 | B50: 1 | C50: 210 | D50: =AccVelDataLink!A50 -> 47 | E50: 46 | F50: 48 | H50: =AccVelDataLink!G50 -> 0.21 | I50: ○ | J50: ○
A51: 48 | B51: 1 | C51: 250 | D51: =AccVelDataLink!A51 -> 48 | E51: 47 | F51: 49 | H51: =AccVelDataLink!G51 -> 0.25 | I51: ○ | J51: ○
A52: 49 | B52: 1 | C52: 320 | D52: =AccVelDataLink!A52 -> 49 | E52: 48 | F52: 50 | H52: =AccVelDataLink!G52 -> 0.32 | I52: ○ | J52: ○
A53: 50 | B53: 1 | C53: 400 | D53: =AccVelDataLink!A53 -> 50 | E53: 49 | F53: 51 | H53: =AccVelDataLink!G53 -> 0.4 | I53: ○ | J53: ○
A54: 51 | B54: 1 | C54: 500 | D54: =AccVelDataLink!A54 -> 51 | E54: 50 | F54: 52 | H54: =AccVelDataLink!G54 -> 0.5 | I54: ○ | J54: ○
A55: 52 | B55: 1 | C55: 600 | D55: =AccVelDataLink!A55 -> 52 | E55: 51 | F55: 53 | H55: =AccVelDataLink!G55 -> 0.6 | I55: ○ | J55: ○
A56: 53 | B56: 1 | C56: 700 | D56: =AccVelDataLink!A56 -> 53 | E56: 52 | F56: 54 | H56: =AccVelDataLink!G56 -> 0.7 | I56: ○ | J56: ○
A57: 54 | B57: 1 | C57: 850 | D57: =AccVelDataLink!A57 -> 54 | E57: 53 | F57: 55 | H57: =AccVelDataLink!G57 -> 0.85 | I57: ○ | J57: ○
A58: 55 | B58: 1 | C58: 1000 | D58: =AccVelDataLink!A58 -> 55 | E58: 54 | F58: -1 | H58: =AccVelDataLink!G58 -> 1 | I58: ○ | J58: 終端
A59: 56 | B59: 0 | C59: 3000 | D59: =AccVelDataLink!A59 -> 56 | E59: -1 | F59: =A60 -> 57 | G59: =AccVelDataLink!F59 -> RCA-SA5C-20-3-水平 | H59: =AccVelDataLink!G59 -> 3 | I59: 先頭 | J59: ○
A60: 57 | B60: 0 | C60: 12000 | D60: =AccVelDataLink!A60 -> 57 | E60: =A59 -> 56 | F60: =A61 -> 58 | H60: =AccVelDataLink!G60 -> 12 | I60: ○ | J60: ○
A61: 58 | B61: 0 | C61: 17000 | D61: =AccVelDataLink!A61 -> 58 | E61: =A60 -> 57 | F61: =A62 -> 59 | H61: =AccVelDataLink!G61 -> 17 | I61: ○ | J61: ○
A62: 59 | B62: 1 | C62: 2000 | D62: =AccVelDataLink!A62 -> 59 | E62: =A61 -> 58 | F62: =A63 -> 60 | G62: =AccVelDataLink!F62 -> RCA-SA5C-20-3-垂直 | H62: =AccVelDataLink!G62 -> 2 | I62: ○ | J62: ○
A63: 60 | B63: 1 | C63: 4000 | D63: =AccVelDataLink!A63 -> 60 | E63: =A62 -> 59 | F63: -1 | H63: =AccVelDataLink!G63 -> 4 | I63: ○ | J63: 終端
A64: 61 | B64: 0 | C64: 1000 | D64: =AccVelDataLink!A64 -> 61 | E64: -1 | F64: =A65 -> 62 | G64: =AccVelDataLink!F64 -> RCA-SA5C-20-6-水平 | H64: =AccVelDataLink!G64 -> 1 | I64: 先頭 | J64: ○
A65: 62 | B65: 0 | C65: 1400 | D65: =AccVelDataLink!A65 -> 62 | E65: =A64 -> 61 | F65: 63 | H65: =AccVelDataLink!G65 -> 1.4 | I65: ○ | J65: ○
A66: 63 | B66: 0 | C66: 1900 | D66: =AccVelDataLink!A66 -> 63 | E66: 62 | F66: 64 | H66: =AccVelDataLink!G66 -> 1.9 | I66: ○ | J66: ○
A67: 64 | B67: 0 | C67: 2500 | D67: =AccVelDataLink!A67 -> 64 | E67: 63 | F67: 65 | H67: =AccVelDataLink!G67 -> 2.5 | I67: ○ | J67: ○
A68: =A67+1 -> 65 | B68: 0 | C68: =H68*$H$1 -> 3300 | D68: =AccVelDataLink!A68 -> 65 | E68: 64 | F68: 66 | H68: =AccVelDataLink!G68 -> 3.3 | I68: =IF(E68=A67,"○",IF(G68=0,"つなぎまちがい","先頭")) -> ○ | J68: =IF(F68=A69,"○",IF(F68<>E69,"つなぎまちがい","終端")) -> ○
A69: 66 | B69: 0 | C69: 4500 | D69: =AccVelDataLink!A69 -> 66 | E69: 65 | F69: 67 | H69: =AccVelDataLink!G69 -> 4.5 | I69: ○ | J69: ○
A70: 67 | B70: 0 | C70: 6000 | D70: =AccVelDataLink!A70 -> 67 | E70: 66 | F70: 68 | H70: =AccVelDataLink!G70 -> 6 | I70: ○ | J70: ○
A71: 68 | B71: 0 | C71: 8000 | D71: =AccVelDataLink!A71 -> 68 | E71: 67 | F71: 69 | H71: =AccVelDataLink!G71 -> 8 | I71: ○ | J71: ○
A72: 69 | B72: 0 | C72: 9600 | D72: =AccVelDataLink!A72 -> 69 | E72: 68 | F72: 70 | H72: =AccVelDataLink!G72 -> 9.6 | I72: ○ | J72: ○
A73: 70 | B73: 0 | C73: 11000 | D73: =AccVelDataLink!A73 -> 70 | E73: 69 | F73: 71 | H73: =AccVelDataLink!G73 -> 11 | I73: ○ | J73: ○
A74: 71 | B74: 1 | C74: 500 | D74: =AccVelDataLink!A74 -> 71 | E74: 70 | F74: 72 | G74: =AccVelDataLink!F74 -> RCA-SA5C-20-6-垂直 | H74: =AccVelDataLink!G74 -> 0.5 | I74: ○ | J74: ○
A75: 72 | B75: 1 | C75: 550 | D75: =AccVelDataLink!A75 -> 72 | E75: 71 | F75: 73 | H75: =AccVelDataLink!G75 -> 0.55 | I75: ○ | J75: ○
A76: 73 | B76: 1 | C76: 650 | D76: =AccVelDataLink!A76 -> 73 | E76: 72 | F76: 74 | H76: =AccVelDataLink!G76 -> 0.65 | I76: ○ | J76: ○
A77: 74 | B77: 1 | C77: 800 | D77: =AccVelDataLink!A77 -> 74 | E77: 73 | F77: 75 | H77: =AccVelDataLink!G77 -> 0.8 | I77: ○ | J77: ○
A78: 75 | B78: 1 | C78: 1000 | D78: =AccVelDataLink!A78 -> 75 | E78: 74 | F78: 76 | H78: =AccVelDataLink!G78 -> 1 | I78: ○ | J78: ○
A79: 76 | B79: 1 | C79: 1250 | D79: =AccVelDataLink!A79 -> 76 | E79: 75 | F79: 77 | H79: =AccVelDataLink!G79 -> 1.25 | I79: ○ | J79: ○
A80: 77 | B80: 1 | C80: 1600 | D80: =AccVelDataLink!A80 -> 77 | E80: 76 | F80: 78 | H80: =AccVelDataLink!G80 -> 1.6 | I80: ○ | J80: ○
A81: 78 | B81: 1 | C81: 2000 | D81: =AccVelDataLink!A81 -> 78 | E81: 77 | F81: -1 | H81: =AccVelDataLink!G81 -> 2 | I81: ○ | J81: 終端
A82: 79 | B82: 0 | C82: 500 | D82: =AccVelDataLink!A82 -> 79 | E82: -1 | F82: =A83 -> 80 | G82: =AccVelDataLink!F82 -> RCA-SA5C-20-12-水平 | H82: =AccVelDataLink!G82 -> 0.5 | I82: 先頭 | J82: ○
A83: 80 | B83: 0 | C83: 550 | D83: =AccVelDataLink!A83 -> 80 | E83: =A82 -> 79 | F83: 81 | H83: =AccVelDataLink!G83 -> 0.55 | I83: ○ | J83: ○
A84: 81 | B84: 0 | C84: 650 | D84: =AccVelDataLink!A84 -> 81 | E84: 80 | F84: 82 | H84: =AccVelDataLink!G84 -> 0.65 | I84: ○ | J84: ○
A85: 82 | B85: 0 | C85: 750 | D85: =AccVelDataLink!A85 -> 82 | E85: 81 | F85: 83 | H85: =AccVelDataLink!G85 -> 0.75 | I85: ○ | J85: ○
A86: 83 | B86: 0 | C86: 850 | D86: =AccVelDataLink!A86 -> 83 | E86: 82 | F86: 84 | H86: =AccVelDataLink!G86 -> 0.85 | I86: ○ | J86: ○
A87: 84 | B87: 0 | C87: 1000 | D87: =AccVelDataLink!A87 -> 84 | E87: 83 | F87: 85 | H87: =AccVelDataLink!G87 -> 1 | I87: ○ | J87: ○
A88: 85 | B88: 0 | C88: 1250 | D88: =AccVelDataLink!A88 -> 85 | E88: 84 | F88: 86 | H88: =AccVelDataLink!G88 -> 1.25 | I88: ○ | J88: ○
A89: 86 | B89: 0 | C89: 1500 | D89: =AccVelDataLink!A89 -> 86 | E89: 85 | F89: 87 | H89: =AccVelDataLink!G89 -> 1.5 | I89: ○ | J89: ○
A90: 87 | B90: 0 | C90: 1750 | D90: =AccVelDataLink!A90 -> 87 | E90: 86 | F90: 88 | H90: =AccVelDataLink!G90 -> 1.75 | I90: ○ | J90: ○
A91: 88 | B91: 0 | C91: 2000 | D91: =AccVelDataLink!A91 -> 88 | E91: 87 | F91: 89 | H91: =AccVelDataLink!G91 -> 2 | I91: ○ | J91: ○
A92: 89 | B92: 0 | C92: 2500 | D92: =AccVelDataLink!A92 -> 89 | E92: 88 | F92: 90 | H92: =AccVelDataLink!G92 -> 2.5 | I92: ○ | J92: ○
A93: 90 | B93: 0 | C93: 3000 | D93: =AccVelDataLink!A93 -> 90 | E93: 89 | F93: 91 | H93: =AccVelDataLink!G93 -> 3 | I93: ○ | J93: ○
A94: 91 | B94: 0 | C94: 4000 | D94: =AccVelDataLink!A94 -> 91 | E94: 90 | F94: 92 | H94: =AccVelDataLink!G94 -> 4 | I94: ○ | J94: ○
A95: 92 | B95: 0 | C95: 4800 | D95: =AccVelDataLink!A95 -> 92 | E95: 91 | F95: 93 | H95: =AccVelDataLink!G95 -> 4.8 | I95: ○ | J95: ○
A96: 93 | B96: 0 | C96: 5500 | D96: =AccVelDataLink!A96 -> 93 | E96: 92 | F96: 94 | H96: =AccVelDataLink!G96 -> 5.5 | I96: ○ | J96: ○
A97: 94 | B97: 1 | C97: 100 | D97: =AccVelDataLink!A97 -> 94 | E97: 93 | F97: 95 | G97: =AccVelDataLink!F97 -> RCA-SA5C-20-12-垂直 | H97: =AccVelDataLink!G97 -> 0.1 | I97: ○ | J97: ○
A98: 95 | B98: 1 | C98: 150 | D98: =AccVelDataLink!A98 -> 95 | E98: 94 | F98: 96 | H98: =AccVelDataLink!G98 -> 0.15 | I98: ○ | J98: ○
A99: 96 | B99: 1 | C99: 200 | D99: =AccVelDataLink!A99 -> 96 | E99: 95 | F99: 97 | H99: =AccVelDataLink!G99 -> 0.2 | I99: ○ | J99: ○
A100: 97 | B100: 1 | C100: 250 | D100: =AccVelDataLink!A100 -> 97 | E100: 96 | F100: 98 | H100: =AccVelDataLink!G100 -> 0.25 | I100: ○ | J100: ○
A101: 98 | B101: 1 | C101: 300 | D101: =AccVelDataLink!A101 -> 98 | E101: 97 | F101: 99 | H101: =AccVelDataLink!G101 -> 0.3 | I101: ○ | J101: ○
A102: 99 | B102: 1 | C102: 350 | D102: =AccVelDataLink!A102 -> 99 | E102: 98 | F102: 100 | H102: =AccVelDataLink!G102 -> 0.35 | I102: ○ | J102: ○
A103: 100 | B103: 1 | C103: 450 | D103: =AccVelDataLink!A103 -> 100 | E103: 99 | F103: 101 | H103: =AccVelDataLink!G103 -> 0.45 | I103: ○ | J103: ○
A104: 101 | B104: 1 | C104: 600 | D104: =AccVelDataLink!A104 -> 101 | E104: 100 | F104: 102 | H104: =AccVelDataLink!G104 -> 0.6 | I104: ○ | J104: ○
A105: 102 | B105: 1 | C105: 800 | D105: =AccVelDataLink!A105 -> 102 | E105: 101 | F105: 103 | H105: =AccVelDataLink!G105 -> 0.8 | I105: ○ | J105: ○
A106: 103 | B106: 1 | C106: 1000 | D106: =AccVelDataLink!A106 -> 103 | E106: 102 | F106: -1 | H106: =AccVelDataLink!G106 -> 1 | I106: ○ | J106: 終端
A107: 104 | B107: 0 | C107: 200 | D107: =AccVelDataLink!A107 -> 104 | E107: -1 | F107: =A108 -> 105 | G107: =AccVelDataLink!F107 -> RCA-SA5C-20-20-水平 | H107: =AccVelDataLink!G107 -> 0.2 | I107: 先頭 | J107: ○
A108: 105 | B108: 0 | C108: 250 | D108: =AccVelDataLink!A108 -> 105 | E108: =A107 -> 104 | F108: 106 | H108: =AccVelDataLink!G108 -> 0.25 | I108: ○ | J108: ○
A109: 106 | B109: 0 | C109: 300 | D109: =AccVelDataLink!A109 -> 106 | E109: 105 | F109: 107 | H109: =AccVelDataLink!G109 -> 0.3 | I109: ○ | J109: ○
A110: 107 | B110: 0 | C110: 350 | D110: =AccVelDataLink!A110 -> 107 | E110: 106 | F110: 108 | H110: =AccVelDataLink!G110 -> 0.35 | I110: ○ | J110: ○
A111: 108 | B111: 0 | C111: 400 | D111: =AccVelDataLink!A111 -> 108 | E111: 107 | F111: 109 | H111: =AccVelDataLink!G111 -> 0.4 | I111: ○ | J111: ○
A112: 109 | B112: 0 | C112: 500 | D112: =AccVelDataLink!A112 -> 109 | E112: 108 | F112: 110 | H112: =AccVelDataLink!G112 -> 0.5 | I112: ○ | J112: ○
A113: 110 | B113: 0 | C113: 600 | D113: =AccVelDataLink!A113 -> 110 | E113: 109 | F113: 111 | H113: =AccVelDataLink!G113 -> 0.6 | I113: ○ | J113: ○
A114: 111 | B114: 0 | C114: 800 | D114: =AccVelDataLink!A114 -> 111 | E114: 110 | F114: 112 | H114: =AccVelDataLink!G114 -> 0.8 | I114: ○ | J114: ○
A115: 112 | B115: 0 | C115: 1000 | D115: =AccVelDataLink!A115 -> 112 | E115: 111 | F115: 113 | H115: =AccVelDataLink!G115 -> 1 | I115: ○ | J115: ○
A116: 113 | B116: 0 | C116: 1150 | D116: =AccVelDataLink!A116 -> 113 | E116: 112 | F116: 114 | H116: =AccVelDataLink!G116 -> 1.15 | I116: ○ | J116: ○
A117: 114 | B117: 0 | C117: 1400 | D117: =AccVelDataLink!A117 -> 114 | E117: 113 | F117: 115 | H117: =AccVelDataLink!G117 -> 1.4 | I117: ○ | J117: ○
A118: 115 | B118: 0 | C118: 1750 | D118: =AccVelDataLink!A118 -> 115 | E118: 114 | F118: 116 | H118: =AccVelDataLink!G118 -> 1.75 | I118: ○ | J118: ○
A119: 116 | B119: 0 | C119: 2000 | D119: =AccVelDataLink!A119 -> 116 | E119: 115 | F119: 117 | H119: =AccVelDataLink!G119 -> 2 | I119: ○ | J119: ○
A120: 117 | B120: 0 | C120: 2400 | D120: =AccVelDataLink!A120 -> 117 | E120: 116 | F120: 118 | H120: =AccVelDataLink!G120 -> 2.4 | I120: ○ | J120: ○
A121: 118 | B121: 0 | C121: 3000 | D121: =AccVelDataLink!A121 -> 118 | E121: 117 | F121: =A122 -> 119 | H121: =AccVelDataLink!G121 -> 3 | I121: ○ | J121: ○
A122: 119 | B122: 1 | C122: 100 | D122: =AccVelDataLink!A122 -> 119 | E122: =A121 -> 118 | F122: =A123 -> 120 | G122: =AccVelDataLink!F122 -> RCA-SA5C-20-20-垂直 | H122: =AccVelDataLink!G122 -> 0.1 | I122: ○ | J122: ○
A123: 120 | B123: 1 | C123: 160 | D123: =AccVelDataLink!A123 -> 120 | E123: =A122 -> 119 | F123: =A124 -> 121 | H123: =AccVelDataLink!G123 -> 0.16 | I123: ○ | J123: ○
A124: 121 | B124: 1 | C124: 250 | D124: =AccVelDataLink!A124 -> 121 | E124: =A123 -> 120 | F124: =A125 -> 122 | H124: =AccVelDataLink!G124 -> 0.25 | I124: ○ | J124: ○
A125: 122 | B125: 1 | C125: 350 | D125: =AccVelDataLink!A125 -> 122 | E125: =A124 -> 121 | F125: =A126 -> 123 | H125: =AccVelDataLink!G125 -> 0.35 | I125: ○ | J125: ○
A126: 123 | B126: 1 | C126: 500 | D126: =AccVelDataLink!A126 -> 123 | E126: =A125 -> 122 | F126: -1 | H126: =AccVelDataLink!G126 -> 0.5 | I126: ○ | J126: 終端
A127: 124 | B127: 0 | C127: 1000 | D127: =AccVelDataLink!A127 -> 124 | E127: -1 | F127: =A128 -> 125 | G127: =AccVelDataLink!F127 -> RCA-SA6C-30-3-水平 | H127: =AccVelDataLink!G127 -> 1 | I127: 先頭 | J127: ○
A128: 125 | B128: 0 | C128: 7000 | D128: =AccVelDataLink!A128 -> 125 | E128: =A127 -> 124 | F128: =A129 -> 126 | H128: =AccVelDataLink!G128 -> 7 | I128: ○ | J128: ○
A129: 126 | B129: 0 | C129: 18000 | D129: =AccVelDataLink!A129 -> 126 | E129: =A128 -> 125 | F129: =A130 -> 127 | H129: =AccVelDataLink!G129 -> 18 | I129: ○ | J129: ○
A130: 127 | B130: 0 | C130: 25000 | D130: =AccVelDataLink!A130 -> 127 | E130: =A129 -> 126 | F130: =A131 -> 128 | H130: =AccVelDataLink!G130 -> 25 | I130: ○ | J130: ○
A131: 128 | B131: 1 | C131: 2000 | D131: =AccVelDataLink!A131 -> 128 | E131: =A130 -> 127 | F131: =A132 -> 129 | G131: =AccVelDataLink!F131 -> RCA-SA6C-30-3-垂直 | H131: =AccVelDataLink!G131 -> 2 | I131: ○ | J131: ○
A132: =A131+1 -> 129 | B132: 1 | C132: =H132*$H$1 -> 6000 | D132: =AccVelDataLink!A132 -> 129 | E132: =A131 -> 128 | F132: -1 | H132: =AccVelDataLink!G132 -> 6 | I132: =IF(E132=A131,"○",IF(G132=0,"つなぎまちがい","先頭")) -> ○ | J132: =IF(F132=A133,"○",IF(F132<>E133,"つなぎまちがい","終端")) -> 終端
A133: 130 | B133: 0 | C133: 1500 | D133: =AccVelDataLink!A133 -> 130 | E133: -1 | F133: =A134 -> 131 | G133: =AccVelDataLink!F133 -> RCA-SA6C-30-6-水平 | H133: =AccVelDataLink!G133 -> 1.5 | I133: 先頭 | J133: ○
A134: 131 | B134: 0 | C134: 2500 | D134: =AccVelDataLink!A134 -> 131 | E134: =A133 -> 130 | F134: 132 | H134: =AccVelDataLink!G134 -> 2.5 | I134: ○ | J134: ○
A135: 132 | B135: 0 | C135: 3500 | D135: =AccVelDataLink!A135 -> 132 | E135: 131 | F135: 133 | H135: =AccVelDataLink!G135 -> 3.5 | I135: ○ | J135: ○
A136: 133 | B136: 0 | C136: 5000 | D136: =AccVelDataLink!A136 -> 133 | E136: 132 | F136: 134 | H136: =AccVelDataLink!G136 -> 5 | I136: ○ | J136: ○
A137: 134 | B137: 0 | C137: 6200 | D137: =AccVelDataLink!A137 -> 134 | E137: 133 | F137: 135 | H137: =AccVelDataLink!G137 -> 6.2 | I137: ○ | J137: ○
A138: 135 | B138: 0 | C138: 8000 | D138: =AccVelDataLink!A138 -> 135 | E138: 134 | F138: 136 | H138: =AccVelDataLink!G138 -> 8 | I138: ○ | J138: ○
A139: 136 | B139: 0 | C139: 10000 | D139: =AccVelDataLink!A139 -> 136 | E139: 135 | F139: 137 | H139: =AccVelDataLink!G139 -> 10 | I139: ○ | J139: ○
A140: 137 | B140: 0 | C140: 12000 | D140: =AccVelDataLink!A140 -> 137 | E140: 136 | F140: 138 | H140: =AccVelDataLink!G140 -> 12 | I140: ○ | J140: ○
A141: 138 | B141: 0 | C141: 14500 | D141: =AccVelDataLink!A141 -> 138 | E141: 137 | F141: 139 | H141: =AccVelDataLink!G141 -> 14.5 | I141: ○ | J141: ○
A142: 139 | B142: 0 | C142: 16500 | D142: =AccVelDataLink!A142 -> 139 | E142: 138 | F142: 140 | H142: =AccVelDataLink!G142 -> 16.5 | I142: ○ | J142: ○
A143: 140 | B143: 1 | C143: 500 | D143: =AccVelDataLink!A143 -> 140 | E143: 139 | F143: 141 | G143: =AccVelDataLink!F143 -> RCA-SA6C-30-6-垂直 | H143: =AccVelDataLink!G143 -> 0.5 | I143: ○ | J143: ○
A144: 141 | B144: 1 | C144: 650 | D144: =AccVelDataLink!A144 -> 141 | E144: 140 | F144: 142 | H144: =AccVelDataLink!G144 -> 0.65 | I144: ○ | J144: ○
A145: 142 | B145: 1 | C145: 800 | D145: =AccVelDataLink!A145 -> 142 | E145: 141 | F145: 143 | H145: =AccVelDataLink!G145 -> 0.8 | I145: ○ | J145: ○
A146: 143 | B146: 1 | C146: 1000 | D146: =AccVelDataLink!A146 -> 143 | E146: 142 | F146: 144 | H146: =AccVelDataLink!G146 -> 1 | I146: ○ | J146: ○
A147: 144 | B147: 1 | C147: 1250 | D147: =AccVelDataLink!A147 -> 144 | E147: 143 | F147: 145 | H147: =AccVelDataLink!G147 -> 1.25 | I147: ○ | J147: ○
A148: 145 | B148: 1 | C148: 1500 | D148: =AccVelDataLink!A148 -> 145 | E148: 144 | F148: 146 | H148: =AccVelDataLink!G148 -> 1.5 | I148: ○ | J148: ○
A149: 146 | B149: 1 | C149: 2100 | D149: =AccVelDataLink!A149 -> 146 | E149: 145 | F149: 147 | H149: =AccVelDataLink!G149 -> 2.1 | I149: ○ | J149: ○
A150: 147 | B150: 1 | C150: 3000 | D150: =AccVelDataLink!A150 -> 147 | E150: 146 | F150: -1 | H150: =AccVelDataLink!G150 -> 3 | I150: ○ | J150: 終端
A151: 148 | B151: 0 | C151: 250 | D151: =AccVelDataLink!A151 -> 148 | E151: -1 | F151: =A152 -> 149 | G151: =AccVelDataLink!F151 -> RCA-SA6C-30-12-水平 | H151: =AccVelDataLink!G151 -> 0.25 | I151: 先頭 | J151: ○
A152: 149 | B152: 0 | C152: 300 | D152: =AccVelDataLink!A152 -> 149 | E152: =A151 -> 148 | F152: 150 | H152: =AccVelDataLink!G152 -> 0.3 | I152: ○ | J152: ○
A153: 150 | B153: 0 | C153: 350 | D153: =AccVelDataLink!A153 -> 150 | E153: 149 | F153: 151 | H153: =AccVelDataLink!G153 -> 0.35 | I153: ○ | J153: ○
A154: 151 | B154: 0 | C154: 400 | D154: =AccVelDataLink!A154 -> 151 | E154: 150 | F154: 152 | H154: =AccVelDataLink!G154 -> 0.4 | I154: ○ | J154: ○
A155: 152 | B155: 0 | C155: 450 | D155: =AccVelDataLink!A155 -> 152 | E155: 151 | F155: 153 | H155: =AccVelDataLink!G155 -> 0.45 | I155: ○ | J155: ○
A156: 153 | B156: 0 | C156: 500 | D156: =AccVelDataLink!A156 -> 153 | E156: 152 | F156: 154 | H156: =AccVelDataLink!G156 -> 0.5 | I156: ○ | J156: ○
A157: 154 | B157: 0 | C157: 550 | D157: =AccVelDataLink!A157 -> 154 | E157: 153 | F157: 155 | H157: =AccVelDataLink!G157 -> 0.55 | I157: ○ | J157: ○
A158: 155 | B158: 0 | C158: 650 | D158: =AccVelDataLink!A158 -> 155 | E158: 154 | F158: 156 | H158: =AccVelDataLink!G158 -> 0.65 | I158: ○ | J158: ○
A159: 156 | B159: 0 | C159: 750 | D159: =AccVelDataLink!A159 -> 156 | E159: 155 | F159: 157 | H159: =AccVelDataLink!G159 -> 0.75 | I159: ○ | J159: ○
A160: 157 | B160: 0 | C160: 850 | D160: =AccVelDataLink!A160 -> 157 | E160: 156 | F160: 158 | H160: =AccVelDataLink!G160 -> 0.85 | I160: ○ | J160: ○
A161: 158 | B161: 0 | C161: 1000 | D161: =AccVelDataLink!A161 -> 158 | E161: 157 | F161: 159 | H161: =AccVelDataLink!G161 -> 1 | I161: ○ | J161: ○
A162: 159 | B162: 0 | C162: 1250 | D162: =AccVelDataLink!A162 -> 159 | E162: 158 | F162: 160 | H162: =AccVelDataLink!G162 -> 1.25 | I162: ○ | J162: ○
A163: 160 | B163: 0 | C163: 1600 | D163: =AccVelDataLink!A163 -> 160 | E163: 159 | F163: 161 | H163: =AccVelDataLink!G163 -> 1.6 | I163: ○ | J163: ○
A164: 161 | B164: 0 | C164: 2000 | D164: =AccVelDataLink!A164 -> 161 | E164: 160 | F164: 162 | H164: =AccVelDataLink!G164 -> 2 | I164: ○ | J164: ○
A165: 162 | B165: 0 | C165: 2750 | D165: =AccVelDataLink!A165 -> 162 | E165: 161 | F165: 163 | H165: =AccVelDataLink!G165 -> 2.75 | I165: ○ | J165: ○
A166: 163 | B166: 0 | C166: 3500 | D166: =AccVelDataLink!A166 -> 163 | E166: 162 | F166: 164 | H166: =AccVelDataLink!G166 -> 3.5 | I166: ○ | J166: ○
A167: 164 | B167: 0 | C167: 4500 | D167: =AccVelDataLink!A167 -> 164 | E167: 163 | F167: 165 | H167: =AccVelDataLink!G167 -> 4.5 | I167: ○ | J167: ○
A168: 165 | B168: 0 | C168: 6000 | D168: =AccVelDataLink!A168 -> 165 | E168: 164 | F168: 166 | H168: =AccVelDataLink!G168 -> 6 | I168: ○ | J168: ○
A169: 166 | B169: 0 | C169: 7200 | D169: =AccVelDataLink!A169 -> 166 | E169: 165 | F169: 167 | H169: =AccVelDataLink!G169 -> 7.2 | I169: ○ | J169: ○
A170: 167 | B170: 0 | C170: 8500 | D170: =AccVelDataLink!A170 -> 167 | E170: 166 | F170: 168 | H170: =AccVelDataLink!G170 -> 8.5 | I170: ○ | J170: ○
A171: 168 | B171: 1 | C171: 100 | D171: =AccVelDataLink!A171 -> 168 | E171: 167 | F171: 169 | G171: =AccVelDataLink!F171 -> RCA-SA6C-30-12-垂直 | H171: =AccVelDataLink!G171 -> 0.1 | I171: ○ | J171: ○
A172: 169 | B172: 1 | C172: 150 | D172: =AccVelDataLink!A172 -> 169 | E172: 168 | F172: 170 | H172: =AccVelDataLink!G172 -> 0.15 | I172: ○ | J172: ○
A173: 170 | B173: 1 | C173: 220 | D173: =AccVelDataLink!A173 -> 170 | E173: 169 | F173: 171 | H173: =AccVelDataLink!G173 -> 0.22 | I173: ○ | J173: ○
A174: 171 | B174: 1 | C174: 300 | D174: =AccVelDataLink!A174 -> 171 | E174: 170 | F174: 172 | H174: =AccVelDataLink!G174 -> 0.3 | I174: ○ | J174: ○
A175: 172 | B175: 1 | C175: 400 | D175: =AccVelDataLink!A175 -> 172 | E175: 171 | F175: 173 | H175: =AccVelDataLink!G175 -> 0.4 | I175: ○ | J175: ○
A176: 173 | B176: 1 | C176: 500 | D176: =AccVelDataLink!A176 -> 173 | E176: 172 | F176: 174 | H176: =AccVelDataLink!G176 -> 0.5 | I176: ○ | J176: ○
A177: 174 | B177: 1 | C177: 650 | D177: =AccVelDataLink!A177 -> 174 | E177: 173 | F177: 175 | H177: =AccVelDataLink!G177 -> 0.65 | I177: ○ | J177: ○
A178: 175 | B178: 1 | C178: 850 | D178: =AccVelDataLink!A178 -> 175 | E178: 174 | F178: 176 | H178: =AccVelDataLink!G178 -> 0.85 | I178: ○ | J178: ○
A179: 176 | B179: 1 | C179: 1200 | D179: =AccVelDataLink!A179 -> 176 | E179: 175 | F179: 177 | H179: =AccVelDataLink!G179 -> 1.2 | I179: ○ | J179: ○
A180: 177 | B180: 1 | C180: 1500 | D180: =AccVelDataLink!A180 -> 177 | E180: 176 | F180: -1 | H180: =AccVelDataLink!G180 -> 1.5 | I180: ○ | J180: 終端
A181: 178 | B181: 0 | C181: 250 | D181: =AccVelDataLink!A181 -> 178 | E181: -1 | F181: =A182 -> 179 | G181: =AccVelDataLink!F181 -> RCA-SA6C-30-20-水平 | H181: =AccVelDataLink!G181 -> 0.25 | I181: 先頭 | J181: ○
A182: 179 | B182: 0 | C182: 300 | D182: =AccVelDataLink!A182 -> 179 | E182: =A181 -> 178 | F182: 180 | H182: =AccVelDataLink!G182 -> 0.3 | I182: ○ | J182: ○
A183: 180 | B183: 0 | C183: 400 | D183: =AccVelDataLink!A183 -> 180 | E183: 179 | F183: 181 | H183: =AccVelDataLink!G183 -> 0.4 | I183: ○ | J183: ○
A184: 181 | B184: 0 | C184: 500 | D184: =AccVelDataLink!A184 -> 181 | E184: 180 | F184: 182 | H184: =AccVelDataLink!G184 -> 0.5 | I184: ○ | J184: ○
A185: 182 | B185: 0 | C185: 650 | D185: =AccVelDataLink!A185 -> 182 | E185: 181 | F185: 183 | H185: =AccVelDataLink!G185 -> 0.65 | I185: ○ | J185: ○
A186: 183 | B186: 0 | C186: 750 | D186: =AccVelDataLink!A186 -> 183 | E186: 182 | F186: 184 | H186: =AccVelDataLink!G186 -> 0.75 | I186: ○ | J186: ○
A187: 184 | B187: 0 | C187: 850 | D187: =AccVelDataLink!A187 -> 184 | E187: 183 | F187: 185 | H187: =AccVelDataLink!G187 -> 0.85 | I187: ○ | J187: ○
A188: 185 | B188: 0 | C188: 1000 | D188: =AccVelDataLink!A188 -> 185 | E188: 184 | F188: 186 | H188: =AccVelDataLink!G188 -> 1 | I188: ○ | J188: ○
A189: 186 | B189: 0 | C189: 1250 | D189: =AccVelDataLink!A189 -> 186 | E189: 185 | F189: 187 | H189: =AccVelDataLink!G189 -> 1.25 | I189: ○ | J189: ○
A190: 187 | B190: 0 | C190: 1500 | D190: =AccVelDataLink!A190 -> 187 | E190: 186 | F190: 188 | H190: =AccVelDataLink!G190 -> 1.5 | I190: ○ | J190: ○
A191: 188 | B191: 0 | C191: 2000 | D191: =AccVelDataLink!A191 -> 188 | E191: 187 | F191: 189 | H191: =AccVelDataLink!G191 -> 2 | I191: ○ | J191: ○
A192: 189 | B192: 0 | C192: 2500 | D192: =AccVelDataLink!A192 -> 189 | E192: 188 | F192: 190 | H192: =AccVelDataLink!G192 -> 2.5 | I192: ○ | J192: ○
A193: 190 | B193: 0 | C193: 3000 | D193: =AccVelDataLink!A193 -> 190 | E193: 189 | F193: 191 | H193: =AccVelDataLink!G193 -> 3 | I193: ○ | J193: ○
A194: 191 | B194: 0 | C194: 3600 | D194: =AccVelDataLink!A194 -> 191 | E194: 190 | F194: 192 | H194: =AccVelDataLink!G194 -> 3.6 | I194: ○ | J194: ○
A195: 192 | B195: 0 | C195: 4200 | D195: =AccVelDataLink!A195 -> 192 | E195: 191 | F195: =A196 -> 193 | H195: =AccVelDataLink!G195 -> 4.2 | I195: ○ | J195: ○
A196: =A195+1 -> 193 | B196: 1 | C196: =H196*$H$1 -> 100 | D196: =AccVelDataLink!A196 -> 193 | E196: =A195 -> 192 | F196: =A197 -> 194 | G196: =AccVelDataLink!F196 -> RCA-SA6C-30-20-垂直 | H196: =AccVelDataLink!G196 -> 0.1 | I196: =IF(E196=A195,"○",IF(G196=0,"つなぎまちがい","先頭")) -> ○ | J196: =IF(F196=A197,"○",IF(F196<>E197,"つなぎまちがい","終端")) -> ○
A197: 194 | B197: 1 | C197: 200 | D197: =AccVelDataLink!A197 -> 194 | E197: =A196 -> 193 | F197: =A198 -> 195 | H197: =AccVelDataLink!G197 -> 0.2 | I197: ○ | J197: ○
A198: 195 | B198: 1 | C198: 350 | D198: =AccVelDataLink!A198 -> 195 | E198: =A197 -> 194 | F198: =A199 -> 196 | H198: =AccVelDataLink!G198 -> 0.35 | I198: ○ | J198: ○
A199: 196 | B199: 1 | C199: 500 | D199: =AccVelDataLink!A199 -> 196 | E199: =A198 -> 195 | F199: -1 | H199: =AccVelDataLink!G199 -> 0.5 | I199: ○ | J199: 終端
A200: 197 | B200: 0 | C200: 8000 | D200: =AccVelDataLink!A200 -> 197 | E200: -1 | F200: =A201 -> 198 | G200: =AccVelDataLink!F200 -> RCA-SA4D-20-2.5-水平 | H200: =AccVelDataLink!G200 -> 8 | I200: 先頭 | J200: ○
... 246 more rows

Sheet AccVelDataLink (hidden)
A1: =LeadData!A1 -> 9.80665 | B1: 1 | C1: 2 | D1: 3 | E1: 4
A2: ﾃﾞｰﾀ№ | B2: 水平定格加速度 | C2: 最高速度 | D2: 前ﾃﾞｰﾀ№ | E2: 次ﾃﾞｰﾀ№ | F2: 備考
A3: =ModelData!A3 -> 0 | B3: 0.001mm/s^2 | C3: ㎜/s | D3: ﾚｺｰﾄﾞ№ | E3: ﾚｺｰﾄﾞ№ | F3: 型式-姿勢 | G3: kg | H3: G | I3: mm/s | J3: 前№ﾁｪｯｸ | K3: 後№ﾁｪｯｸ
A4: =A3+1 -> 1 | B4: =H4*$A$1*1000*1000 -> 4903325 | C4: =I4 -> 165 | D4: -1 | E4: -1 | F4: RCA-SA4C-20-2.5-水平 | G4: 1 | H4: 0.5 | I4: 165 | J4: =IF(G4=0,IF(D4<>A3,"ﾘﾝｸ不正","○"),"○") -> ○ | K4: =IF(D5<>-1,IF(E4<>A5,"ﾘﾝｸ不正","○"),"○") -> ○
A5: 2 | B5: 3922660 | C5: 165 | D5: -1 | E5: -1 | F5: RCA-SA4C-20-2.5-水平 | G5: 2.5 | H5: 0.4 | I5: 165 | J5: ○ | K5: ○
A6: 3 | B6: 2941995 | C6: 165 | D6: -1 | E6: -1 | F6: RCA-SA4C-20-2.5-水平 | G6: 5 | H6: 0.3 | I6: 165 | J6: ○ | K6: ○
A7: 4 | B7: 1961330 | C7: 165 | D7: -1 | E7: -1 | F7: RCA-SA4C-20-2.5-水平 | G7: 8 | H7: 0.2 | I7: 165 | J7: ○ | K7: ○
A8: 5 | B8: 980665 | C8: 165 | D8: -1 | E8: -1 | F8: RCA-SA4C-20-2.5-水平 | G8: 11 | H8: 0.1 | I8: 165 | J8: ○ | K8: ○
A9: 6 | B9: 2941995 | C9: 165 | D9: -1 | E9: -1 | F9: RCA-SA4C-20-2.5-垂直 | G9: 2 | H9: 0.3 | I9: 165 | J9: ○ | K9: ○
A10: 7 | B10: 1961330 | C10: 165 | D10: -1 | E10: -1 | F10: RCA-SA4C-20-2.5-垂直 | G10: 4.5 | H10: 0.2 | I10: 165 | J10: ○ | K10: ○
A11: 8 | B11: 11767980 | C11: 330 | D11: -1 | E11: -1 | F11: RCA-SA4C-20-5-水平 | G11: 0.4 | H11: 1.2 | I11: 330 | J11: ○ | K11: ○
A12: 9 | B12: 10787315 | C12: 330 | D12: -1 | E12: -1 | F12: RCA-SA4C-20-5-水平 | G12: 0.7 | H12: 1.1 | I12: 330 | J12: ○ | K12: ○
A13: 10 | B13: 9806650 | C13: 330 | D13: -1 | E13: -1 | F13: RCA-SA4C-20-5-水平 | G13: 1 | H13: 1 | I13: 330 | J13: ○ | K13: ○
A14: 11 | B14: 8825985 | C14: 330 | D14: -1 | E14: -1 | F14: RCA-SA4C-20-5-水平 | G14: 1.5 | H14: 0.9 | I14: 330 | J14: ○ | K14: ○
A15: 12 | B15: 7845320 | C15: 330 | D15: -1 | E15: -1 | F15: RCA-SA4C-20-5-水平 | G15: 2 | H15: 0.8 | I15: 330 | J15: ○ | K15: ○
A16: 13 | B16: 6864655 | C16: 330 | D16: -1 | E16: -1 | F16: RCA-SA4C-20-5-水平 | G16: 2.5 | H16: 0.7 | I16: 330 | J16: ○ | K16: ○
A17: 14 | B17: 5883990 | C17: 330 | D17: -1 | E17: -1 | F17: RCA-SA4C-20-5-水平 | G17: 3.25 | H17: 0.6 | I17: 330 | J17: ○ | K17: ○
A18: 15 | B18: 4903325 | C18: 330 | D18: -1 | E18: -1 | F18: RCA-SA4C-20-5-水平 | G18: 4 | H18: 0.5 | I18: 330 | J18: ○ | K18: ○
A19: 16 | B19: 3922660 | C19: 330 | D19: -1 | E19: -1 | F19: RCA-SA4C-20-5-水平 | G19: 5 | H19: 0.4 | I19: 330 | J19: ○ | K19: ○
A20: 17 | B20: 2941995 | C20: 330 | D20: -1 | E20: -1 | F20: RCA-SA4C-20-5-水平 | G20: 6 | H20: 0.3 | I20: 330 | J20: ○ | K20: ○
A21: 18 | B21: 1961330 | C21: 330 | D21: -1 | E21: -1 | F21: RCA-SA4C-20-5-水平 | G21: 7.2 | H21: 0.2 | I21: 330 | J21: ○ | K21: ○
A22: 19 | B22: 980665 | C22: 330 | D22: -1 | E22: -1 | F22: RCA-SA4C-20-5-水平 | G22: 8.5 | H22: 0.1 | I22: 330 | J22: ○ | K22: ○
A23: 20 | B23: 9806650 | C23: 330 | D23: -1 | E23: -1 | F23: RCA-SA4C-20-5-垂直 | G23: 0.5 | H23: 1 | I23: 330 | J23: ○ | K23: ○
A24: 21 | B24: 8825985 | C24: 330 | D24: -1 | E24: -1 | F24: RCA-SA4C-20-5-垂直 | G24: 0.6 | H24: 0.9 | I24: 330 | J24: ○ | K24: ○
A25: 22 | B25: 7845320 | C25: 330 | D25: -1 | E25: -1 | F25: RCA-SA4C-20-5-垂直 | G25: 0.8 | H25: 0.8 | I25: 330 | J25: ○ | K25: ○
A26: 23 | B26: 6864655 | C26: 330 | D26: -1 | E26: -1 | F26: RCA-SA4C-20-5-垂直 | G26: 1 | H26: 0.7 | I26: 330 | J26: ○ | K26: ○
A27: 24 | B27: 5883990 | C27: 330 | D27: -1 | E27: -1 | F27: RCA-SA4C-20-5-垂直 | G27: 1.2 | H27: 0.6 | I27: 330 | J27: ○ | K27: ○
A28: 25 | B28: 4903325 | C28: 330 | D28: -1 | E28: -1 | F28: RCA-SA4C-20-5-垂直 | G28: 1.5 | H28: 0.5 | I28: 330 | J28: ○ | K28: ○
A29: 26 | B29: 3922660 | C29: 330 | D29: -1 | E29: -1 | F29: RCA-SA4C-20-5-垂直 | G29: 1.9 | H29: 0.4 | I29: 330 | J29: ○ | K29: ○
A30: 27 | B30: 2941995 | C30: 330 | D30: -1 | E30: -1 | F30: RCA-SA4C-20-5-垂直 | G30: 2.5 | H30: 0.3 | I30: 330 | J30: ○ | K30: ○
A31: 28 | B31: 14709975 | C31: 665 | D31: -1 | E31: -1 | F31: RCA-SA4C-20-10-水平 | G31: 0.5 | H31: 1.5 | I31: 665 | J31: ○ | K31: ○
A32: 29 | B32: 13729310 | C32: 665 | D32: -1 | E32: -1 | F32: RCA-SA4C-20-10-水平 | G32: 0.55 | H32: 1.4 | I32: 665 | J32: ○ | K32: ○
A33: 30 | B33: 12748645 | C33: 665 | D33: -1 | E33: -1 | F33: RCA-SA4C-20-10-水平 | G33: 0.6 | H33: 1.3 | I33: 665 | J33: ○ | K33: ○
A34: 31 | B34: 11767980 | C34: 665 | D34: -1 | E34: -1 | F34: RCA-SA4C-20-10-水平 | G34: 0.65 | H34: 1.2 | I34: 665 | J34: ○ | K34: ○
A35: 32 | B35: 10787315 | C35: 665 | D35: -1 | E35: -1 | F35: RCA-SA4C-20-10-水平 | G35: 0.7 | H35: 1.1 | I35: 665 | J35: ○ | K35: ○
A36: 33 | B36: 9806650 | C36: 665 | D36: -1 | E36: -1 | F36: RCA-SA4C-20-10-水平 | G36: 0.8 | H36: 1 | I36: 665 | J36: ○ | K36: ○
A37: 34 | B37: 8825985 | C37: 665 | D37: -1 | E37: -1 | F37: RCA-SA4C-20-10-水平 | G37: 0.9 | H37: 0.9 | I37: 665 | J37: ○ | K37: ○
A38: 35 | B38: 7845320 | C38: 665 | D38: -1 | E38: -1 | F38: RCA-SA4C-20-10-水平 | G38: 1.2 | H38: 0.8 | I38: 665 | J38: ○ | K38: ○
A39: 36 | B39: 6864655 | C39: 665 | D39: -1 | E39: -1 | F39: RCA-SA4C-20-10-水平 | G39: 1.5 | H39: 0.7 | I39: 665 | J39: ○ | K39: ○
A40: 37 | B40: 5883990 | C40: 665 | D40: -1 | E40: -1 | F40: RCA-SA4C-20-10-水平 | G40: 2 | H40: 0.6 | I40: 665 | J40: ○ | K40: ○
A41: 38 | B41: 4903325 | C41: 665 | D41: -1 | E41: -1 | F41: RCA-SA4C-20-10-水平 | G41: 2.5 | H41: 0.5 | I41: 665 | J41: ○ | K41: ○
A42: 39 | B42: 3922660 | C42: 665 | D42: -1 | E42: -1 | F42: RCA-SA4C-20-10-水平 | G42: 3.25 | H42: 0.4 | I42: 665 | J42: ○ | K42: ○
A43: 40 | B43: 2941995 | C43: 665 | D43: -1 | E43: -1 | F43: RCA-SA4C-20-10-水平 | G43: 4 | H43: 0.3 | I43: 665 | J43: ○ | K43: ○
A44: 41 | B44: 1961330 | C44: 665 | D44: -1 | E44: -1 | F44: RCA-SA4C-20-10-水平 | G44: 4.8 | H44: 0.2 | I44: 665 | J44: ○ | K44: ○
A45: 42 | B45: 980665 | C45: 665 | D45: -1 | E45: -1 | F45: RCA-SA4C-20-10-水平 | G45: 5.5 | H45: 0.1 | I45: 665 | J45: ○ | K45: ○
A46: 43 | B46: 14709975 | C46: 665 | D46: -1 | E46: -1 | F46: RCA-SA4C-20-10-垂直 | G46: 0.1 | H46: 1.5 | I46: 665 | J46: ○ | K46: ○
A47: 44 | B47: 13729310 | C47: 665 | D47: -1 | E47: -1 | F47: RCA-SA4C-20-10-垂直 | G47: 0.12 | H47: 1.4 | I47: 665 | J47: ○ | K47: ○
A48: 45 | B48: 12748645 | C48: 665 | D48: -1 | E48: -1 | F48: RCA-SA4C-20-10-垂直 | G48: 0.14 | H48: 1.3 | I48: 665 | J48: ○ | K48: ○
A49: 46 | B49: 11767980 | C49: 665 | D49: -1 | E49: -1 | F49: RCA-SA4C-20-10-垂直 | G49: 0.17 | H49: 1.2 | I49: 665 | J49: ○ | K49: ○
A50: 47 | B50: 10787315 | C50: 665 | D50: -1 | E50: -1 | F50: RCA-SA4C-20-10-垂直 | G50: 0.21 | H50: 1.1 | I50: 665 | J50: ○ | K50: ○
A51: 48 | B51: 9806650 | C51: 665 | D51: -1 | E51: -1 | F51: RCA-SA4C-20-10-垂直 | G51: 0.25 | H51: 1 | I51: 665 | J51: ○ | K51: ○
A52: 49 | B52: 8825985 | C52: 665 | D52: -1 | E52: -1 | F52: RCA-SA4C-20-10-垂直 | G52: 0.32 | H52: 0.9 | I52: 665 | J52: ○ | K52: ○
A53: 50 | B53: 7845320 | C53: 665 | D53: -1 | E53: -1 | F53: RCA-SA4C-20-10-垂直 | G53: 0.4 | H53: 0.8 | I53: 665 | J53: ○ | K53: ○
A54: 51 | B54: 6864655 | C54: 665 | D54: -1 | E54: -1 | F54: RCA-SA4C-20-10-垂直 | G54: 0.5 | H54: 0.7 | I54: 665 | J54: ○ | K54: ○
A55: 52 | B55: 5883990 | C55: 665 | D55: -1 | E55: -1 | F55: RCA-SA4C-20-10-垂直 | G55: 0.6 | H55: 0.6 | I55: 665 | J55: ○ | K55: ○
A56: 53 | B56: 4903325 | C56: 665 | D56: -1 | E56: -1 | F56: RCA-SA4C-20-10-垂直 | G56: 0.7 | H56: 0.5 | I56: 665 | J56: ○ | K56: ○
A57: 54 | B57: 3922660 | C57: 665 | D57: -1 | E57: -1 | F57: RCA-SA4C-20-10-垂直 | G57: 0.85 | H57: 0.4 | I57: 665 | J57: ○ | K57: ○
A58: 55 | B58: 2941995 | C58: 665 | D58: -1 | E58: -1 | F58: RCA-SA4C-20-10-垂直 | G58: 1 | H58: 0.3 | I58: 665 | J58: ○ | K58: ○
A59: 56 | B59: 2941995 | C59: 200 | D59: -1 | E59: -1 | F59: RCA-SA5C-20-3-水平 | G59: 3 | H59: 0.3 | I59: 200 | J59: ○ | K59: ○
A60: 57 | B60: 1961330 | C60: 200 | D60: -1 | E60: -1 | F60: RCA-SA5C-20-3-水平 | G60: 12 | H60: 0.2 | I60: 200 | J60: ○ | K60: ○
A61: 58 | B61: 980665 | C61: 200 | D61: -1 | E61: -1 | F61: RCA-SA5C-20-3-水平 | G61: 17 | H61: 0.1 | I61: 200 | J61: ○ | K61: ○
A62: 59 | B62: 2941995 | C62: 200 | D62: -1 | E62: -1 | F62: RCA-SA5C-20-3-垂直 | G62: 2 | H62: 0.3 | I62: 200 | J62: ○ | K62: ○
A63: 60 | B63: 1961330 | C63: 200 | D63: -1 | E63: -1 | F63: RCA-SA5C-20-3-垂直 | G63: 4 | H63: 0.2 | I63: 200 | J63: ○ | K63: ○
A64: 61 | B64: 9806650 | C64: 400 | D64: -1 | E64: -1 | F64: RCA-SA5C-20-6-水平 | G64: 1 | H64: 1 | I64: 400 | J64: ○ | K64: ○
A65: 62 | B65: 8825985 | C65: 400 | D65: -1 | E65: -1 | F65: RCA-SA5C-20-6-水平 | G65: 1.4 | H65: 0.9 | I65: 400 | J65: ○ | K65: ○
A66: 63 | B66: 7845320 | C66: 400 | D66: -1 | E66: -1 | F66: RCA-SA5C-20-6-水平 | G66: 1.9 | H66: 0.8 | I66: 400 | J66: ○ | K66: ○
A67: 64 | B67: 6864655 | C67: 400 | D67: -1 | E67: -1 | F67: RCA-SA5C-20-6-水平 | G67: 2.5 | H67: 0.7 | I67: 400 | J67: ○ | K67: ○
A68: =A67+1 -> 65 | B68: =H68*$A$1*1000*1000 -> 5883990 | C68: =I68 -> 400 | D68: -1 | E68: -1 | F68: RCA-SA5C-20-6-水平 | G68: 3.3 | H68: 0.6 | I68: 400 | J68: =IF(G68=0,IF(D68<>A67,"ﾘﾝｸ不正","○"),"○") -> ○ | K68: =IF(D69<>-1,IF(E68<>A69,"ﾘﾝｸ不正","○"),"○") -> ○
A69: 66 | B69: 4903325 | C69: 400 | D69: -1 | E69: -1 | F69: RCA-SA5C-20-6-水平 | G69: 4.5 | H69: 0.5 | I69: 400 | J69: ○ | K69: ○
A70: 67 | B70: 3922660 | C70: 400 | D70: -1 | E70: -1 | F70: RCA-SA5C-20-6-水平 | G70: 6 | H70: 0.4 | I70: 400 | J70: ○ | K70: ○
A71: 68 | B71: 2941995 | C71: 400 | D71: -1 | E71: -1 | F71: RCA-SA5C-20-6-水平 | G71: 8 | H71: 0.3 | I71: 400 | J71: ○ | K71: ○
A72: 69 | B72: 1961330 | C72: 400 | D72: -1 | E72: -1 | F72: RCA-SA5C-20-6-水平 | G72: 9.6 | H72: 0.2 | I72: 400 | J72: ○ | K72: ○
A73: 70 | B73: 980665 | C73: 400 | D73: -1 | E73: -1 | F73: RCA-SA5C-20-6-水平 | G73: 11 | H73: 0.1 | I73: 400 | J73: ○ | K73: ○
A74: 71 | B74: 9806650 | C74: 400 | D74: -1 | E74: -1 | F74: RCA-SA5C-20-6-垂直 | G74: 0.5 | H74: 1 | I74: 400 | J74: ○ | K74: ○
A75: 72 | B75: 8825985 | C75: 400 | D75: -1 | E75: -1 | F75: RCA-SA5C-20-6-垂直 | G75: 0.55 | H75: 0.9 | I75: 400 | J75: ○ | K75: ○
A76: 73 | B76: 7845320 | C76: 400 | D76: -1 | E76: -1 | F76: RCA-SA5C-20-6-垂直 | G76: 0.65 | H76: 0.8 | I76: 400 | J76: ○ | K76: ○
A77: 74 | B77: 6864655 | C77: 400 | D77: -1 | E77: -1 | F77: RCA-SA5C-20-6-垂直 | G77: 0.8 | H77: 0.7 | I77: 400 | J77: ○ | K77: ○
A78: 75 | B78: 5883990 | C78: 400 | D78: -1 | E78: -1 | F78: RCA-SA5C-20-6-垂直 | G78: 1 | H78: 0.6 | I78: 400 | J78: ○ | K78: ○
A79: 76 | B79: 4903325 | C79: 400 | D79: -1 | E79: -1 | F79: RCA-SA5C-20-6-垂直 | G79: 1.25 | H79: 0.5 | I79: 400 | J79: ○ | K79: ○
A80: 77 | B80: 3922660 | C80: 400 | D80: -1 | E80: -1 | F80: RCA-SA5C-20-6-垂直 | G80: 1.6 | H80: 0.4 | I80: 400 | J80: ○ | K80: ○
A81: 78 | B81: 2941995 | C81: 400 | D81: -1 | E81: -1 | F81: RCA-SA5C-20-6-垂直 | G81: 2 | H81: 0.3 | I81: 400 | J81: ○ | K81: ○
A82: 79 | B82: 14709975 | C82: 800 | D82: -1 | E82: -1 | F82: RCA-SA5C-20-12-水平 | G82: 0.5 | H82: 1.5 | I82: 800 | J82: ○ | K82: ○
A83: 80 | B83: 13729310 | C83: 800 | D83: -1 | E83: -1 | F83: RCA-SA5C-20-12-水平 | G83: 0.55 | H83: 1.4 | I83: 800 | J83: ○ | K83: ○
A84: 81 | B84: 12748645 | C84: 800 | D84: -1 | E84: -1 | F84: RCA-SA5C-20-12-水平 | G84: 0.65 | H84: 1.3 | I84: 800 | J84: ○ | K84: ○
A85: 82 | B85: 11767980 | C85: 800 | D85: -1 | E85: -1 | F85: RCA-SA5C-20-12-水平 | G85: 0.75 | H85: 1.2 | I85: 800 | J85: ○ | K85: ○
A86: 83 | B86: 10787315 | C86: 800 | D86: -1 | E86: -1 | F86: RCA-SA5C-20-12-水平 | G86: 0.85 | H86: 1.1 | I86: 800 | J86: ○ | K86: ○
A87: 84 | B87: 9806650 | C87: 800 | D87: -1 | E87: -1 | F87: RCA-SA5C-20-12-水平 | G87: 1 | H87: 1 | I87: 800 | J87: ○ | K87: ○
A88: 85 | B88: 8825985 | C88: 800 | D88: -1 | E88: -1 | F88: RCA-SA5C-20-12-水平 | G88: 1.25 | H88: 0.9 | I88: 800 | J88: ○ | K88: ○
A89: 86 | B89: 7845320 | C89: 800 | D89: -1 | E89: -1 | F89: RCA-SA5C-20-12-水平 | G89: 1.5 | H89: 0.8 | I89: 800 | J89: ○ | K89: ○
A90: 87 | B90: 6864655 | C90: 800 | D90: -1 | E90: -1 | F90: RCA-SA5C-20-12-水平 | G90: 1.75 | H90: 0.7 | I90: 800 | J90: ○ | K90: ○
A91: 88 | B91: 5883990 | C91: 800 | D91: -1 | E91: -1 | F91: RCA-SA5C-20-12-水平 | G91: 2 | H91: 0.6 | I91: 800 | J91: ○ | K91: ○
A92: 89 | B92: 4903325 | C92: 800 | D92: -1 | E92: -1 | F92: RCA-SA5C-20-12-水平 | G92: 2.5 | H92: 0.5 | I92: 800 | J92: ○ | K92: ○
A93: 90 | B93: 3922660 | C93: 800 | D93: -1 | E93: -1 | F93: RCA-SA5C-20-12-水平 | G93: 3 | H93: 0.4 | I93: 800 | J93: ○ | K93: ○
A94: 91 | B94: 2941995 | C94: 800 | D94: -1 | E94: -1 | F94: RCA-SA5C-20-12-水平 | G94: 4 | H94: 0.3 | I94: 800 | J94: ○ | K94: ○
A95: 92 | B95: 1961330 | C95: 800 | D95: -1 | E95: -1 | F95: RCA-SA5C-20-12-水平 | G95: 4.8 | H95: 0.2 | I95: 800 | J95: ○ | K95: ○
A96: 93 | B96: 980665 | C96: 800 | D96: -1 | E96: -1 | F96: RCA-SA5C-20-12-水平 | G96: 5.5 | H96: 0.1 | I96: 800 | J96: ○ | K96: ○
A97: 94 | B97: 11767980 | C97: 800 | D97: -1 | E97: -1 | F97: RCA-SA5C-20-12-垂直 | G97: 0.1 | H97: 1.2 | I97: 800 | J97: ○ | K97: ○
A98: 95 | B98: 10787315 | C98: 800 | D98: -1 | E98: -1 | F98: RCA-SA5C-20-12-垂直 | G98: 0.15 | H98: 1.1 | I98: 800 | J98: ○ | K98: ○
A99: 96 | B99: 9806650 | C99: 800 | D99: -1 | E99: -1 | F99: RCA-SA5C-20-12-垂直 | G99: 0.2 | H99: 1 | I99: 800 | J99: ○ | K99: ○
A100: 97 | B100: 8825985 | C100: 800 | D100: -1 | E100: -1 | F100: RCA-SA5C-20-12-垂直 | G100: 0.25 | H100: 0.9 | I100: 800 | J100: ○ | K100: ○
A101: 98 | B101: 7845320 | C101: 800 | D101: -1 | E101: -1 | F101: RCA-SA5C-20-12-垂直 | G101: 0.3 | H101: 0.8 | I101: 800 | J101: ○ | K101: ○
A102: 99 | B102: 6864655 | C102: 800 | D102: -1 | E102: -1 | F102: RCA-SA5C-20-12-垂直 | G102: 0.35 | H102: 0.7 | I102: 800 | J102: ○ | K102: ○
A103: 100 | B103: 5883990 | C103: 800 | D103: -1 | E103: -1 | F103: RCA-SA5C-20-12-垂直 | G103: 0.45 | H103: 0.6 | I103: 800 | J103: ○ | K103: ○
A104: 101 | B104: 4903325 | C104: 800 | D104: -1 | E104: -1 | F104: RCA-SA5C-20-12-垂直 | G104: 0.6 | H104: 0.5 | I104: 800 | J104: ○ | K104: ○
A105: 102 | B105: 3922660 | C105: 800 | D105: -1 | E105: -1 | F105: RCA-SA5C-20-12-垂直 | G105: 0.8 | H105: 0.4 | I105: 800 | J105: ○ | K105: ○
A106: 103 | B106: 2941995 | C106: 800 | D106: -1 | E106: -1 | F106: RCA-SA5C-20-12-垂直 | G106: 1 | H106: 0.3 | I106: 800 | J106: ○ | K106: ○
A107: 104 | B107: 14709975 | C107: 1300 | D107: -1 | E107: -1 | F107: RCA-SA5C-20-20-水平 | G107: 0.2 | H107: 1.5 | I107: 1300 | J107: ○ | K107: ○
A108: 105 | B108: 13729310 | C108: 1300 | D108: -1 | E108: -1 | F108: RCA-SA5C-20-20-水平 | G108: 0.25 | H108: 1.4 | I108: 1300 | J108: ○ | K108: ○
A109: 106 | B109: 12748645 | C109: 1300 | D109: -1 | E109: -1 | F109: RCA-SA5C-20-20-水平 | G109: 0.3 | H109: 1.3 | I109: 1300 | J109: ○ | K109: ○
A110: 107 | B110: 11767980 | C110: 1300 | D110: -1 | E110: -1 | F110: RCA-SA5C-20-20-水平 | G110: 0.35 | H110: 1.2 | I110: 1300 | J110: ○ | K110: ○
A111: 108 | B111: 10787315 | C111: 1300 | D111: -1 | E111: -1 | F111: RCA-SA5C-20-20-水平 | G111: 0.4 | H111: 1.1 | I111: 1300 | J111: ○ | K111: ○
A112: 109 | B112: 9806650 | C112: 1300 | D112: -1 | E112: -1 | F112: RCA-SA5C-20-20-水平 | G112: 0.5 | H112: 1 | I112: 1300 | J112: ○ | K112: ○
A113: 110 | B113: 8825985 | C113: 1300 | D113: -1 | E113: -1 | F113: RCA-SA5C-20-20-水平 | G113: 0.6 | H113: 0.9 | I113: 1300 | J113: ○ | K113: ○
A114: 111 | B114: 7845320 | C114: 1300 | D114: -1 | E114: -1 | F114: RCA-SA5C-20-20-水平 | G114: 0.8 | H114: 0.8 | I114: 1300 | J114: ○ | K114: ○
A115: 112 | B115: 6864655 | C115: 1300 | D115: -1 | E115: -1 | F115: RCA-SA5C-20-20-水平 | G115: 1 | H115: 0.7 | I115: 1300 | J115: ○ | K115: ○
A116: 113 | B116: 5883990 | C116: 1300 | D116: -1 | E116: -1 | F116: RCA-SA5C-20-20-水平 | G116: 1.15 | H116: 0.6 | I116: 1300 | J116: ○ | K116: ○
A117: 114 | B117: 4903325 | C117: 1300 | D117: -1 | E117: -1 | F117: RCA-SA5C-20-20-水平 | G117: 1.4 | H117: 0.5 | I117: 1300 | J117: ○ | K117: ○
A118: 115 | B118: 3922660 | C118: 1300 | D118: -1 | E118: -1 | F118: RCA-SA5C-20-20-水平 | G118: 1.75 | H118: 0.4 | I118: 1300 | J118: ○ | K118: ○
A119: 116 | B119: 2941995 | C119: 1300 | D119: -1 | E119: -1 | F119: RCA-SA5C-20-20-水平 | G119: 2 | H119: 0.3 | I119: 1300 | J119: ○ | K119: ○
A120: 117 | B120: 1961330 | C120: 1300 | D120: -1 | E120: -1 | F120: RCA-SA5C-20-20-水平 | G120: 2.4 | H120: 0.2 | I120: 1300 | J120: ○ | K120: ○
A121: 118 | B121: 980665 | C121: 1300 | D121: -1 | E121: -1 | F121: RCA-SA5C-20-20-水平 | G121: 3 | H121: 0.1 | I121: 1300 | J121: ○ | K121: ○
A122: 119 | B122: 6864655 | C122: 1300 | D122: -1 | E122: -1 | F122: RCA-SA5C-20-20-垂直 | G122: 0.1 | H122: 0.7 | I122: 1300 | J122: ○ | K122: ○
A123: 120 | B123: 5883990 | C123: 1300 | D123: -1 | E123: -1 | F123: RCA-SA5C-20-20-垂直 | G123: 0.16 | H123: 0.6 | I123: 1300 | J123: ○ | K123: ○
A124: 121 | B124: 4903325 | C124: 1300 | D124: -1 | E124: -1 | F124: RCA-SA5C-20-20-垂直 | G124: 0.25 | H124: 0.5 | I124: 1300 | J124: ○ | K124: ○
A125: 122 | B125: 3922660 | C125: 1300 | D125: -1 | E125: -1 | F125: RCA-SA5C-20-20-垂直 | G125: 0.35 | H125: 0.4 | I125: 1300 | J125: ○ | K125: ○
A126: 123 | B126: 2941995 | C126: 1300 | D126: -1 | E126: -1 | F126: RCA-SA5C-20-20-垂直 | G126: 0.5 | H126: 0.3 | I126: 1300 | J126: ○ | K126: ○
A127: 124 | B127: 3922660 | C127: 200 | D127: -1 | E127: -1 | F127: RCA-SA6C-30-3-水平 | G127: 1 | H127: 0.4 | I127: 200 | J127: ○ | K127: ○
A128: 125 | B128: 2941995 | C128: 200 | D128: -1 | E128: -1 | F128: RCA-SA6C-30-3-水平 | G128: 7 | H128: 0.3 | I128: 200 | J128: ○ | K128: ○
A129: 126 | B129: 1961330 | C129: 200 | D129: -1 | E129: -1 | F129: RCA-SA6C-30-3-水平 | G129: 18 | H129: 0.2 | I129: 200 | J129: ○ | K129: ○
A130: 127 | B130: 980665 | C130: 200 | D130: -1 | E130: -1 | F130: RCA-SA6C-30-3-水平 | G130: 25 | H130: 0.1 | I130: 200 | J130: ○ | K130: ○
A131: 128 | B131: 2941995 | C131: 200 | D131: -1 | E131: -1 | F131: RCA-SA6C-30-3-垂直 | G131: 2 | H131: 0.3 | I131: 200 | J131: ○ | K131: ○
A132: =A131+1 -> 129 | B132: =H132*$A$1*1000*1000 -> 1961330 | C132: =I132 -> 200 | D132: -1 | E132: -1 | F132: RCA-SA6C-30-3-垂直 | G132: 6 | H132: 0.2 | I132: 200 | J132: =IF(G132=0,IF(D132<>A131,"ﾘﾝｸ不正","○"),"○") -> ○ | K132: =IF(D133<>-1,IF(E132<>A133,"ﾘﾝｸ不正","○"),"○") -> ○
A133: 130 | B133: 9806650 | C133: 400 | D133: -1 | E133: -1 | F133: RCA-SA6C-30-6-水平 | G133: 1.5 | H133: 1 | I133: 400 | J133: ○ | K133: ○
A134: 131 | B134: 8825985 | C134: 400 | D134: -1 | E134: -1 | F134: RCA-SA6C-30-6-水平 | G134: 2.5 | H134: 0.9 | I134: 400 | J134: ○ | K134: ○
A135: 132 | B135: 7845320 | C135: 400 | D135: -1 | E135: -1 | F135: RCA-SA6C-30-6-水平 | G135: 3.5 | H135: 0.8 | I135: 400 | J135: ○ | K135: ○
A136: 133 | B136: 6864655 | C136: 400 | D136: -1 | E136: -1 | F136: RCA-SA6C-30-6-水平 | G136: 5 | H136: 0.7 | I136: 400 | J136: ○ | K136: ○
A137: 134 | B137: 5883990 | C137: 400 | D137: -1 | E137: -1 | F137: RCA-SA6C-30-6-水平 | G137: 6.2 | H137: 0.6 | I137: 400 | J137: ○ | K137: ○
A138: 135 | B138: 4903325 | C138: 400 | D138: -1 | E138: -1 | F138: RCA-SA6C-30-6-水平 | G138: 8 | H138: 0.5 | I138: 400 | J138: ○ | K138: ○
A139: 136 | B139: 3922660 | C139: 400 | D139: -1 | E139: -1 | F139: RCA-SA6C-30-6-水平 | G139: 10 | H139: 0.4 | I139: 400 | J139: ○ | K139: ○
A140: 137 | B140: 2941995 | C140: 400 | D140: -1 | E140: -1 | F140: RCA-SA6C-30-6-水平 | G140: 12 | H140: 0.3 | I140: 400 | J140: ○ | K140: ○
A141: 138 | B141: 1961330 | C141: 400 | D141: -1 | E141: -1 | F141: RCA-SA6C-30-6-水平 | G141: 14.5 | H141: 0.2 | I141: 400 | J141: ○ | K141: ○
A142: 139 | B142: 980665 | C142: 400 | D142: -1 | E142: -1 | F142: RCA-SA6C-30-6-水平 | G142: 16.5 | H142: 0.1 | I142: 400 | J142: ○ | K142: ○
A143: 140 | B143: 9806650 | C143: 400 | D143: -1 | E143: -1 | F143: RCA-SA6C-30-6-垂直 | G143: 0.5 | H143: 1 | I143: 400 | J143: ○ | K143: ○
A144: 141 | B144: 8825985 | C144: 400 | D144: -1 | E144: -1 | F144: RCA-SA6C-30-6-垂直 | G144: 0.65 | H144: 0.9 | I144: 400 | J144: ○ | K144: ○
A145: 142 | B145: 7845320 | C145: 400 | D145: -1 | E145: -1 | F145: RCA-SA6C-30-6-垂直 | G145: 0.8 | H145: 0.8 | I145: 400 | J145: ○ | K145: ○
A146: 143 | B146: 6864655 | C146: 400 | D146: -1 | E146: -1 | F146: RCA-SA6C-30-6-垂直 | G146: 1 | H146: 0.7 | I146: 400 | J146: ○ | K146: ○
A147: 144 | B147: 5883990 | C147: 400 | D147: -1 | E147: -1 | F147: RCA-SA6C-30-6-垂直 | G147: 1.25 | H147: 0.6 | I147: 400 | J147: ○ | K147: ○
A148: 145 | B148: 4903325 | C148: 400 | D148: -1 | E148: -1 | F148: RCA-SA6C-30-6-垂直 | G148: 1.5 | H148: 0.5 | I148: 400 | J148: ○ | K148: ○
A149: 146 | B149: 3922660 | C149: 400 | D149: -1 | E149: -1 | F149: RCA-SA6C-30-6-垂直 | G149: 2.1 | H149: 0.4 | I149: 400 | J149: ○ | K149: ○
A150: 147 | B150: 2941995 | C150: 400 | D150: -1 | E150: -1 | F150: RCA-SA6C-30-6-垂直 | G150: 3 | H150: 0.3 | I150: 400 | J150: ○ | K150: ○
A151: 148 | B151: 19613300 | C151: 800 | D151: -1 | E151: -1 | F151: RCA-SA6C-30-12-水平 | G151: 0.25 | H151: 2 | I151: 800 | J151: ○ | K151: ○
A152: 149 | B152: 18632635 | C152: 800 | D152: -1 | E152: -1 | F152: RCA-SA6C-30-12-水平 | G152: 0.3 | H152: 1.9 | I152: 800 | J152: ○ | K152: ○
A153: 150 | B153: 17651970 | C153: 800 | D153: -1 | E153: -1 | F153: RCA-SA6C-30-12-水平 | G153: 0.35 | H153: 1.8 | I153: 800 | J153: ○ | K153: ○
A154: 151 | B154: 16671305 | C154: 800 | D154: -1 | E154: -1 | F154: RCA-SA6C-30-12-水平 | G154: 0.4 | H154: 1.7 | I154: 800 | J154: ○ | K154: ○
A155: 152 | B155: 15690640 | C155: 800 | D155: -1 | E155: -1 | F155: RCA-SA6C-30-12-水平 | G155: 0.45 | H155: 1.6 | I155: 800 | J155: ○ | K155: ○
A156: 153 | B156: 14709975 | C156: 800 | D156: -1 | E156: -1 | F156: RCA-SA6C-30-12-水平 | G156: 0.5 | H156: 1.5 | I156: 800 | J156: ○ | K156: ○
A157: 154 | B157: 13729310 | C157: 800 | D157: -1 | E157: -1 | F157: RCA-SA6C-30-12-水平 | G157: 0.55 | H157: 1.4 | I157: 800 | J157: ○ | K157: ○
A158: 155 | B158: 12748645 | C158: 800 | D158: -1 | E158: -1 | F158: RCA-SA6C-30-12-水平 | G158: 0.65 | H158: 1.3 | I158: 800 | J158: ○ | K158: ○
A159: 156 | B159: 11767980 | C159: 800 | D159: -1 | E159: -1 | F159: RCA-SA6C-30-12-水平 | G159: 0.75 | H159: 1.2 | I159: 800 | J159: ○ | K159: ○
A160: 157 | B160: 10787315 | C160: 800 | D160: -1 | E160: -1 | F160: RCA-SA6C-30-12-水平 | G160: 0.85 | H160: 1.1 | I160: 800 | J160: ○ | K160: ○
A161: 158 | B161: 9806650 | C161: 800 | D161: -1 | E161: -1 | F161: RCA-SA6C-30-12-水平 | G161: 1 | H161: 1 | I161: 800 | J161: ○ | K161: ○
A162: 159 | B162: 8825985 | C162: 800 | D162: -1 | E162: -1 | F162: RCA-SA6C-30-12-水平 | G162: 1.25 | H162: 0.9 | I162: 800 | J162: ○ | K162: ○
A163: 160 | B163: 7845320 | C163: 800 | D163: -1 | E163: -1 | F163: RCA-SA6C-30-12-水平 | G163: 1.6 | H163: 0.8 | I163: 800 | J163: ○ | K163: ○
A164: 161 | B164: 6864655 | C164: 800 | D164: -1 | E164: -1 | F164: RCA-SA6C-30-12-水平 | G164: 2 | H164: 0.7 | I164: 800 | J164: ○ | K164: ○
A165: 162 | B165: 5883990 | C165: 800 | D165: -1 | E165: -1 | F165: RCA-SA6C-30-12-水平 | G165: 2.75 | H165: 0.6 | I165: 800 | J165: ○ | K165: ○
A166: 163 | B166: 4903325 | C166: 800 | D166: -1 | E166: -1 | F166: RCA-SA6C-30-12-水平 | G166: 3.5 | H166: 0.5 | I166: 800 | J166: ○ | K166: ○
A167: 164 | B167: 3922660 | C167: 800 | D167: -1 | E167: -1 | F167: RCA-SA6C-30-12-水平 | G167: 4.5 | H167: 0.4 | I167: 800 | J167: ○ | K167: ○
A168: 165 | B168: 2941995 | C168: 800 | D168: -1 | E168: -1 | F168: RCA-SA6C-30-12-水平 | G168: 6 | H168: 0.3 | I168: 800 | J168: ○ | K168: ○
A169: 166 | B169: 1961330 | C169: 800 | D169: -1 | E169: -1 | F169: RCA-SA6C-30-12-水平 | G169: 7.2 | H169: 0.2 | I169: 800 | J169: ○ | K169: ○
A170: 167 | B170: 980665 | C170: 800 | D170: -1 | E170: -1 | F170: RCA-SA6C-30-12-水平 | G170: 8.5 | H170: 0.1 | I170: 800 | J170: ○ | K170: ○
A171: 168 | B171: 11767980 | C171: 800 | D171: -1 | E171: -1 | F171: RCA-SA6C-30-12-垂直 | G171: 0.1 | H171: 1.2 | I171: 800 | J171: ○ | K171: ○
A172: 169 | B172: 10787315 | C172: 800 | D172: -1 | E172: -1 | F172: RCA-SA6C-30-12-垂直 | G172: 0.15 | H172: 1.1 | I172: 800 | J172: ○ | K172: ○
A173: 170 | B173: 9806650 | C173: 800 | D173: -1 | E173: -1 | F173: RCA-SA6C-30-12-垂直 | G173: 0.22 | H173: 1 | I173: 800 | J173: ○ | K173: ○
A174: 171 | B174: 8825985 | C174: 800 | D174: -1 | E174: -1 | F174: RCA-SA6C-30-12-垂直 | G174: 0.3 | H174: 0.9 | I174: 800 | J174: ○ | K174: ○
A175: 172 | B175: 7845320 | C175: 800 | D175: -1 | E175: -1 | F175: RCA-SA6C-30-12-垂直 | G175: 0.4 | H175: 0.8 | I175: 800 | J175: ○ | K175: ○
A176: 173 | B176: 6864655 | C176: 800 | D176: -1 | E176: -1 | F176: RCA-SA6C-30-12-垂直 | G176: 0.5 | H176: 0.7 | I176: 800 | J176: ○ | K176: ○
A177: 174 | B177: 5883990 | C177: 800 | D177: -1 | E177: -1 | F177: RCA-SA6C-30-12-垂直 | G177: 0.65 | H177: 0.6 | I177: 800 | J177: ○ | K177: ○
A178: 175 | B178: 4903325 | C178: 800 | D178: -1 | E178: -1 | F178: RCA-SA6C-30-12-垂直 | G178: 0.85 | H178: 0.5 | I178: 800 | J178: ○ | K178: ○
A179: 176 | B179: 3922660 | C179: 800 | D179: -1 | E179: -1 | F179: RCA-SA6C-30-12-垂直 | G179: 1.2 | H179: 0.4 | I179: 800 | J179: ○ | K179: ○
A180: 177 | B180: 2941995 | C180: 800 | D180: -1 | E180: -1 | F180: RCA-SA6C-30-12-垂直 | G180: 1.5 | H180: 0.3 | I180: 800 | J180: ○ | K180: ○
A181: 178 | B181: 14709975 | C181: 1300 | D181: -1 | E181: -1 | F181: RCA-SA6C-30-20-水平 | G181: 0.25 | H181: 1.5 | I181: 1300 | J181: ○ | K181: ○
A182: 179 | B182: 13729310 | C182: 1300 | D182: -1 | E182: -1 | F182: RCA-SA6C-30-20-水平 | G182: 0.3 | H182: 1.4 | I182: 1300 | J182: ○ | K182: ○
A183: 180 | B183: 12748645 | C183: 1300 | D183: -1 | E183: -1 | F183: RCA-SA6C-30-20-水平 | G183: 0.4 | H183: 1.3 | I183: 1300 | J183: ○ | K183: ○
A184: 181 | B184: 11767980 | C184: 1300 | D184: -1 | E184: -1 | F184: RCA-SA6C-30-20-水平 | G184: 0.5 | H184: 1.2 | I184: 1300 | J184: ○ | K184: ○
A185: 182 | B185: 10787315 | C185: 1300 | D185: -1 | E185: -1 | F185: RCA-SA6C-30-20-水平 | G185: 0.65 | H185: 1.1 | I185: 1300 | J185: ○ | K185: ○
A186: 183 | B186: 9806650 | C186: 1300 | D186: -1 | E186: -1 | F186: RCA-SA6C-30-20-水平 | G186: 0.75 | H186: 1 | I186: 1300 | J186: ○ | K186: ○
A187: 184 | B187: 8825985 | C187: 1300 | D187: -1 | E187: -1 | F187: RCA-SA6C-30-20-水平 | G187: 0.85 | H187: 0.9 | I187: 1300 | J187: ○ | K187: ○
A188: 185 | B188: 7845320 | C188: 1300 | D188: -1 | E188: -1 | F188: RCA-SA6C-30-20-水平 | G188: 1 | H188: 0.8 | I188: 1300 | J188: ○ | K188: ○
A189: 186 | B189: 6864655 | C189: 1300 | D189: -1 | E189: -1 | F189: RCA-SA6C-30-20-水平 | G189: 1.25 | H189: 0.7 | I189: 1300 | J189: ○ | K189: ○
A190: 187 | B190: 5883990 | C190: 1300 | D190: -1 | E190: -1 | F190: RCA-SA6C-30-20-水平 | G190: 1.5 | H190: 0.6 | I190: 1300 | J190: ○ | K190: ○
A191: 188 | B191: 4903325 | C191: 1300 | D191: -1 | E191: -1 | F191: RCA-SA6C-30-20-水平 | G191: 2 | H191: 0.5 | I191: 1300 | J191: ○ | K191: ○
A192: 189 | B192: 3922660 | C192: 1300 | D192: -1 | E192: -1 | F192: RCA-SA6C-30-20-水平 | G192: 2.5 | H192: 0.4 | I192: 1300 | J192: ○ | K192: ○
A193: 190 | B193: 2941995 | C193: 1300 | D193: -1 | E193: -1 | F193: RCA-SA6C-30-20-水平 | G193: 3 | H193: 0.3 | I193: 1300 | J193: ○ | K193: ○
A194: 191 | B194: 1961330 | C194: 1300 | D194: -1 | E194: -1 | F194: RCA-SA6C-30-20-水平 | G194: 3.6 | H194: 0.2 | I194: 1300 | J194: ○ | K194: ○
A195: 192 | B195: 980665 | C195: 1300 | D195: -1 | E195: -1 | F195: RCA-SA6C-30-20-水平 | G195: 4.2 | H195: 0.1 | I195: 1300 | J195: ○ | K195: ○
A196: =A195+1 -> 193 | B196: =H196*$A$1*1000*1000 -> 5883990 | C196: =I196 -> 1300 | D196: -1 | E196: -1 | F196: RCA-SA6C-30-20-垂直 | G196: 0.1 | H196: 0.6 | I196: 1300 | J196: =IF(G196=0,IF(D196<>A195,"ﾘﾝｸ不正","○"),"○") -> ○ | K196: =IF(D197<>-1,IF(E196<>A197,"ﾘﾝｸ不正","○"),"○") -> ○
A197: 194 | B197: 4903325 | C197: 1300 | D197: -1 | E197: -1 | F197: RCA-SA6C-30-20-垂直 | G197: 0.2 | H197: 0.5 | I197: 1300 | J197: ○ | K197: ○
A198: 195 | B198: 3922660 | C198: 1300 | D198: -1 | E198: -1 | F198: RCA-SA6C-30-20-垂直 | G198: 0.35 | H198: 0.4 | I198: 1300 | J198: ○ | K198: ○
A199: 196 | B199: 2941995 | C199: 1300 | D199: -1 | E199: -1 | F199: RCA-SA6C-30-20-垂直 | G199: 0.5 | H199: 0.3 | I199: 1300 | J199: ○ | K199: ○
A200: 197 | B200: 1961330 | C200: 165 | D200: -1 | E200: -1 | F200: RCA-SA4D-20-2.5-水平 | G200: 8 | H200: 0.2 | I200: 165 | J200: ○ | K200: ○
... 246 more rows
